Body Name,Purpose of Expenditure ,Directorate ,Dr/Cr,Gross Amount,Beneficiary,Transaction Date
Nottinghamshire County Council,Personal Needs,"Children, Families & Cultural Services",Debit,9.94,amazon uk retail,03/01/2016
Nottinghamshire County Council,Personal Needs,"Children, Families & Cultural Services",Debit,26.79,amazon svcs europesar,03/01/2016
Nottinghamshire County Council,Provisions,"Children, Families & Cultural Services",Debit,8.80,sainsburys s/mkts,02/01/2016
Nottinghamshire County Council,Provisions,"Adult Social Care, Health & Public Protection ",Debit,59.94,amazon uk marketplace,01/01/2016
Nottinghamshire County Council,Personal Needs,"Children, Families & Cultural Services",Debit,4.30,sainsburys s/mkts,02/01/2016
Nottinghamshire County Council,Provisions,"Children, Families & Cultural Services",Debit,6.96,mcdonalds,03/01/2016
Nottinghamshire County Council,Aftercare - Equipment,"Children, Families & Cultural Services",Debit,16.99,argos retail group,01/01/2016
Nottinghamshire County Council,Aftercare - Equipment,"Children, Families & Cultural Services",Debit,78.94,argos retail group,01/01/2016
Nottinghamshire County Council,Phone and Network (Land Lines),"Children, Families & Cultural Services",Debit,12.00,textmagic.com,02/01/2016
Nottinghamshire County Council,Personal Needs,"Children, Families & Cultural Services",Debit,12.99,amazon uk retail,03/01/2016
Nottinghamshire County Council,Teaching Equipment,"Children, Families & Cultural Services",Debit,59.78,asda superstore 04261,02/01/2016
Nottinghamshire County Council,Activities & Support,"Children, Families & Cultural Services",Debit,22.93,fat boys,03/01/2016
Nottinghamshire County Council,Provisions,"Adult Social Care, Health & Public Protection ",Debit,6.76,w m morrisons,02/01/2016
Nottinghamshire County Council,Office / General Equipment,Environment & Resources,Debit,4.00,gt news mf,02/01/2016
Nottinghamshire County Council,Provisions,Environment & Resources,Debit,3.00,iceland,02/01/2016
Nottinghamshire County Council,Personal Needs,"Children, Families & Cultural Services",Debit,5.99,netflix.com,01/01/2016
Nottinghamshire County Council,Office / General Equipment,"Policy, Planning & Corporate Services",Debit,81.22,hotjar,01/01/2016
Nottinghamshire County Council,Activities & Support,"Children, Families & Cultural Services",Debit,41.84,amazon uk retail,05/01/2016
Nottinghamshire County Council,Activities & Support,"Children, Families & Cultural Services",Debit,14.48,aldi,27/01/2016
Nottinghamshire County Council,Personal Needs,"Children, Families & Cultural Services",Debit,25.00,amazon uk retail,04/01/2016
Nottinghamshire County Council,Personal Needs,"Children, Families & Cultural Services",Debit,5.00,amazon uk retail,04/01/2016
Nottinghamshire County Council,Protective Clothing,"Children, Families & Cultural Services",Debit,191.98,ppss ltd,05/01/2016
Nottinghamshire County Council,Provisions,"Children, Families & Cultural Services",Debit,569.62,owen taylor  sons,06/01/2016
Nottinghamshire County Council,Personal Needs,"Children, Families & Cultural Services",Debit,11.98,amazon uk retail,07/01/2016
Nottinghamshire County Council,Personal Needs,"Children, Families & Cultural Services",Debit,5.94,amazon uk marketplace,07/01/2016
Nottinghamshire County Council,Personal Needs,"Children, Families & Cultural Services",Debit,6.99,amazon uk marketplace,07/01/2016
Nottinghamshire County Council,Personal Needs,"Children, Families & Cultural Services",Debit,4.91,amazon uk marketplace,08/01/2016
Nottinghamshire County Council,Personal Needs,"Children, Families & Cultural Services",Debit,8.98,amazon uk retail,09/01/2016
Nottinghamshire County Council,Personal Needs,"Children, Families & Cultural Services",Debit,6.99,amazon uk marketplace,08/01/2016
Nottinghamshire County Council,Clothing/Shoes/Uniforms,"Children, Families & Cultural Services",Debit,17.95,asda 4387,08/01/2016
Nottinghamshire County Council,Clothing/Shoes/Uniforms,"Children, Families & Cultural Services",Debit,43.50,vans,07/01/2016
Nottinghamshire County Council,Personal Needs,"Children, Families & Cultural Services",Debit,15.22,amazon uk marketplace,08/01/2016
Nottinghamshire County Council,Office / General Equipment,"Children, Families & Cultural Services",Debit,14.85,amazon uk marketplace,11/01/2016
Nottinghamshire County Council,Personal Needs,"Children, Families & Cultural Services",Debit,49.99,amazon uk marketplace,11/01/2016
Nottinghamshire County Council,Office / General Equipment,"Children, Families & Cultural Services",Debit,20.85,amazon uk marketplace,11/01/2016
Nottinghamshire County Council,Aids & Appliances,"Children, Families & Cultural Services",Debit,19.59,amazon uk marketplace,12/01/2016
Nottinghamshire County Council,Office / General Equipment,"Children, Families & Cultural Services",Debit,32.96,amazon uk marketplace,12/01/2016
Nottinghamshire County Council,Personal Needs,"Children, Families & Cultural Services",Debit,87.75,amazon uk marketplace,16/01/2016
Nottinghamshire County Council,Personal Needs,"Children, Families & Cultural Services",Debit,10.32,amazon uk marketplace,19/01/2016
Nottinghamshire County Council,Personal Needs,"Children, Families & Cultural Services",Debit,44.79,amazon uk retail,20/01/2016
Nottinghamshire County Council,Personal Needs,"Children, Families & Cultural Services",Debit,31.71,amazon uk marketplace,24/01/2016
Nottinghamshire County Council,Personal Needs,"Children, Families & Cultural Services",Debit,6.00,amazon uk marketplace,22/01/2016
Nottinghamshire County Council,Aids & Appliances,"Children, Families & Cultural Services",Debit,0.79,amazon uk marketplace,25/01/2016
Nottinghamshire County Council,Clothing/Shoes/Uniforms,"Children, Families & Cultural Services",Debit,36.93,sportsdirect.com,25/01/2016
Nottinghamshire County Council,Personal Needs,"Children, Families & Cultural Services",Debit,59.98,amazon uk marketplace,25/01/2016
Nottinghamshire County Council,Aids & Appliances,"Children, Families & Cultural Services",Debit,65.00,amazon uk retail,26/01/2016
Nottinghamshire County Council,Cleaning & Domestic Equipment,"Children, Families & Cultural Services",Debit,49.99,currys online,26/01/2016
Nottinghamshire County Council,Personal Needs,"Children, Families & Cultural Services",Debit,49.99,amazon uk marketplace,26/01/2016
Nottinghamshire County Council,Clothing/Shoes/Uniforms,"Children, Families & Cultural Services",Debit,7.25,amazon uk marketplace,26/01/2016
Nottinghamshire County Council,Holidays,"Children, Families & Cultural Services",Debit,422.28,center parcs internet,27/01/2016
Nottinghamshire County Council,Protective Clothing,"Children, Families & Cultural Services",Debit,128.92,www.razorwireuk.com,27/01/2016
Nottinghamshire County Council,Personal Needs,"Children, Families & Cultural Services",Debit,27.00,national railcard,29/01/2016
Nottinghamshire County Council,Personal Needs,"Children, Families & Cultural Services",Debit,9.86,amazon uk retail,29/01/2016
Nottinghamshire County Council,Personal Needs,"Children, Families & Cultural Services",Debit,97.70,eastmidlandstrains,29/01/2016
Nottinghamshire County Council,Personal Needs,"Children, Families & Cultural Services",Debit,12.50,amazon payments,03/02/2016
Nottinghamshire County Council,Catering Consumables,"Adult Social Care, Health & Public Protection ",Debit,9.00,b  q,03/02/2016
Nottinghamshire County Council,Catering Consumables,"Adult Social Care, Health & Public Protection ",Debit,3.29,wickes,04/01/2016
Nottinghamshire County Council,Catering Consumables,"Adult Social Care, Health & Public Protection ",Debit,16.59,southwell aquatic cent,06/01/2016
Nottinghamshire County Council,Catering Consumables,"Adult Social Care, Health & Public Protection ",Debit,18.91,[Redacted],08/01/2016
Nottinghamshire County Council,Catering Consumables,"Adult Social Care, Health & Public Protection ",Debit,41.87,asda superstore,12/01/2016
Nottinghamshire County Council,Catering Consumables,"Adult Social Care, Health & Public Protection ",Debit,38.32,wickes,12/01/2016
Nottinghamshire County Council,Catering Consumables,"Adult Social Care, Health & Public Protection ",Debit,3.98,wilko retail limit,14/01/2016
Nottinghamshire County Council,Catering Consumables,"Adult Social Care, Health & Public Protection ",Debit,9.00,timpson ltd,15/01/2016
Nottinghamshire County Council,Catering Consumables,"Adult Social Care, Health & Public Protection ",Debit,7.00,sainsburys s/mkts,20/01/2016
Nottinghamshire County Council,Catering Consumables,"Adult Social Care, Health & Public Protection ",Debit,5.99,wickes,20/01/2016
Nottinghamshire County Council,Catering Consumables,"Adult Social Care, Health & Public Protection ",Debit,9.36,asda superstore,22/01/2016
Nottinghamshire County Council,Catering Consumables,"Adult Social Care, Health & Public Protection ",Debit,14.80,asda superstore,25/01/2016
Nottinghamshire County Council,Catering Consumables,"Adult Social Care, Health & Public Protection ",Debit,12.80,sainsburys smkt,28/01/2016
Nottinghamshire County Council,Catering Consumables,"Adult Social Care, Health & Public Protection ",Debit,25.37,staples uk,03/02/2016
Nottinghamshire County Council,Minor Works,"Children, Families & Cultural Services",Debit,67.50,tesco stores 3378,07/01/2016
Nottinghamshire County Council,Provisions,"Children, Families & Cultural Services",Debit,89.00,currys online,14/01/2016
Nottinghamshire County Council,Minor Works,"Children, Families & Cultural Services",Debit,490.06,amazon uk retail,20/01/2016
Nottinghamshire County Council,Minor Works,"Children, Families & Cultural Services",Debit,89.00,currys online,20/01/2016
Nottinghamshire County Council,Minor Works,"Children, Families & Cultural Services",Debit,233.80,alexandra website,22/01/2016
Nottinghamshire County Council,Aids & Appliances,"Adult Social Care, Health & Public Protection ",Debit,11.98,amazon uk marketplace,03/02/2016
Nottinghamshire County Council,Provisions,"Adult Social Care, Health & Public Protection ",Debit,188.91,wm morrison food.com,04/01/2016
Nottinghamshire County Council,Fixtures & Fittings,"Adult Social Care, Health & Public Protection ",Debit,147.16,top deck trade centre lt,04/01/2016
Nottinghamshire County Council,Provisions,"Adult Social Care, Health & Public Protection ",Debit,7.00,wm morrison food.com,09/01/2016
Nottinghamshire County Council,Provisions,"Adult Social Care, Health & Public Protection ",Debit,156.00,wm morrison food.com,11/01/2016
Nottinghamshire County Council,Cleaning Materials,"Adult Social Care, Health & Public Protection ",Debit,24.80,wm morrison food.com,11/01/2016
Nottinghamshire County Council,Provisions,"Adult Social Care, Health & Public Protection ",Debit,165.21,wm morrison food.com,18/01/2016
Nottinghamshire County Council,Cleaning Materials,"Adult Social Care, Health & Public Protection ",Debit,37.52,wm morrison food.com,18/01/2016
Nottinghamshire County Council,Cleaning Materials,"Adult Social Care, Health & Public Protection ",Debit,5.98,sapphires ltd,19/01/2016
Nottinghamshire County Council,Fixtures & Fittings,"Adult Social Care, Health & Public Protection ",Debit,221.97,soundbase megastor,19/01/2016
Nottinghamshire County Council,Cleaning Materials,"Adult Social Care, Health & Public Protection ",Debit,69.00,asda home shopping,20/01/2016
Nottinghamshire County Council,Catering Consumables,"Adult Social Care, Health & Public Protection ",Debit,11.21,amazon uk retail,21/01/2016
Nottinghamshire County Council,Provisions,"Adult Social Care, Health & Public Protection ",Debit,185.01,wm morrison food.com,25/01/2016
Nottinghamshire County Council,Cleaning Materials,"Adult Social Care, Health & Public Protection ",Debit,20.00,wm morrison food.com,25/01/2016
Nottinghamshire County Council,Provisions,"Adult Social Care, Health & Public Protection ",Debit,46.45,soundbase megastor,27/01/2016
Nottinghamshire County Council,Provisions,"Adult Social Care, Health & Public Protection ",Debit,192.68,w m morrisons.com,01/02/2016
Nottinghamshire County Council,Activities & Support,"Children, Families & Cultural Services",Debit,32.12,tesco store 3439,11/01/2016
Nottinghamshire County Council,Activities & Support,"Children, Families & Cultural Services",Debit,4.82,tesco store 3439,19/01/2016
Nottinghamshire County Council,Activities & Support,"Children, Families & Cultural Services",Debit,5.83,asda stores 4517,21/01/2016
Nottinghamshire County Council,Activities & Support,"Children, Families & Cultural Services",Debit,7.60,tesco stores-3439,25/01/2016
Nottinghamshire County Council,Activities & Support,"Children, Families & Cultural Services",Debit,15.50,asda stores 4517,28/01/2016
Nottinghamshire County Council,Activities & Support,"Children, Families & Cultural Services",Debit,9.79,aldi,28/01/2016
Nottinghamshire County Council,Activities & Support,"Children, Families & Cultural Services",Debit,5.92,tesco stores-3439,01/02/2016
Nottinghamshire County Council,Activities & Support,"Children, Families & Cultural Services",Debit,8.60,asda stores 4517,01/02/2016
Nottinghamshire County Council,Activities & Support,"Children, Families & Cultural Services",Debit,4.81,tesco store 3439,02/02/2016
Nottinghamshire County Council,Activities & Support,"Children, Families & Cultural Services",Debit,30.00,river maun recreat,08/01/2016
Nottinghamshire County Council,Activities & Support,"Children, Families & Cultural Services",Debit,19.65,the palace theatre,12/01/2016
Nottinghamshire County Council,Activities & Support,"Children, Families & Cultural Services",Debit,6.48,the post office,14/01/2016
Nottinghamshire County Council,Activities & Support,"Children, Families & Cultural Services",Debit,13.92,tesco stores 2995,15/01/2016
Nottinghamshire County Council,Activities & Support,"Children, Families & Cultural Services",Debit,20.00,mansfield superbowl,20/01/2016
Nottinghamshire County Council,Activities & Support,"Children, Families & Cultural Services",Debit,6.74,mcdonalds,20/01/2016
Nottinghamshire County Council,Activities & Support,"Children, Families & Cultural Services",Debit,5.10,mansfield superbowl,02/02/2016
Nottinghamshire County Council,Activities & Support,"Children, Families & Cultural Services",Debit,12.00,mansfield superbowl,02/02/2016
Nottinghamshire County Council,Activities & Support,"Children, Families & Cultural Services",Debit,12.00,mansfield superbowl,02/02/2016
Nottinghamshire County Council,Activities & Support,"Children, Families & Cultural Services",Debit,3.11,asda stores 4474,03/02/2016
Nottinghamshire County Council,Materials - External,Environment & Resources,Debit,55.20,city electrical fa,25/01/2016
Nottinghamshire County Council,Materials - External,Environment & Resources,Debit,45.22,city electrical fa,25/01/2016
Nottinghamshire County Council,Materials - External,Environment & Resources,Debit,5.96,city electrical fa,25/01/2016
Nottinghamshire County Council,Materials - External,Environment & Resources,Debit,47.23,city electrical fa,25/01/2016
Nottinghamshire County Council,Materials - External,Environment & Resources,Debit,10.34,city electrical fa,25/01/2016
Nottinghamshire County Council,Materials - External,Environment & Resources,Debit,6.41,city electrical fa,25/01/2016
Nottinghamshire County Council,Materials - External,Environment & Resources,Debit,4.61,city electrical fa,25/01/2016
Nottinghamshire County Council,Materials - External,Environment & Resources,Debit,47.23,city electrical fa,25/01/2016
Nottinghamshire County Council,Materials - External,Environment & Resources,Debit,2.99,city electrical fa,25/01/2016
Nottinghamshire County Council,Materials - External,Environment & Resources,Debit,8.57,city electrical fa,25/01/2016
Nottinghamshire County Council,Materials - External,Environment & Resources,Debit,3.38,city electrical fa,25/01/2016
Nottinghamshire County Council,Materials - External,Environment & Resources,Debit,48.48,city electrical fa,25/01/2016
Nottinghamshire County Council,Materials - External,Environment & Resources,Debit,8.05,city electrical fa,25/01/2016
Nottinghamshire County Council,Materials - External,Environment & Resources,Debit,5.96,city electrical fa,25/01/2016
Nottinghamshire County Council,Materials - External,Environment & Resources,Debit,47.28,city electrical fa,25/01/2016
Nottinghamshire County Council,Materials - External,Environment & Resources,Debit,40.32,keyline ashfield,08/01/2016
Nottinghamshire County Council,Materials - External,Environment & Resources,Debit,54.62,keyline ashfield,08/01/2016
Nottinghamshire County Council,Office / General Equipment,Environment & Resources,Debit,19.09,keyline ashfield,08/01/2016
Nottinghamshire County Council,Materials - External,Environment & Resources,Debit,12.49,keyline ashfield,08/01/2016
Nottinghamshire County Council,Materials - External,Environment & Resources,Debit,123.48,keyline ashfield,08/01/2016
Nottinghamshire County Council,Materials - External,Environment & Resources,Debit,248.04,hendricks civilslintels,19/01/2016
Nottinghamshire County Council,Materials - External,Environment & Resources,Debit,50.40,keyline ashfield,22/01/2016
Nottinghamshire County Council,Materials - External,Environment & Resources,Debit,50.40,keyline ashfield,22/01/2016
Nottinghamshire County Council,Activities & Support,"Children, Families & Cultural Services",Debit,3.28,aldi,08/01/2016
Nottinghamshire County Council,Activities & Support,"Children, Families & Cultural Services",Debit,7.99,amazon uk retail,20/01/2016
Nottinghamshire County Council,Activities & Support,"Children, Families & Cultural Services",Debit,18.90,paypal  ,20/01/2016
Nottinghamshire County Council,Activities & Support,"Children, Families & Cultural Services",Debit,20.00,arnold leisure cen,30/01/2016
Nottinghamshire County Council,Activities & Support,"Children, Families & Cultural Services",Debit,30.00,timpson ltd,03/02/2016
Nottinghamshire County Council,Activities & Support,"Children, Families & Cultural Services",Debit,7.98,the range,03/02/2016
Nottinghamshire County Council,Activities & Support,"Children, Families & Cultural Services",Debit,30.00,timpson ltd,03/02/2016
Nottinghamshire County Council,Activities & Support,"Children, Families & Cultural Services",Debit,15.00,wilko retail limit,03/02/2016
Nottinghamshire County Council,Materials - External,Environment & Resources,Debit,203.24,jwl architectural iron,04/01/2016
Nottinghamshire County Council,Materials - External,Environment & Resources,Debit,11.52,jwl architectural iron,04/01/2016
Nottinghamshire County Council,Materials - External,Environment & Resources,Debit,66.00,jwl architectural iron,06/01/2016
Nottinghamshire County Council,Materials - External,Environment & Resources,Debit,2.21,howden joinery arnold,06/01/2016
Nottinghamshire County Council,Materials - External,Environment & Resources,Debit,46.08,howden joinery arnold,06/01/2016
Nottinghamshire County Council,Materials - External,Environment & Resources,Debit,59.70,howden joinery arnold,06/01/2016
Nottinghamshire County Council,Materials - External,Environment & Resources,Debit,3.35,howden joinery arnold,21/01/2016
Nottinghamshire County Council,Materials - External,Environment & Resources,Debit,1.19,howden joinery arnold,21/01/2016
Nottinghamshire County Council,Materials - External,Environment & Resources,Debit,4.79,howden joinery arnold,21/01/2016
Nottinghamshire County Council,Materials - External,Environment & Resources,Debit,47.10,howden joinery arnold,21/01/2016
Nottinghamshire County Council,Materials - External,Environment & Resources,Debit,15.36,howden joinery arnold,21/01/2016
Nottinghamshire County Council,Materials - External,Environment & Resources,Debit,6.07,howden joinery arnold,21/01/2016
Nottinghamshire County Council,Materials - External,Environment & Resources,Debit,48.48,howden joinery arnold,25/01/2016
Nottinghamshire County Council,Materials - External,Environment & Resources,Debit,34.40,jewson mansfield,22/01/2016
Nottinghamshire County Council,Materials - External,Environment & Resources,Debit,7.55,jewson mansfield,22/01/2016
Nottinghamshire County Council,Materials - External,Environment & Resources,Debit,7.55,jewson mansfield,22/01/2016
Nottinghamshire County Council,Materials - External,Environment & Resources,Debit,2.87,jewson mansfield,22/01/2016
Nottinghamshire County Council,Materials - External,Environment & Resources,Debit,64.94,jwl architectural iron,04/01/2016
Nottinghamshire County Council,Materials - External,Environment & Resources,Debit,50.76,frank key (notts) ltd,04/01/2016
Nottinghamshire County Council,Materials - External,Environment & Resources,Debit,111.51,gibbs  dandy,15/01/2016
Nottinghamshire County Council,Materials - External,Environment & Resources,Debit,52.96,wickes,18/01/2016
Nottinghamshire County Council,Materials - External,Environment & Resources,Debit,9.00,tesco stores 2995,19/01/2016
Nottinghamshire County Council,Materials - External,Environment & Resources,Debit,21.00,corden hardware company,21/01/2016
Nottinghamshire County Council,Materials - External,Environment & Resources,Debit,109.01,frank key (notts) ltd,22/01/2016
Nottinghamshire County Council,Materials - External,Environment & Resources,Debit,60.82,frank key (notts) ltd,22/01/2016
Nottinghamshire County Council,Materials - External,Environment & Resources,Debit,85.20,arco ltd,25/01/2016
Nottinghamshire County Council,Materials - External,Environment & Resources,Debit,48.88,handi centre bingham,27/01/2016
Nottinghamshire County Council,Materials - External,Environment & Resources,Debit,56.28,jwl architectural iron,28/01/2016
Nottinghamshire County Council,Materials - External,Environment & Resources,Debit,31.10,1st access,06/01/2016
Nottinghamshire County Council,Materials - External,Environment & Resources,Debit,78.44,arco ltd,18/01/2016
Nottinghamshire County Council,Materials - External,Environment & Resources,Debit,8.98,wilko retail limit,02/02/2016
Nottinghamshire County Council,Other Fee's & Services,Environment & Resources,Debit,59.00,hemming group ltd,05/01/2016
Nottinghamshire County Council,Other Fee's & Services,Environment & Resources,Debit,60.00,dsa theory test,05/01/2016
Nottinghamshire County Council,Other Fee's & Services,Environment & Resources,Debit,60.00,dsa theory test,05/01/2016
Nottinghamshire County Council,Other Fee's & Services,Environment & Resources,Debit,26.00,dsa theory test,06/01/2016
Nottinghamshire County Council,Other Fee's & Services,Environment & Resources,Credit,-26.00,dsa theory test,06/01/2016
Nottinghamshire County Council,Other Fee's & Services,Environment & Resources,Debit,120.00,dsa theory test,07/01/2016
Nottinghamshire County Council,Other Fee's & Services,Environment & Resources,Debit,26.00,dsa theory test,07/01/2016
Nottinghamshire County Council,Other Fee's & Services,Environment & Resources,Credit,-26.00,dsa theory test,08/01/2016
Nottinghamshire County Council,Other Fee's & Services,Environment & Resources,Credit,-60.00,dsa theory test,08/01/2016
Nottinghamshire County Council,Other Fee's & Services,Environment & Resources,Credit,-26.00,dsa theory test,08/01/2016
Nottinghamshire County Council,Other Fee's & Services,Environment & Resources,Credit,-34.00,dsa theory test,08/01/2016
Nottinghamshire County Council,Other Fee's & Services,Environment & Resources,Debit,158.57,http://www.rtitb.co.uk/,11/01/2016
Nottinghamshire County Council,Other Fee's & Services,Environment & Resources,Debit,246.00,paragon training,12/01/2016
Nottinghamshire County Council,Other Fee's & Services,Environment & Resources,Debit,158.57,http://www.rtitb.co.uk/,14/01/2016
Nottinghamshire County Council,Other Fee's & Services,Environment & Resources,Debit,218.03,http://www.rtitb.co.uk/,14/01/2016
Nottinghamshire County Council,Other Fee's & Services,Environment & Resources,Debit,115.00,dsa,14/01/2016
Nottinghamshire County Council,Other Fee's & Services,Environment & Resources,Debit,110.00,dsa,14/01/2016
Nottinghamshire County Council,Other Fee's & Services,Environment & Resources,Debit,60.00,dsa theory test,14/01/2016
Nottinghamshire County Council,Other Fee's & Services,Environment & Resources,Debit,575.00,dsa,14/01/2016
Nottinghamshire County Council,Other Fee's & Services,Environment & Resources,Debit,55.00,dsa,15/01/2016
Nottinghamshire County Council,Other Fee's & Services,Environment & Resources,Debit,60.00,dsa theory test,18/01/2016
Nottinghamshire County Council,Other Fee's & Services,Environment & Resources,Credit,-37.00,dsa theory test,19/01/2016
Nottinghamshire County Council,Other Fee's & Services,Environment & Resources,Debit,37.00,dsa theory test,19/01/2016
Nottinghamshire County Council,Other Fee's & Services,Environment & Resources,Debit,230.00,dsa,27/01/2016
Nottinghamshire County Council,Other Fee's & Services,Environment & Resources,Debit,60.00,stationery office book,27/01/2016
Nottinghamshire County Council,Office / General Equipment,"Children, Families & Cultural Services",Debit,148.86,www.lampco.co.uk,07/01/2016
Nottinghamshire County Council,Office / General Equipment,"Children, Families & Cultural Services",Debit,83.62,www.gear4music.com,21/01/2016
Nottinghamshire County Council,Provisions,"Children, Families & Cultural Services",Debit,70.14,aldi,29/01/2016
Nottinghamshire County Council,Teaching Equipment,"Children, Families & Cultural Services",Debit,38.64,screwfix direct,14/01/2016
Nottinghamshire County Council,Teaching Equipment,"Children, Families & Cultural Services",Debit,176.44,wickes,19/01/2016
Nottinghamshire County Council,Office / General Equipment,"Children, Families & Cultural Services",Debit,464.73,amazon uk retail,20/01/2016
Nottinghamshire County Council,Office / General Equipment,"Children, Families & Cultural Services",Debit,105.97,amazon uk marketplace,22/01/2016
Nottinghamshire County Council,Minor Works,"Children, Families & Cultural Services",Debit,4.94,tesco stores 2702,05/01/2016
Nottinghamshire County Council,Minor Works,"Children, Families & Cultural Services",Debit,9.29,tesco stores 2702,06/01/2016
Nottinghamshire County Council,Minor Works,"Children, Families & Cultural Services",Debit,16.50,frank key (notts) ltd,06/01/2016
Nottinghamshire County Council,Minor Works,"Children, Families & Cultural Services",Debit,5.48,tesco stores 2702,07/01/2016
Nottinghamshire County Council,Minor Works,"Children, Families & Cultural Services",Debit,5.29,tesco stores 2702,13/01/2016
Nottinghamshire County Council,Minor Works,"Children, Families & Cultural Services",Debit,51.00,frank key (notts) ltd,18/01/2016
Nottinghamshire County Council,Minor Works,"Children, Families & Cultural Services",Debit,3.94,aldi,19/01/2016
Nottinghamshire County Council,Minor Works,"Children, Families & Cultural Services",Debit,21.64,f martin ltd,20/01/2016
Nottinghamshire County Council,Minor Works,"Children, Families & Cultural Services",Debit,5.90,tesco stores 2702,20/01/2016
Nottinghamshire County Council,Minor Works,"Children, Families & Cultural Services",Credit,-26.00,robert m sansom plant lt,21/01/2016
Nottinghamshire County Council,Minor Works,"Children, Families & Cultural Services",Debit,50.00,robert m sansom plant lt,21/01/2016
Nottinghamshire County Council,Minor Works,"Children, Families & Cultural Services",Debit,5.00,sainsburys petrol,24/01/2016
Nottinghamshire County Council,Minor Works,"Children, Families & Cultural Services",Debit,4.94,tesco stores 6439,24/01/2016
Nottinghamshire County Council,Minor Works,"Children, Families & Cultural Services",Debit,7.50,w m morrisons,26/01/2016
Nottinghamshire County Council,Minor Works,"Children, Families & Cultural Services",Credit,-30.00,robert m sansom plant lt,26/01/2016
Nottinghamshire County Council,Minor Works,"Children, Families & Cultural Services",Debit,50.00,robert m sansom plant lt,26/01/2016
Nottinghamshire County Council,Minor Works,"Children, Families & Cultural Services",Debit,23.53,tesco stores 2702,28/01/2016
Nottinghamshire County Council,Minor Works,"Children, Families & Cultural Services",Debit,5.98,shell awsworth,28/01/2016
Nottinghamshire County Council,Minor Works,"Children, Families & Cultural Services",Debit,29.00,a2b cars,29/01/2016
Nottinghamshire County Council,Minor Works,"Children, Families & Cultural Services",Debit,27.90,a2b cars,01/02/2016
Nottinghamshire County Council,Minor Works,"Children, Families & Cultural Services",Debit,7.67,tesco stores 2995,02/02/2016
Nottinghamshire County Council,Minor Works,"Children, Families & Cultural Services",Debit,36.35,screwfix,03/02/2016
Nottinghamshire County Council,Clients - H & S Equipt,"Children, Families & Cultural Services",Debit,7.69,ncp limited,14/01/2016
Nottinghamshire County Council,Clients - H & S Equipt,"Children, Families & Cultural Services",Debit,20.00,sainsburys s/mkts,21/01/2016
Nottinghamshire County Council,Clients - H & S Equipt,"Children, Families & Cultural Services",Debit,95.12,asda superstore,21/01/2016
Nottinghamshire County Council,Clients - H & S Equipt,"Children, Families & Cultural Services",Debit,157.94,argos retail group,26/01/2016
Nottinghamshire County Council,Clients - H & S Equipt,"Children, Families & Cultural Services",Debit,152.95,argos retail group,26/01/2016
Nottinghamshire County Council,Clients - H & S Equipt,"Children, Families & Cultural Services",Debit,145.50,tvlicensing.co.uk,26/01/2016
Nottinghamshire County Council,Clients - H & S Equipt,"Children, Families & Cultural Services",Debit,2.38,county service station,29/01/2016
Nottinghamshire County Council,Clients - H & S Equipt,"Children, Families & Cultural Services",Debit,40.00,ncc internet,02/02/2016
Nottinghamshire County Council,Activities & Support,"Children, Families & Cultural Services",Debit,1.97,amazon uk marketplace,08/01/2016
Nottinghamshire County Council,Activities & Support,"Children, Families & Cultural Services",Debit,27.80,amazon uk marketplace,08/01/2016
Nottinghamshire County Council,Activities & Support,"Children, Families & Cultural Services",Debit,87.16,asda superstore 04030,12/01/2016
Nottinghamshire County Council,Activities & Support,"Children, Families & Cultural Services",Debit,13.33,co-op group 065071,29/01/2016
Nottinghamshire County Council,Activities & Support,"Children, Families & Cultural Services",Debit,70.55,asda superstore 04030,03/02/2016
Nottinghamshire County Council,Office / General Equipment,"Children, Families & Cultural Services",Debit,39.99,amazon uk marketplace,01/02/2016
Nottinghamshire County Council,Office / General Equipment,"Children, Families & Cultural Services",Debit,2.96,amazon uk marketplace,02/02/2016
Nottinghamshire County Council,Office / General Equipment,"Children, Families & Cultural Services",Debit,145.50,tvlicensing.co.uk,02/02/2016
Nottinghamshire County Council,Materials - External,Environment & Resources,Debit,250.00,acorn signs  engraving,05/01/2016
Nottinghamshire County Council,Materials - External,Environment & Resources,Debit,250.00,acorn signs  engraving,13/01/2016
Nottinghamshire County Council,Materials - External,Environment & Resources,Debit,224.80,acorn signs  engraving,22/01/2016
Nottinghamshire County Council,Materials - External,Environment & Resources,Debit,89.40,edmundson electrical,28/01/2016
Nottinghamshire County Council,Activities & Support,"Children, Families & Cultural Services",Debit,55.98,amazon uk retail,04/01/2016
Nottinghamshire County Council,Activities & Support,"Children, Families & Cultural Services",Debit,166.00,the imperial hotels lond,04/01/2016
Nottinghamshire County Council,Activities & Support,"Children, Families & Cultural Services",Debit,22.08,amazon uk marketplace,05/01/2016
Nottinghamshire County Council,Activities & Support,"Children, Families & Cultural Services",Debit,11.56,amazon uk retail,06/01/2016
Nottinghamshire County Council,Activities & Support,"Children, Families & Cultural Services",Debit,125.09,amazon uk marketplace,07/01/2016
Nottinghamshire County Council,Activities & Support,"Children, Families & Cultural Services",Debit,24.22,fast key services,12/01/2016
Nottinghamshire County Council,Activities & Support,"Children, Families & Cultural Services",Debit,36.73,amazon uk marketplace,18/01/2016
Nottinghamshire County Council,Activities & Support,"Children, Families & Cultural Services",Credit,-112.58,amazon uk marketplace,21/01/2016
Nottinghamshire County Council,Activities & Support,"Children, Families & Cultural Services",Debit,192.94,amazon uk marketplace,25/01/2016
Nottinghamshire County Council,Activities & Support,"Children, Families & Cultural Services",Debit,166.00,imperial london hotels,26/01/2016
Nottinghamshire County Council,Activities & Support,"Children, Families & Cultural Services",Debit,166.00,imperial london hotels,03/02/2016
Nottinghamshire County Council,Hospitality,"Children, Families & Cultural Services",Debit,5.88,aldi,08/01/2016
Nottinghamshire County Council,Postages,"Children, Families & Cultural Services",Debit,11.03,post office counter,20/01/2016
Nottinghamshire County Council,Postages,"Children, Families & Cultural Services",Debit,3.28,post office counter,21/01/2016
Nottinghamshire County Council,Postages,"Children, Families & Cultural Services",Debit,18.40,post office counter,22/01/2016
Nottinghamshire County Council,Postages,"Children, Families & Cultural Services",Debit,33.09,post office counter,29/01/2016
Nottinghamshire County Council,Provisions,"Children, Families & Cultural Services",Debit,35.63,sainsburys smkt,04/01/2016
Nottinghamshire County Council,Provisions,"Children, Families & Cultural Services",Debit,1.60,sainsburys s/mkts,06/01/2016
Nottinghamshire County Council,Provisions,"Children, Families & Cultural Services",Debit,16.90,asda superstore,09/01/2016
Nottinghamshire County Council,Provisions,"Children, Families & Cultural Services",Debit,28.09,sainsburys smkt,08/01/2016
Nottinghamshire County Council,Provisions,"Children, Families & Cultural Services",Debit,25.30,sainsburys smkt,14/01/2016
Nottinghamshire County Council,Provisions,"Children, Families & Cultural Services",Debit,33.25,sainsburys smkt,19/01/2016
Nottinghamshire County Council,Provisions,"Children, Families & Cultural Services",Debit,11.41,asda superstore,21/01/2016
Nottinghamshire County Council,Provisions,"Children, Families & Cultural Services",Debit,54.80,sainsburys smkt,25/01/2016
Nottinghamshire County Council,Provisions,"Children, Families & Cultural Services",Debit,8.52,sainsburys smkt,30/01/2016
Nottinghamshire County Council,Provisions,"Children, Families & Cultural Services",Debit,17.38,sainsburys smkt,01/02/2016
Nottinghamshire County Council,Materials - External,Environment & Resources,Debit,61.90,staples uk,05/01/2016
Nottinghamshire County Council,Materials - External,Environment & Resources,Debit,41.75,arco ltd,28/01/2016
Nottinghamshire County Council,Materials - External,Environment & Resources,Debit,59.28,arco ltd,28/01/2016
Nottinghamshire County Council,Materials - External,Environment & Resources,Debit,66.00,www.certsure.com,29/01/2016
Nottinghamshire County Council,Activities & Support,"Children, Families & Cultural Services",Debit,90.00,notts county council,08/01/2016
Nottinghamshire County Council,Activities & Support,"Children, Families & Cultural Services",Debit,6.45,the post office,14/01/2016
Nottinghamshire County Council,Activities & Support,"Children, Families & Cultural Services",Debit,51.00,www.tenpin.co.uk,22/01/2016
Nottinghamshire County Council,Training Fees,Environment & Resources,Debit,703.18,paypal  ,06/01/2016
Nottinghamshire County Council,Office / General Equipment,Environment & Resources,Debit,6.50,amazon uk retail,07/01/2016
Nottinghamshire County Council,Staff Training,Environment & Resources,Debit,270.00,pp ,15/01/2016
Nottinghamshire County Council,Materials - External,Environment & Resources,Debit,7.93,amazon uk marketplace,22/01/2016
Nottinghamshire County Council,Materials - External,Environment & Resources,Debit,22.64,paypal  ,27/01/2016
Nottinghamshire County Council,Staff Training,Environment & Resources,Debit,178.80,paypal  ,02/02/2016
Nottinghamshire County Council,Office / General Equipment,Environment & Resources,Debit,7.76,amazon svcs europesar,03/02/2016
Nottinghamshire County Council,Office / General Equipment,"Adult Social Care, Health & Public Protection ",Debit,119.10,amazon uk retail,14/01/2016
Nottinghamshire County Council,Office / General Equipment,"Adult Social Care, Health & Public Protection ",Debit,265.20,parkway secure storage,22/01/2016
Nottinghamshire County Council,Office / General Equipment,"Adult Social Care, Health & Public Protection ",Credit,-59.94,amazon uk marketplace,25/01/2016
Nottinghamshire County Council,Office / General Equipment,"Adult Social Care, Health & Public Protection ",Debit,15.44,amazon uk retail,02/02/2016
Nottinghamshire County Council,Building Maintenance,Environment & Resources,Debit,6.86,eyre  elliston ltd,08/01/2016
Nottinghamshire County Council,Building Maintenance,Environment & Resources,Debit,158.10,fcc electrical whs ltd,13/01/2016
Nottinghamshire County Council,Building Maintenance,Environment & Resources,Debit,3.62,erf electrical wh,22/01/2016
Nottinghamshire County Council,Personal Needs,"Children, Families & Cultural Services",Debit,33.99,halfords 0900,05/01/2016
Nottinghamshire County Council,Personal Needs,"Children, Families & Cultural Services",Debit,3.90,lord ted,05/01/2016
Nottinghamshire County Council,Personal Needs,"Children, Families & Cultural Services",Debit,20.00,sainsburys s/mkts,12/01/2016
Nottinghamshire County Council,Personal Needs,"Children, Families & Cultural Services",Debit,9.30,water meadows,12/01/2016
Nottinghamshire County Council,Personal Needs,"Children, Families & Cultural Services",Debit,2.97,mcdonalds,13/01/2016
Nottinghamshire County Council,Personal Needs,"Children, Families & Cultural Services",Debit,7.99,bm retail ltd,13/01/2016
Nottinghamshire County Council,Personal Needs,"Children, Families & Cultural Services",Debit,39.58,jtf wholesale ltd,13/01/2016
Nottinghamshire County Council,Personal Needs,"Children, Families & Cultural Services",Debit,10.78,mcdonalds,15/01/2016
Nottinghamshire County Council,Personal Needs,"Children, Families & Cultural Services",Debit,4.98,mcdonalds,26/01/2016
Nottinghamshire County Council,Office / General Equipment,Place ,Debit,210.89,arco ltd,18/01/2016
Nottinghamshire County Council,Office / General Equipment,Place ,Debit,107.98,arco ltd,21/01/2016
Nottinghamshire County Council,Office / General Equipment,Place ,Debit,7.99,maplin nottingham ng1,22/01/2016
Nottinghamshire County Council,Training Fees,"Children, Families & Cultural Services",Debit,210.00,cieh,13/01/2016
Nottinghamshire County Council,Staff Training,"Children, Families & Cultural Services",Debit,270.00,www.westminster-briefi,19/01/2016
Nottinghamshire County Council,Training Fees,"Children, Families & Cultural Services",Debit,380.00,cieh,22/01/2016
Nottinghamshire County Council,Subscriptions,"Children, Families & Cultural Services",Debit,90.00,trading standards inst,03/02/2016
Nottinghamshire County Council,Grounds Maintenance,"Adult Social Care, Health & Public Protection ",Debit,9.97,amazon uk marketplace,10/01/2016
Nottinghamshire County Council,Grounds Maintenance,"Adult Social Care, Health & Public Protection ",Debit,21.99,amazon uk marketplace,08/01/2016
Nottinghamshire County Council,Activities & Support,"Adult Social Care, Health & Public Protection ",Debit,96.00,royal centre moto,22/01/2016
Nottinghamshire County Council,Furniture,"Adult Social Care, Health & Public Protection ",Debit,116.40,healthcare direct ltd,29/01/2016
Nottinghamshire County Council,Books - General,"Children, Families & Cultural Services",Debit,6.99,afro cosmetics 4u ltd.,28/01/2016
Nottinghamshire County Council,Books - General,"Children, Families & Cultural Services",Debit,15.94,www.splashabout.net,28/01/2016
Nottinghamshire County Council,Books - General,"Children, Families & Cultural Services",Debit,10.60,beauty expert,28/01/2016
Nottinghamshire County Council,Books - General,"Children, Families & Cultural Services",Debit,16.54,amazon uk marketplace,03/02/2016
Nottinghamshire County Council,Materials - External,Environment & Resources,Debit,43.67,plumb center tw,06/01/2016
Nottinghamshire County Council,Materials - External,Environment & Resources,Debit,63.12,plumb center tw,06/01/2016
Nottinghamshire County Council,Materials - External,Environment & Resources,Debit,34.15,plumb center tw,07/01/2016
Nottinghamshire County Council,Materials - External,Environment & Resources,Debit,6.00,plumb center tw,08/01/2016
Nottinghamshire County Council,Materials - External,Environment & Resources,Debit,68.30,plumb center tw,08/01/2016
Nottinghamshire County Council,Materials - External,Environment & Resources,Debit,6.00,plumb center tw,08/01/2016
Nottinghamshire County Council,Materials - External,Environment & Resources,Debit,86.52,tubes fittings,15/01/2016
Nottinghamshire County Council,Materials - External,Environment & Resources,Debit,82.94,tubes fittings,18/01/2016
Nottinghamshire County Council,Materials - External,Environment & Resources,Debit,1.90,plumb center tw,22/01/2016
Nottinghamshire County Council,Materials - External,Environment & Resources,Debit,16.97,plumb center tw,22/01/2016
Nottinghamshire County Council,Materials - External,Environment & Resources,Debit,26.90,plumb center tw,22/01/2016
Nottinghamshire County Council,Materials - External,Environment & Resources,Debit,39.08,plumb center tw,22/01/2016
Nottinghamshire County Council,Materials - External,Environment & Resources,Debit,2.41,plumb center tw,22/01/2016
Nottinghamshire County Council,Materials - External,Environment & Resources,Debit,6.48,plumb center tw,22/01/2016
Nottinghamshire County Council,Provisions,"Children, Families & Cultural Services",Debit,55.66,aldi,18/01/2016
Nottinghamshire County Council,Activities & Support,"Children, Families & Cultural Services",Debit,51.00,www.tenpin.co.uk,26/01/2016
Nottinghamshire County Council,Aftercare - Equipment,"Children, Families & Cultural Services",Debit,27.99,screwfix direct,02/02/2016
Nottinghamshire County Council,Aftercare - Equipment,"Children, Families & Cultural Services",Debit,145.50,tvlicensing.co.uk,01/02/2016
Nottinghamshire County Council,Activities & Support,"Children, Families & Cultural Services",Debit,35.00,www.ico.gov.uk,02/02/2016
Nottinghamshire County Council,Other Fee's & Services,Environment & Resources,Debit,70.00,www.moneyclaim.gov,06/01/2016
Nottinghamshire County Council,Other Fee's & Services,Environment & Resources,Debit,10.00,www.gov.uk,06/01/2016
Nottinghamshire County Council,Other Fee's & Services,Environment & Resources,Debit,55.00,www.justice.gov.uk,06/01/2016
Nottinghamshire County Council,Other Fee's & Services,Environment & Resources,Debit,105.00,www.moneyclaim.gov,07/01/2016
Nottinghamshire County Council,Other Fee's & Services,Environment & Resources,Debit,105.00,www.moneyclaim.gov,11/01/2016
Nottinghamshire County Council,Other Fee's & Services,Environment & Resources,Debit,25.00,www.moneyclaim.gov,11/01/2016
Nottinghamshire County Council,Other Fee's & Services,Environment & Resources,Debit,10.00,www.gov.uk,12/01/2016
Nottinghamshire County Council,Other Fee's & Services,Environment & Resources,Debit,25.00,www.moneyclaim.gov,12/01/2016
Nottinghamshire County Council,Other Fee's & Services,Environment & Resources,Debit,35.00,www.moneyclaim.gov,15/01/2016
Nottinghamshire County Council,Other Fee's & Services,Environment & Resources,Debit,410.00,www.moneyclaim.gov,15/01/2016
Nottinghamshire County Council,Other Fee's & Services,Environment & Resources,Debit,70.00,www.moneyclaim.gov,18/01/2016
Nottinghamshire County Council,Other Fee's & Services,Environment & Resources,Debit,105.00,www.moneyclaim.gov,21/01/2016
Nottinghamshire County Council,Other Fee's & Services,Environment & Resources,Debit,70.00,www.moneyclaim.gov,22/01/2016
Nottinghamshire County Council,Other Fee's & Services,Environment & Resources,Debit,70.00,www.moneyclaim.gov,22/01/2016
Nottinghamshire County Council,Other Fee's & Services,Environment & Resources,Debit,70.00,www.moneyclaim.gov,02/02/2016
Nottinghamshire County Council,Stationery,"Children, Families & Cultural Services",Debit,10.70,amazon uk marketplace,13/01/2016
Nottinghamshire County Council,Stationery,"Children, Families & Cultural Services",Debit,167.74,amazon uk marketplace,14/01/2016
Nottinghamshire County Council,Stationery,"Children, Families & Cultural Services",Debit,35.72,amazon uk marketplace,14/01/2016
Nottinghamshire County Council,Taxi Fares,"Children, Families & Cultural Services",Debit,27.40,ace of mansfield,20/01/2016
Nottinghamshire County Council,Foster Carers Equipment,"Children, Families & Cultural Services",Debit,288.94,argos retail group,26/01/2016
Nottinghamshire County Council,Foster Carers Equipment,"Children, Families & Cultural Services",Debit,29.99,argos retail group,26/01/2016
Nottinghamshire County Council,Subsistence Allowance,"Children, Families & Cultural Services",Debit,619.00,trailfinders,27/01/2016
Nottinghamshire County Council,Subsistence Allowance,"Children, Families & Cultural Services",Debit,99.00,trailfinders,01/02/2016
Nottinghamshire County Council,Activities & Support,"Adult Social Care, Health & Public Protection ",Debit,38.96,asda home shopping,08/01/2016
Nottinghamshire County Council,Activities & Support,"Adult Social Care, Health & Public Protection ",Debit,0.40,asda home shopping,08/01/2016
Nottinghamshire County Council,Activities & Support,"Adult Social Care, Health & Public Protection ",Debit,0.40,asda home shopping,14/01/2016
Nottinghamshire County Council,Activities & Support,"Adult Social Care, Health & Public Protection ",Debit,80.87,asda home shopping,14/01/2016
Nottinghamshire County Council,Activities & Support,"Adult Social Care, Health & Public Protection ",Debit,1.30,asda home shopping,21/01/2016
Nottinghamshire County Council,Activities & Support,"Adult Social Care, Health & Public Protection ",Credit,-0.65,asda home shopping,21/01/2016
Nottinghamshire County Council,Activities & Support,"Adult Social Care, Health & Public Protection ",Debit,127.73,asda home shopping,21/01/2016
Nottinghamshire County Council,Activities & Support,"Adult Social Care, Health & Public Protection ",Debit,29.46,asda home shopping,28/01/2016
Nottinghamshire County Council,Activities & Support,"Children, Families & Cultural Services",Debit,34.83,www.bakerross.co.uk,15/01/2016
Nottinghamshire County Council,Activities & Support,"Children, Families & Cultural Services",Debit,45.00,wilko retail limit,23/01/2016
Nottinghamshire County Council,Activities & Support,"Children, Families & Cultural Services",Debit,3.50,iceland,27/01/2016
Nottinghamshire County Council,Activities & Support,"Children, Families & Cultural Services",Debit,1.80,aldi,27/01/2016
Nottinghamshire County Council,Activities & Support,"Children, Families & Cultural Services",Debit,3.00,iceland,28/01/2016
Nottinghamshire County Council,Activities & Support,"Children, Families & Cultural Services",Debit,3.49,farmfoods- worksop,27/01/2016
Nottinghamshire County Council,Activities & Support,"Children, Families & Cultural Services",Debit,5.48,aldi,02/02/2016
Nottinghamshire County Council,Activities & Support,"Adult Social Care, Health & Public Protection ",Debit,145.00,amazon uk marketplace,04/01/2016
Nottinghamshire County Council,Office / General Equipment,"Adult Social Care, Health & Public Protection ",Debit,32.98,euroffice.co.uk,05/01/2016
Nottinghamshire County Council,Office / General Equipment,"Adult Social Care, Health & Public Protection ",Debit,34.99,maxoot,06/01/2016
Nottinghamshire County Council,TV Licences,"Adult Social Care, Health & Public Protection ",Debit,145.50,tv licensing,19/01/2016
Nottinghamshire County Council,Other Fee's & Services,"Adult Social Care, Health & Public Protection ",Debit,205.00,hmcourts-service.g,14/01/2016
Nottinghamshire County Council,Fuel - Petrol,"Adult Social Care, Health & Public Protection ",Debit,37.24,tesco pay at pump 4140,18/01/2016
Nottinghamshire County Council,Other Fee's & Services,"Adult Social Care, Health & Public Protection ",Debit,179.94,www.192.com,25/01/2016
Nottinghamshire County Council,Fuel - Petrol,"Adult Social Care, Health & Public Protection ",Debit,29.12,tesco pay at pump 4140,28/01/2016
Nottinghamshire County Council,Fuel - Diesel,"Adult Social Care, Health & Public Protection ",Debit,61.01,tesco pay at pump 4140,02/02/2016
Nottinghamshire County Council,Activities & Support,"Children, Families & Cultural Services",Debit,29.64,mansfield superbowl,05/01/2016
Nottinghamshire County Council,Activities & Support,"Children, Families & Cultural Services",Debit,4.00,mansfield superbowl,05/01/2016
Nottinghamshire County Council,Activities & Support,"Children, Families & Cultural Services",Debit,5.48,mcdonalds,07/01/2016
Nottinghamshire County Council,Activities & Support,"Children, Families & Cultural Services",Debit,3.99,central eng coop,03/02/2016
Nottinghamshire County Council,Legal Fees,"Policy, Planning & Corporate Services",Debit,83.52,gotocitrix.com,15/01/2016
Nottinghamshire County Council,Legal Fees,"Policy, Planning & Corporate Services",Debit,280.00,county court,19/01/2016
Nottinghamshire County Council,Legal Fees,"Policy, Planning & Corporate Services",Credit,-70.80,www.severntrentsearche,19/01/2016
Nottinghamshire County Council,Legal Fees,"Policy, Planning & Corporate Services",Debit,50.00,www.justice.gov.uk,25/01/2016
Nottinghamshire County Council,Legal Fees,"Policy, Planning & Corporate Services",Debit,418.50,amazon uk marketplace,29/01/2016
Nottinghamshire County Council,Legal Fees,"Policy, Planning & Corporate Services",Debit,50.00,www.justice.gov.uk,02/02/2016
Nottinghamshire County Council,Legal Fees,"Policy, Planning & Corporate Services",Debit,50.00,www.justice.gov.uk,02/02/2016
Nottinghamshire County Council,Legal Fees,"Policy, Planning & Corporate Services",Debit,155.00,www.justice.gov.uk,02/02/2016
Nottinghamshire County Council,Legal Fees,"Policy, Planning & Corporate Services",Debit,280.00,www.justice.gov.uk,02/02/2016
Nottinghamshire County Council,Legal Fees,"Policy, Planning & Corporate Services",Debit,155.00,www.justice.gov.uk,02/02/2016
Nottinghamshire County Council,Legal Fees,"Policy, Planning & Corporate Services",Debit,155.00,www.justice.gov.uk,02/02/2016
Nottinghamshire County Council,Legal Fees,"Policy, Planning & Corporate Services",Debit,155.00,www.justice.gov.uk,02/02/2016
Nottinghamshire County Council,Legal Fees,"Policy, Planning & Corporate Services",Debit,155.00,www.justice.gov.uk,02/02/2016
Nottinghamshire County Council,Legal Fees,"Policy, Planning & Corporate Services",Debit,50.00,www.justice.gov.uk,02/02/2016
Nottinghamshire County Council,Legal Fees,"Policy, Planning & Corporate Services",Debit,321.20,www.severntrentsearche,02/02/2016
Nottinghamshire County Council,Minor Works,"Children, Families & Cultural Services",Debit,8.97,amazon uk marketplace,15/01/2016
Nottinghamshire County Council,Minor Works,"Children, Families & Cultural Services",Debit,265.98,amazon uk marketplace,25/01/2016
Nottinghamshire County Council,Office / General Equipment,"Children, Families & Cultural Services",Debit,19.99,sainsburys s/mkts,04/01/2016
Nottinghamshire County Council,Provisions,"Children, Families & Cultural Services",Debit,59.71,aldi,04/01/2016
Nottinghamshire County Council,Personal Needs,"Children, Families & Cultural Services",Debit,3.00,co-op group 017091,06/01/2016
Nottinghamshire County Council,Personal Needs,"Children, Families & Cultural Services",Debit,28.00,uk superbowl - newark,24/01/2016
Nottinghamshire County Council,Personal Needs,"Children, Families & Cultural Services",Debit,8.00,uk superbowl - newark,24/01/2016
Nottinghamshire County Council,Cleaning Materials,"Children, Families & Cultural Services",Debit,5.65,sainsburys s/mkts,26/01/2016
Nottinghamshire County Council,Provisions,"Children, Families & Cultural Services",Debit,69.74,aldi,26/01/2016
Nottinghamshire County Council,Provisions,"Children, Families & Cultural Services",Debit,25.50,black bull,27/01/2016
Nottinghamshire County Council,Office / General Equipment,"Children, Families & Cultural Services",Debit,174.82,the range,28/01/2016
Nottinghamshire County Council,Office / General Equipment,"Children, Families & Cultural Services",Debit,11.89,argos ltd,28/01/2016
Nottinghamshire County Council,Office / General Equipment,"Children, Families & Cultural Services",Debit,6.91,poundstretcher 136,28/01/2016
Nottinghamshire County Council,Personal Needs,"Children, Families & Cultural Services",Debit,3.00,timpson ltd,29/01/2016
Nottinghamshire County Council,Activities & Support,"Children, Families & Cultural Services",Debit,30.11,b  m retail,12/01/2016
Nottinghamshire County Council,Activities & Support,"Children, Families & Cultural Services",Debit,4.00,sainsburys s/mkts,12/01/2016
Nottinghamshire County Council,Activities & Support,"Children, Families & Cultural Services",Debit,2.29,co-op group 011261,12/01/2016
Nottinghamshire County Council,Activities & Support,"Children, Families & Cultural Services",Debit,2.75,co-op group 011261,13/01/2016
Nottinghamshire County Council,Activities & Support,"Children, Families & Cultural Services",Debit,5.37,co-op group 011261,14/01/2016
Nottinghamshire County Council,Activities & Support,"Children, Families & Cultural Services",Debit,2.14,central eng coop r,14/01/2016
Nottinghamshire County Council,Activities & Support,"Children, Families & Cultural Services",Debit,35.64,b  m retail,20/01/2016
Nottinghamshire County Council,Activities & Support,"Children, Families & Cultural Services",Debit,4.50,cancer research ltd,20/01/2016
Nottinghamshire County Council,Activities & Support,"Children, Families & Cultural Services",Debit,22.20,aldi,26/01/2016
Nottinghamshire County Council,Activities & Support,"Children, Families & Cultural Services",Debit,33.11,b  m retail,26/01/2016
Nottinghamshire County Council,Activities & Support,"Children, Families & Cultural Services",Debit,11.42,asda superstore,27/01/2016
Nottinghamshire County Council,Activities & Support,"Children, Families & Cultural Services",Debit,1.84,co-op group 011261,27/01/2016
Nottinghamshire County Council,Activities & Support,"Children, Families & Cultural Services",Debit,3.70,wilko retail limit,01/02/2016
Nottinghamshire County Council,Activities & Support,"Children, Families & Cultural Services",Debit,17.84,b  m retail,02/02/2016
Nottinghamshire County Council,Postages,"Adult Social Care, Health & Public Protection ",Debit,12.98,post office counter,15/01/2016
Nottinghamshire County Council,Cleaning Materials,"Adult Social Care, Health & Public Protection ",Debit,2.98,bm retail ltd,22/01/2016
Nottinghamshire County Council,Contract Cleaning,"Adult Social Care, Health & Public Protection ",Debit,206.32,bio industries ltd,01/02/2016
Nottinghamshire County Council,Building Maintenance,Environment & Resources,Debit,9.23,b  q,26/01/2016
Nottinghamshire County Council,Building Maintenance,Environment & Resources,Debit,61.54,jwl architectural iron,04/01/2016
Nottinghamshire County Council,Building Maintenance,Environment & Resources,Debit,54.30,jwl architectural iron,08/01/2016
Nottinghamshire County Council,Building Maintenance,Environment & Resources,Debit,27.00,jwl architectural iron,26/01/2016
Nottinghamshire County Council,Building Maintenance,Environment & Resources,Debit,8.40,jwl architectural iron,27/01/2016
Nottinghamshire County Council,Building Maintenance,Environment & Resources,Debit,18.64,jwl architectural iron,28/01/2016
Nottinghamshire County Council,Building Maintenance,Environment & Resources,Debit,68.38,jwl architectural iron,02/02/2016
Nottinghamshire County Council,Office / General Equipment,"Policy, Planning & Corporate Services",Debit,63.13,wp-welsh boxes  e,06/01/2016
Nottinghamshire County Council,Office / General Equipment,"Policy, Planning & Corporate Services",Debit,25.68,www.buy-stationery.co.,13/01/2016
Nottinghamshire County Council,Activities & Support,"Children, Families & Cultural Services",Debit,10.89,tesco stores 5329,14/01/2016
Nottinghamshire County Council,Activities & Support,"Children, Families & Cultural Services",Debit,1.40,asda stores,15/01/2016
Nottinghamshire County Council,Activities & Support,"Children, Families & Cultural Services",Debit,164.96,booker limited nottingha,14/01/2016
Nottinghamshire County Council,Activities & Support,"Children, Families & Cultural Services",Debit,7.40,sainsburys s/mkts,20/01/2016
Nottinghamshire County Council,Activities & Support,"Children, Families & Cultural Services",Debit,1.25,co-op group 310059,21/01/2016
Nottinghamshire County Council,Activities & Support,"Children, Families & Cultural Services",Debit,16.50,tesco stores 2381,22/01/2016
Nottinghamshire County Council,Activities & Support,"Children, Families & Cultural Services",Debit,5.48,tesco stores 5329,25/01/2016
Nottinghamshire County Council,Activities & Support,"Children, Families & Cultural Services",Debit,10.87,tesco stores 5329,27/01/2016
Nottinghamshire County Council,Activities & Support,"Children, Families & Cultural Services",Debit,17.06,asda stores,28/01/2016
Nottinghamshire County Council,Activities & Support,"Children, Families & Cultural Services",Debit,3.44,tesco stores 5329,01/02/2016
Nottinghamshire County Council,Specialist Equipment,Place,Debit,49.98,newark  sherwood lock,19/01/2016
Nottinghamshire County Council,Activities & Support,"Children, Families & Cultural Services",Debit,2.84,b  q,14/01/2016
Nottinghamshire County Council,Activities & Support,"Children, Families & Cultural Services",Debit,8.34,b  q,14/01/2016
Nottinghamshire County Council,Activities & Support,"Children, Families & Cultural Services",Debit,2.58,b  q,14/01/2016
Nottinghamshire County Council,Activities & Support,"Children, Families & Cultural Services",Debit,68.41,the range,13/01/2016
Nottinghamshire County Council,Activities & Support,"Children, Families & Cultural Services",Debit,18.91,tesco stores 2733,14/01/2016
Nottinghamshire County Council,Activities & Support,"Children, Families & Cultural Services",Debit,9.59,asda storess4342,14/01/2016
Nottinghamshire County Council,Activities & Support,"Children, Families & Cultural Services",Debit,43.06,t j morris ltd,14/01/2016
Nottinghamshire County Council,Activities & Support,"Children, Families & Cultural Services",Debit,20.53,wm morrisons,21/01/2016
Nottinghamshire County Council,Activities & Support,"Children, Families & Cultural Services",Debit,34.11,the range,25/01/2016
Nottinghamshire County Council,Activities & Support,"Children, Families & Cultural Services",Debit,14.29,home bargains,25/01/2016
Nottinghamshire County Council,Activities & Support,"Children, Families & Cultural Services",Debit,16.48,wm morrisons,28/01/2016
Nottinghamshire County Council,Activities & Support,"Children, Families & Cultural Services",Debit,17.40,ikea,28/01/2016
Nottinghamshire County Council,Activities & Support,"Children, Families & Cultural Services",Debit,3.00,tesco store 3439,12/01/2016
Nottinghamshire County Council,Activities & Support,"Children, Families & Cultural Services",Debit,17.73,wilko retail limit,02/02/2016
Nottinghamshire County Council,Activities & Support,"Children, Families & Cultural Services",Debit,17.92,lidl uk,14/01/2016
Nottinghamshire County Council,Activities & Support,"Children, Families & Cultural Services",Debit,11.99,wilko retail limit,18/01/2016
Nottinghamshire County Council,Activities & Support,"Children, Families & Cultural Services",Debit,8.44,central eng co-ope,26/01/2016
Nottinghamshire County Council,Activities & Support,"Children, Families & Cultural Services",Debit,6.00,sainsburys spmkts,01/02/2016
Nottinghamshire County Council,Activities & Support,"Children, Families & Cultural Services",Debit,7.97,central eng co-ope,02/02/2016
Nottinghamshire County Council,Other Fee's & Services,"Children, Families & Cultural Services",Debit,10.00,http://www.derbyshire.,07/01/2016
Nottinghamshire County Council,Personal Needs,"Children, Families & Cultural Services",Debit,13.99,itunes.com/bill,15/01/2016
Nottinghamshire County Council,Personal Needs,"Children, Families & Cultural Services",Debit,21.00,south forest leisure c,22/01/2016
Nottinghamshire County Council,Software Purchases,Resources ,Debit,106.44,bc.basecamp ,12/01/2016
Nottinghamshire County Council,Software Purchases,Resources ,Debit,644.36,godaddy com europe,19/01/2016
Nottinghamshire County Council,Books - General,Resources ,Debit,81.00,amazon uk retail,20/01/2016
Nottinghamshire County Council,Software Purchases,Resources ,Debit,76.36,pure chat inc,23/01/2016
Nottinghamshire County Council,Stationery,"Adult Social Care, Health & Public Protection ",Debit,7.62,sp  sherwood dia,07/01/2016
Nottinghamshire County Council,Office / General Equipment,"Adult Social Care, Health & Public Protection ",Debit,60.11,fast key services,01/02/2016
Nottinghamshire County Council,Other Fee's & Services,"Children, Families & Cultural Services",Debit,7.53,w boyes  co ltd kirkb,05/01/2016
Nottinghamshire County Council,Other Fee's & Services,"Children, Families & Cultural Services",Debit,2.93,w boyes  co ltd kirkb,05/01/2016
Nottinghamshire County Council,Other Fee's & Services,"Children, Families & Cultural Services",Debit,159.95,www.toolstation.com,14/01/2016
Nottinghamshire County Council,Other Fee's & Services,"Children, Families & Cultural Services",Debit,207.98,www.galatent.co.uk/,19/01/2016
Nottinghamshire County Council,Other Fee's & Services,"Children, Families & Cultural Services",Debit,35.00,the mighty creatives,25/01/2016
Nottinghamshire County Council,Other Fee's & Services,"Children, Families & Cultural Services",Debit,30.29,w boyes  co ltd kirkb,02/02/2016
Nottinghamshire County Council,Activities & Support,"Children, Families & Cultural Services",Debit,17.50,mansfield superbowl,05/01/2016
Nottinghamshire County Council,Activities & Support,"Children, Families & Cultural Services",Debit,22.55,mansfield superbowl,08/01/2016
Nottinghamshire County Council,Activities & Support,"Children, Families & Cultural Services",Debit,12.50,mansfield superbowl,08/01/2016
Nottinghamshire County Council,Activities & Support,"Children, Families & Cultural Services",Debit,4.59,co-op group 017191,12/01/2016
Nottinghamshire County Council,Activities & Support,"Children, Families & Cultural Services",Debit,72.00,sherwood pines cycles,12/01/2016
Nottinghamshire County Council,Activities & Support,"Children, Families & Cultural Services",Debit,2.75,w m morrisons cafe,21/01/2016
Nottinghamshire County Council,Activities & Support,"Children, Families & Cultural Services",Debit,5.10,costa coffee mansfield,29/01/2016
Nottinghamshire County Council,Activities & Support,"Children, Families & Cultural Services",Debit,54.88,the range,02/02/2016
Nottinghamshire County Council,Activities & Support,"Children, Families & Cultural Services",Debit,1.98,home bargains,02/02/2016
Nottinghamshire County Council,Activities & Support,"Children, Families & Cultural Services",Debit,13.00,ikea sacat,02/02/2016
Nottinghamshire County Council,Training Fees,"Adult Social Care, Health & Public Protection ",Debit,"2,343.94",currys,07/01/2016
Nottinghamshire County Council,Training Fees,"Adult Social Care, Health & Public Protection ",Debit,185.40,cvle / mplc,14/01/2016
Nottinghamshire County Council,Training Fees,"Adult Social Care, Health & Public Protection ",Debit,31.00,tesco stores 5379,29/01/2016
Nottinghamshire County Council,Clients - H & S Equipt,"Children, Families & Cultural Services",Debit,24.07,home bargains swadlinc,15/01/2016
Nottinghamshire County Council,Clients - H & S Equipt,"Children, Families & Cultural Services",Debit,42.73,argos ltd,15/01/2016
Nottinghamshire County Council,Clients - H & S Equipt,"Children, Families & Cultural Services",Debit,257.93,argos retail group,18/01/2016
Nottinghamshire County Council,Clients - H & S Equipt,"Children, Families & Cultural Services",Debit,182.20,eastmidlandstrains,01/02/2016
Nottinghamshire County Council,Office / General Equipment,"Policy, Planning & Corporate Services",Debit,26.00,times newspapers ltd,22/01/2016
Nottinghamshire County Council,Provisions,"Children, Families & Cultural Services",Debit,29.98,tesco stores 5437,15/01/2016
Nottinghamshire County Council,Provisions,"Children, Families & Cultural Services",Debit,19.59,aldi,15/01/2016
Nottinghamshire County Council,Provisions,"Children, Families & Cultural Services",Debit,85.58,aldi,25/01/2016
Nottinghamshire County Council,Clothing/Shoes/Uniforms,"Children, Families & Cultural Services",Debit,54.05,asda superstore 04261,26/01/2016
Nottinghamshire County Council,Clothing/Shoes/Uniforms,"Children, Families & Cultural Services",Debit,55.02,sportsdirect 292,02/02/2016
Nottinghamshire County Council,Clothing/Shoes/Uniforms,"Children, Families & Cultural Services",Debit,55.04,sportsdirect 292,03/02/2016
Nottinghamshire County Council,Activities & Support,"Children, Families & Cultural Services",Debit,9.60,tesco stores 2995,13/01/2016
Nottinghamshire County Council,Activities & Support,"Children, Families & Cultural Services",Debit,5.59,tesco stores 2995,13/01/2016
Nottinghamshire County Council,Activities & Support,"Children, Families & Cultural Services",Debit,5.00,asda superstore 04261,19/01/2016
Nottinghamshire County Council,Activities & Support,"Children, Families & Cultural Services",Debit,2.00,one stop 2353,20/01/2016
Nottinghamshire County Council,Cleaning Materials,"Adult Social Care, Health & Public Protection ",Debit,150.55,jangro (leicester) ltd,13/01/2016
Nottinghamshire County Council,Cleaning Materials,"Adult Social Care, Health & Public Protection ",Debit,124.22,jangro (leicester) ltd,13/01/2016
Nottinghamshire County Council,Cleaning Materials,"Adult Social Care, Health & Public Protection ",Debit,357.86,jangro (leicester) ltd,03/02/2016
Nottinghamshire County Council,Activities & Support,"Children, Families & Cultural Services",Debit,299.00,paypal  ,07/01/2016
Nottinghamshire County Council,Provisions,"Children, Families & Cultural Services",Debit,34.88,tesco stores 2995,10/01/2016
Nottinghamshire County Council,Provisions,"Children, Families & Cultural Services",Debit,56.73,tesco stores 2995,22/01/2016
Nottinghamshire County Council,Teaching Equipment,"Children, Families & Cultural Services",Debit,107.89,paypal  ,04/01/2016
Nottinghamshire County Council,Teaching Equipment,"Children, Families & Cultural Services",Debit,21.82,www.officestationarywa,04/01/2016
Nottinghamshire County Council,Teaching Equipment,"Children, Families & Cultural Services",Debit,128.91,the makaton charit,13/01/2016
Nottinghamshire County Council,Teaching Equipment,"Children, Families & Cultural Services",Debit,208.89,paypal  ,13/01/2016
Nottinghamshire County Council,Teaching Equipment,"Children, Families & Cultural Services",Debit,13.39,amazon uk retail,13/01/2016
Nottinghamshire County Council,Teaching Equipment,"Children, Families & Cultural Services",Debit,23.25,amazon uk retail,13/01/2016
Nottinghamshire County Council,Teaching Equipment,"Children, Families & Cultural Services",Debit,46.32,amazon uk retail,13/01/2016
Nottinghamshire County Council,Teaching Equipment,"Children, Families & Cultural Services",Debit,34.46,the makaton charit,14/01/2016
Nottinghamshire County Council,Teaching Equipment,"Children, Families & Cultural Services",Debit,254.70,the makaton charit,14/01/2016
Nottinghamshire County Council,Teaching Equipment,"Children, Families & Cultural Services",Debit,70.70,paypal  ,14/01/2016
Nottinghamshire County Council,Teaching Equipment,"Children, Families & Cultural Services",Debit,13.17,amazon uk retail,14/01/2016
Nottinghamshire County Council,Teaching Equipment,"Children, Families & Cultural Services",Debit,26.34,amazon uk retail,15/01/2016
Nottinghamshire County Council,Teaching Equipment,"Children, Families & Cultural Services",Debit,11.79,amazon uk retail,18/01/2016
Nottinghamshire County Council,Teaching Equipment,"Children, Families & Cultural Services",Debit,19.78,the makaton charit,19/01/2016
Nottinghamshire County Council,Teaching Equipment,"Children, Families & Cultural Services",Debit,68.40,www.gl-education.c,21/01/2016
Nottinghamshire County Council,Teaching Equipment,"Children, Families & Cultural Services",Debit,202.44,amazon uk marketplace,23/01/2016
Nottinghamshire County Council,Teaching Equipment,"Children, Families & Cultural Services",Debit,16.45,amazon uk marketplace,23/01/2016
Nottinghamshire County Council,Teaching Equipment,"Children, Families & Cultural Services",Debit,13.80,sp  down syndrome edu,22/01/2016
Nottinghamshire County Council,Teaching Equipment,"Children, Families & Cultural Services",Debit,146.40,www.gl-education.c,22/01/2016
Nottinghamshire County Council,Teaching Equipment,"Children, Families & Cultural Services",Debit,256.06,amazon uk marketplace,23/01/2016
Nottinghamshire County Council,Teaching Equipment,"Children, Families & Cultural Services",Debit,67.69,amazon uk marketplace,25/01/2016
Nottinghamshire County Council,Teaching Equipment,"Children, Families & Cultural Services",Debit,18.55,amazon uk marketplace,25/01/2016
Nottinghamshire County Council,Teaching Equipment,"Children, Families & Cultural Services",Debit,150.36,amazon uk marketplace,25/01/2016
Nottinghamshire County Council,Teaching Equipment,"Children, Families & Cultural Services",Debit,405.86,amazon uk marketplace,29/01/2016
Nottinghamshire County Council,Teaching Equipment,"Children, Families & Cultural Services",Debit,144.00,waterstones.com,02/02/2016
Nottinghamshire County Council,Car Leasing Scheme,Environment & Resources,Debit,75.00,nottingham cc,04/01/2016
Nottinghamshire County Council,Materials - External,Environment & Resources,Debit,19.40,bs nottingham sout,06/01/2016
Nottinghamshire County Council,Road Tax,Environment & Resources,Debit,227.50,www.dvla.gov.uk,07/01/2016
Nottinghamshire County Council,Road Tax,Environment & Resources,Debit,227.50,www.dvla.gov.uk,07/01/2016
Nottinghamshire County Council,Road Tax,Environment & Resources,Debit,227.50,www.dvla.gov.uk,07/01/2016
Nottinghamshire County Council,Road Tax,Environment & Resources,Debit,227.50,www.dvla.gov.uk,07/01/2016
Nottinghamshire County Council,Road Tax,Environment & Resources,Debit,227.50,www.dvla.gov.uk,07/01/2016
Nottinghamshire County Council,Road Tax,Environment & Resources,Debit,227.50,www.dvla.gov.uk,07/01/2016
Nottinghamshire County Council,Road Tax,Environment & Resources,Debit,167.50,www.dvla.gov.uk,07/01/2016
Nottinghamshire County Council,MOT Tests,Environment & Resources,Debit,"2,000.00",dvsa,07/01/2016
Nottinghamshire County Council,Road Tax,Environment & Resources,Debit,227.50,www.dvla.gov.uk,07/01/2016
Nottinghamshire County Council,Road Tax,Environment & Resources,Debit,202.50,www.dvla.gov.uk,07/01/2016
Nottinghamshire County Council,Road Tax,Environment & Resources,Debit,652.50,www.dvla.gov.uk,08/01/2016
Nottinghamshire County Council,Road Tax,Environment & Resources,Debit,202.50,www.dvla.gov.uk,08/01/2016
Nottinghamshire County Council,Road Tax,Environment & Resources,Debit,202.50,www.dvla.gov.uk,08/01/2016
Nottinghamshire County Council,Road Tax,Environment & Resources,Debit,202.50,www.dvla.gov.uk,08/01/2016
Nottinghamshire County Council,Road Tax,Environment & Resources,Debit,167.50,www.dvla.gov.uk,08/01/2016
Nottinghamshire County Council,Road Tax,Environment & Resources,Debit,202.50,www.dvla.gov.uk,08/01/2016
Nottinghamshire County Council,Road Tax,Environment & Resources,Debit,202.50,www.dvla.gov.uk,08/01/2016
Nottinghamshire County Council,Road Tax,Environment & Resources,Debit,167.50,www.dvla.gov.uk,08/01/2016
Nottinghamshire County Council,Road Tax,Environment & Resources,Debit,212.50,www.dvla.gov.uk,08/01/2016
Nottinghamshire County Council,Road Tax,Environment & Resources,Debit,212.50,www.dvla.gov.uk,08/01/2016
Nottinghamshire County Council,Road Tax,Environment & Resources,Debit,132.50,www.dvla.gov.uk,11/01/2016
Nottinghamshire County Council,Road Tax,Environment & Resources,Debit,212.50,www.dvla.gov.uk,11/01/2016
Nottinghamshire County Council,Road Tax,Environment & Resources,Debit,227.50,www.dvla.gov.uk,11/01/2016
Nottinghamshire County Council,Road Tax,Environment & Resources,Debit,167.50,www.dvla.gov.uk,11/01/2016
Nottinghamshire County Council,Road Tax,Environment & Resources,Debit,227.50,www.dvla.gov.uk,11/01/2016
Nottinghamshire County Council,Road Tax,Environment & Resources,Debit,132.50,www.dvla.gov.uk,11/01/2016
Nottinghamshire County Council,Road Tax,Environment & Resources,Debit,227.50,www.dvla.gov.uk,11/01/2016
Nottinghamshire County Council,Road Tax,Environment & Resources,Debit,227.50,www.dvla.gov.uk,11/01/2016
Nottinghamshire County Council,Office / General Equipment,Environment & Resources,Debit,484.80,cummins diesel,14/01/2016
Nottinghamshire County Council,MOT Tests,Environment & Resources,Debit,"4,000.00",dvsa,14/01/2016
Nottinghamshire County Council,Road Tax,Environment & Resources,Debit,227.50,www.dvla.gov.uk,19/01/2016
Nottinghamshire County Council,Road Tax,Environment & Resources,Debit,227.50,www.dvla.gov.uk,19/01/2016
Nottinghamshire County Council,Road Tax,Environment & Resources,Debit,227.50,www.dvla.gov.uk,19/01/2016
Nottinghamshire County Council,Office / General Equipment,Environment & Resources,Debit,259.40,crown paints ltd,19/01/2016
Nottinghamshire County Council,Training Fees,Environment & Resources,Debit,366.00,notts-fire.gov.uk,21/01/2016
Nottinghamshire County Council,Road Tax,Environment & Resources,Debit,227.50,www.dvla.gov.uk,22/01/2016
Nottinghamshire County Council,MOT Tests,Environment & Resources,Debit,"5,000.00",dvsa,22/01/2016
Nottinghamshire County Council,Road Tax,Environment & Resources,Debit,227.50,www.dvla.gov.uk,22/01/2016
Nottinghamshire County Council,MOT Tests,Environment & Resources,Debit,"4,000.00",dvsa,26/01/2016
Nottinghamshire County Council,Road Tax,Environment & Resources,Debit,227.50,www.dvla.gov.uk,26/01/2016
Nottinghamshire County Council,Road Tax,Environment & Resources,Debit,607.50,post office counter,27/01/2016
Nottinghamshire County Council,Postages,Environment & Resources,Debit,7.56,post office counter,27/01/2016
Nottinghamshire County Council,Other Fee's & Services,Environment & Resources,Debit,257.00,dvsa,28/01/2016
Nottinghamshire County Council,Materials - External,Environment & Resources,Debit,110.50,bs nottingham rena,29/01/2016
Nottinghamshire County Council,Books - General,Environment & Resources,Debit,450.00,glasss information serv,02/02/2016
Nottinghamshire County Council,Materials - External,Environment & Resources,Debit,61.33,bs nottingham rena,02/02/2016
Nottinghamshire County Council,Activities & Support,"Children, Families & Cultural Services",Debit,9.95,tesco stores 5437,07/01/2016
Nottinghamshire County Council,Activities & Support,"Children, Families & Cultural Services",Debit,10.74,cafexpresshop,13/01/2016
Nottinghamshire County Council,Activities & Support,"Children, Families & Cultural Services",Debit,20.17,subway harewood place,13/01/2016
Nottinghamshire County Council,Activities & Support,"Children, Families & Cultural Services",Debit,5.35,cafexpresshop,13/01/2016
Nottinghamshire County Council,Activities & Support,"Children, Families & Cultural Services",Debit,5.67,servest,13/01/2016
Nottinghamshire County Council,Activities & Support,"Children, Families & Cultural Services",Debit,19.05,tesco stores 5437,16/01/2016
Nottinghamshire County Council,Activities & Support,"Children, Families & Cultural Services",Debit,24.46,www.dominos.co.uk,20/01/2016
Nottinghamshire County Council,Activities & Support,"Children, Families & Cultural Services",Debit,13.55,tesco stores 5437,28/01/2016
Nottinghamshire County Council,Office / General Equipment,Environment & Resources,Debit,10.02,rawlins t/a mats4u,25/01/2016
Nottinghamshire County Council,Office / General Equipment,Environment & Resources,Debit,104.09,workingchairs,26/01/2016
Nottinghamshire County Council,Office / General Equipment,Environment & Resources,Debit,11.97,asda superstore,02/02/2016
Nottinghamshire County Council,Office / General Equipment,Environment & Resources,Debit,8.00,wilko retail limit,03/02/2016
Nottinghamshire County Council,Activities & Support,"Adult Social Care, Health & Public Protection ",Debit,191.77,e russum  sons ltd,05/01/2016
Nottinghamshire County Council,Activities & Support,"Adult Social Care, Health & Public Protection ",Credit,-19.99,worldstores ltd,07/01/2016
Nottinghamshire County Council,Activities & Support,"Adult Social Care, Health & Public Protection ",Debit,168.94,argos retail group,08/01/2016
Nottinghamshire County Council,Activities & Support,"Adult Social Care, Health & Public Protection ",Credit,-146.99,worldstores ltd,11/01/2016
Nottinghamshire County Council,Activities & Support,"Adult Social Care, Health & Public Protection ",Debit,41.90,gro hm passport office,02/02/2016
Nottinghamshire County Council,Activities & Support,"Children, Families & Cultural Services",Debit,10.35,tesco stores 5437,12/01/2016
Nottinghamshire County Council,Activities & Support,"Children, Families & Cultural Services",Debit,3.80,tesco stores 5437,14/01/2016
Nottinghamshire County Council,Activities & Support,"Children, Families & Cultural Services",Debit,9.84,tesco stores 5437,19/01/2016
Nottinghamshire County Council,Activities & Support,"Children, Families & Cultural Services",Debit,4.15,tesco stores 5437,21/01/2016
Nottinghamshire County Council,Activities & Support,"Children, Families & Cultural Services",Debit,1.90,tesco stores 5437,22/01/2016
Nottinghamshire County Council,Activities & Support,"Children, Families & Cultural Services",Debit,5.20,tesco stores 5437,28/01/2016
Nottinghamshire County Council,Activities & Support,"Children, Families & Cultural Services",Debit,1.50,wm morrisons plc,02/02/2016
Nottinghamshire County Council,Activities & Support,"Children, Families & Cultural Services",Debit,5.12,farmfoods- woodhou,02/02/2016
Nottinghamshire County Council,Activities & Support,"Children, Families & Cultural Services",Debit,9.99,maplin mansfield ng18,03/02/2016
Nottinghamshire County Council,Hospitality,Environment & Resources,Debit,120.75,nosh retail,07/01/2016
Nottinghamshire County Council,Hardware Maintenance,Environment & Resources,Debit,15.00,www.broxtowe.gov.uk,14/01/2016
Nottinghamshire County Council,Materials - External,Environment & Resources,Debit,13.20,www.certsure.com,28/01/2016
Nottinghamshire County Council,Building Maintenance,Environment & Resources,Debit,54.07,bss group plc,05/01/2016
Nottinghamshire County Council,Building Maintenance,Environment & Resources,Debit,11.03,bss group plc,05/01/2016
Nottinghamshire County Council,Building Maintenance,Environment & Resources,Debit,22.14,bss group plc,05/01/2016
Nottinghamshire County Council,Building Maintenance,Environment & Resources,Debit,22.04,bss group plc,05/01/2016
Nottinghamshire County Council,Building Maintenance,Environment & Resources,Debit,6.72,bss group plc,05/01/2016
Nottinghamshire County Council,Building Maintenance,Environment & Resources,Debit,2.21,bss group plc,05/01/2016
Nottinghamshire County Council,Building Maintenance,Environment & Resources,Debit,7.55,plumb center wl,11/01/2016
Nottinghamshire County Council,Building Maintenance,Environment & Resources,Debit,32.37,plumb center wl,11/01/2016
Nottinghamshire County Council,Building Maintenance,Environment & Resources,Debit,17.38,plumb center tp,13/01/2016
Nottinghamshire County Council,Building Maintenance,Environment & Resources,Debit,3.64,plumb center tp,13/01/2016
Nottinghamshire County Council,Building Maintenance,Environment & Resources,Debit,33.83,bss group plc,18/01/2016
Nottinghamshire County Council,Building Maintenance,Environment & Resources,Debit,6.16,bss group plc,18/01/2016
Nottinghamshire County Council,Building Maintenance,Environment & Resources,Debit,9.78,bss group plc,18/01/2016
Nottinghamshire County Council,Building Maintenance,Environment & Resources,Debit,8.69,bss group plc,18/01/2016
Nottinghamshire County Council,Building Maintenance,Environment & Resources,Debit,4.76,bss group plc,18/01/2016
Nottinghamshire County Council,Building Maintenance,Environment & Resources,Debit,15.43,bss group plc,18/01/2016
Nottinghamshire County Council,Building Maintenance,Environment & Resources,Debit,28.28,bss group plc,18/01/2016
Nottinghamshire County Council,Building Maintenance,Environment & Resources,Debit,1.93,bss group plc,18/01/2016
Nottinghamshire County Council,Building Maintenance,Environment & Resources,Debit,5.12,bss group plc,18/01/2016
Nottinghamshire County Council,Building Maintenance,Environment & Resources,Debit,5.13,bss group plc,20/01/2016
Nottinghamshire County Council,Building Maintenance,Environment & Resources,Debit,6.50,bss group plc,20/01/2016
Nottinghamshire County Council,Building Maintenance,Environment & Resources,Debit,3.26,bss group plc,20/01/2016
Nottinghamshire County Council,Building Maintenance,Environment & Resources,Debit,9.78,bss group plc,20/01/2016
Nottinghamshire County Council,Building Maintenance,Environment & Resources,Debit,10.59,bss group plc,20/01/2016
Nottinghamshire County Council,Building Maintenance,Environment & Resources,Debit,5.77,bss group plc,20/01/2016
Nottinghamshire County Council,Building Maintenance,Environment & Resources,Debit,2.85,plumb center wl,01/02/2016
Nottinghamshire County Council,Building Maintenance,Environment & Resources,Debit,4.87,plumb center wl,01/02/2016
Nottinghamshire County Council,Building Maintenance,Environment & Resources,Debit,3.37,plumb center wl,01/02/2016
Nottinghamshire County Council,Building Maintenance,Environment & Resources,Debit,33.49,plumb center wl,01/02/2016
Nottinghamshire County Council,Building Maintenance,Environment & Resources,Debit,4.36,plumb center wl,01/02/2016
Nottinghamshire County Council,Building Maintenance,Environment & Resources,Debit,7.00,plumb center wl,01/02/2016
Nottinghamshire County Council,Building Maintenance,Environment & Resources,Debit,32.38,plumb center wl,01/02/2016
Nottinghamshire County Council,Building Maintenance,Environment & Resources,Debit,33.49,plumb center tb,01/02/2016
Nottinghamshire County Council,Building Maintenance,Environment & Resources,Debit,3.43,willbond plumbing centre,05/01/2016
Nottinghamshire County Council,Building Maintenance,Environment & Resources,Debit,25.20,willbond plumbing centre,08/01/2016
Nottinghamshire County Council,Building Maintenance,Environment & Resources,Debit,17.26,willbond plumbing centre,14/01/2016
Nottinghamshire County Council,Building Maintenance,Environment & Resources,Debit,44.59,willbond plumbing centre,14/01/2016
Nottinghamshire County Council,Building Maintenance,Environment & Resources,Debit,17.26,willbond plumbing centre,15/01/2016
Nottinghamshire County Council,Building Maintenance,Environment & Resources,Debit,66.65,willbond plumbing centre,27/01/2016
Nottinghamshire County Council,Building Maintenance,Environment & Resources,Debit,33.32,willbond plumbing centre,27/01/2016
Nottinghamshire County Council,Building Maintenance,Environment & Resources,Debit,8.28,willbond plumbing centre,28/01/2016
Nottinghamshire County Council,Materials - External,Environment & Resources,Debit,197.10,edmundson electrical,04/01/2016
Nottinghamshire County Council,Minor Works,"Children, Families & Cultural Services",Debit,90.00,tahdah verified,19/01/2016
Nottinghamshire County Council,Minor Works,"Children, Families & Cultural Services",Debit,56.60,wildplaces.co.uk,21/01/2016
Nottinghamshire County Council,Minor Works,"Children, Families & Cultural Services",Debit,35.86,hitch n hike,27/01/2016
Nottinghamshire County Council,Minor Works,"Children, Families & Cultural Services",Debit,102.00,eurobroid promotional,01/02/2016
Nottinghamshire County Council,Minor Works,"Children, Families & Cultural Services",Debit,21.40,amazon uk marketplace,02/02/2016
Nottinghamshire County Council,Office / General Equipment,"Children, Families & Cultural Services",Debit,6.00,b  q,05/01/2016
Nottinghamshire County Council,Office / General Equipment,"Children, Families & Cultural Services",Debit,20.47,b  q,05/01/2016
Nottinghamshire County Council,Office / General Equipment,"Children, Families & Cultural Services",Debit,10.00,b  q,05/01/2016
Nottinghamshire County Council,Office / General Equipment,"Children, Families & Cultural Services",Debit,19.00,b  q,05/01/2016
Nottinghamshire County Council,Office / General Equipment,"Children, Families & Cultural Services",Debit,2.81,b  q,05/01/2016
Nottinghamshire County Council,Office / General Equipment,"Children, Families & Cultural Services",Debit,26.25,timpson ltd,05/01/2016
Nottinghamshire County Council,Cleaning Materials,"Children, Families & Cultural Services",Debit,11.60,tesco stores 5379,05/01/2016
Nottinghamshire County Council,Personal Needs,"Children, Families & Cultural Services",Debit,21.99,tesco stores 5379,05/01/2016
Nottinghamshire County Council,Provisions,"Children, Families & Cultural Services",Debit,2.00,bargain booze,06/01/2016
Nottinghamshire County Council,Personal Needs,"Children, Families & Cultural Services",Debit,2.69,co-op group 017091,06/01/2016
Nottinghamshire County Council,Office / General Equipment,"Children, Families & Cultural Services",Debit,18.98,currys,07/01/2016
Nottinghamshire County Council,Office / General Equipment,"Children, Families & Cultural Services",Debit,10.49,sainsburys s/mkts,13/01/2016
Nottinghamshire County Council,Office / General Equipment,"Children, Families & Cultural Services",Debit,25.98,currys,13/01/2016
Nottinghamshire County Council,Provisions,"Children, Families & Cultural Services",Debit,28.26,aldi,13/01/2016
Nottinghamshire County Council,Cleaning Materials,"Children, Families & Cultural Services",Debit,8.00,sainsburys s/mkts,13/01/2016
Nottinghamshire County Council,Provisions,"Children, Families & Cultural Services",Debit,8.09,bargain booze,17/01/2016
Nottinghamshire County Council,Provisions,"Children, Families & Cultural Services",Debit,1.65,sainsburys s/mkts,01/02/2016
Nottinghamshire County Council,Provisions,"Children, Families & Cultural Services",Debit,48.15,aldi,01/02/2016
Nottinghamshire County Council,Cleaning Materials,"Children, Families & Cultural Services",Debit,10.00,sainsburys s/mkts,01/02/2016
Nottinghamshire County Council,Provisions,"Adult Social Care, Health & Public Protection ",Debit,9.57,tesco stores 5379,06/01/2016
Nottinghamshire County Council,Provisions,"Adult Social Care, Health & Public Protection ",Debit,8.33,tesco stores 5437,11/01/2016
Nottinghamshire County Council,Fuel - Diesel,"Adult Social Care, Health & Public Protection ",Debit,37.00,southwell service,22/01/2016
Nottinghamshire County Council,Staff Training,"Adult Social Care, Health & Public Protection ",Debit,70.00,city finance depar,26/01/2016
Nottinghamshire County Council,Materials - External,Environment & Resources,Debit,72.02,edmundson electrical,20/01/2016
Nottinghamshire County Council,Materials - External,Environment & Resources,Debit,38.54,edmundson electrical,03/02/2016
Nottinghamshire County Council,Materials - External,Environment & Resources,Debit,36.00,erf electrical wh,03/02/2016
Nottinghamshire County Council,Activities & Support,"Children, Families & Cultural Services",Debit,48.48,wm morrison 067,11/01/2016
Nottinghamshire County Council,Activities & Support,"Children, Families & Cultural Services",Debit,12.74,farmfoods- carlton,12/01/2016
Nottinghamshire County Council,Activities & Support,"Children, Families & Cultural Services",Debit,12.80,sainsburys s/mkts,13/01/2016
Nottinghamshire County Council,Activities & Support,"Children, Families & Cultural Services",Debit,11.13,sainsburys s/mkts,15/01/2016
Nottinghamshire County Council,Activities & Support,"Children, Families & Cultural Services",Debit,162.80,booker limited nottingha,18/01/2016
Nottinghamshire County Council,Activities & Support,"Children, Families & Cultural Services",Debit,11.85,farmfoods- carlton,20/01/2016
Nottinghamshire County Council,Activities & Support,"Children, Families & Cultural Services",Debit,22.38,farmfoods- carlton,25/01/2016
Nottinghamshire County Council,Activities & Support,"Children, Families & Cultural Services",Debit,14.41,farmfoods- carlton,29/01/2016
Nottinghamshire County Council,Catering Consumables,"Adult Social Care, Health & Public Protection ",Debit,11.99,amazon uk marketplace,31/01/2016
Nottinghamshire County Council,Cleaning Materials,"Adult Social Care, Health & Public Protection ",Debit,19.54,healthcare services,22/01/2016
Nottinghamshire County Council,Personal Needs,"Adult Social Care, Health & Public Protection ",Debit,12.70,savers health  beauty,26/01/2016
Nottinghamshire County Council,Cleaning & Domestic Equipment,"Adult Social Care, Health & Public Protection ",Debit,148.73,healthcare services,26/01/2016
Nottinghamshire County Council,Cleaning Materials,"Adult Social Care, Health & Public Protection ",Debit,0.00,healthcare services,26/01/2016
Nottinghamshire County Council,Provisions,"Adult Social Care, Health & Public Protection ",Debit,45.36,wm morrisons,28/01/2016
Nottinghamshire County Council,Stationery,"Adult Social Care, Health & Public Protection ",Debit,18.05,w boyes  co ltd eastw,01/02/2016
Nottinghamshire County Council,Materials - External,Environment & Resources,Debit,20.00,co-op group 012451,08/01/2016
Nottinghamshire County Council,Materials - External,Environment & Resources,Debit,20.00,co-op group 012451,19/01/2016
Nottinghamshire County Council,Materials - External,Environment & Resources,Debit,65.51,erf electrical wh,28/01/2016
Nottinghamshire County Council,Activities & Support,"Children, Families & Cultural Services",Debit,7.50,iceland,13/01/2016
Nottinghamshire County Council,Activities & Support,"Children, Families & Cultural Services",Debit,28.98,wh smith,15/01/2016
Nottinghamshire County Council,Activities & Support,"Children, Families & Cultural Services",Debit,7.00,iceland,20/01/2016
Nottinghamshire County Council,Activities & Support,"Children, Families & Cultural Services",Debit,19.30,wilko retail limit,27/01/2016
Nottinghamshire County Council,Activities & Support,"Children, Families & Cultural Services",Debit,7.56,post office counter,29/01/2016
Nottinghamshire County Council,Activities & Support,"Children, Families & Cultural Services",Debit,19.50,iceland,02/02/2016
Nottinghamshire County Council,Activities & Support,"Children, Families & Cultural Services",Debit,8.81,aldi,03/02/2016
Nottinghamshire County Council,Office / General Equipment,"Adult Social Care, Health & Public Protection ",Debit,13.28,tesco stores 2702,13/01/2016
Nottinghamshire County Council,Office / General Equipment,"Adult Social Care, Health & Public Protection ",Debit,13.98,tesco stores 5379,18/01/2016
Nottinghamshire County Council,Office / General Equipment,"Adult Social Care, Health & Public Protection ",Debit,10.10,tesco stores 2702,27/01/2016
Nottinghamshire County Council,Office / General Equipment,"Adult Social Care, Health & Public Protection ",Debit,13.54,tesco stores 2702,03/02/2016
Nottinghamshire County Council,Personal Needs,"Children, Families & Cultural Services",Debit,7.50,sainsburys s/mkts,04/01/2016
Nottinghamshire County Council,Personal Needs,"Children, Families & Cultural Services",Debit,12.50,welcome break starbuck,17/01/2016
Nottinghamshire County Council,Materials - External,Environment & Resources,Debit,18.05,keyline hucknall,04/01/2016
Nottinghamshire County Council,Materials - External,Environment & Resources,Debit,57.60,keyline hucknall,04/01/2016
Nottinghamshire County Council,Materials - External,Environment & Resources,Debit,15.50,keyline hucknall,13/01/2016
Nottinghamshire County Council,Materials - External,Environment & Resources,Debit,9.26,jewson 3664,20/01/2016
Nottinghamshire County Council,Materials - External,Environment & Resources,Debit,12.24,jewson 3664,23/01/2016
Nottinghamshire County Council,Materials - External,Environment & Resources,Debit,24.41,jewson 3664,23/01/2016
Nottinghamshire County Council,Materials - External,Environment & Resources,Debit,25.06,jewson 3664,23/01/2016
Nottinghamshire County Council,Materials - External,Environment & Resources,Debit,9.35,jewson 3664,02/02/2016
Nottinghamshire County Council,Materials - External,Environment & Resources,Debit,15.71,jewson 3664,02/02/2016
Nottinghamshire County Council,Materials - External,Environment & Resources,Debit,12.31,jewson 3664,02/02/2016
Nottinghamshire County Council,Materials - External,Environment & Resources,Debit,6.99,screwfix direct,05/01/2016
Nottinghamshire County Council,Materials - External,Environment & Resources,Debit,89.31,jackson building ctrs lt,05/01/2016
Nottinghamshire County Council,Materials - External,Environment & Resources,Debit,45.83,gibbs  dandy,08/01/2016
Nottinghamshire County Council,Materials - External,Environment & Resources,Debit,25.49,protrade ltd,08/01/2016
Nottinghamshire County Council,Materials - External,Environment & Resources,Debit,227.69,gibbs  dandy,08/01/2016
Nottinghamshire County Council,Materials - External,Environment & Resources,Debit,135.97,arco ltd,13/01/2016
Nottinghamshire County Council,Materials - External,Environment & Resources,Debit,70.42,jackson building ctrs lt,18/01/2016
Nottinghamshire County Council,Materials - External,Environment & Resources,Debit,163.07,br3417 gibbsdandy,19/01/2016
Nottinghamshire County Council,Materials - External,Environment & Resources,Debit,87.31,howarth timber mansfie,19/01/2016
Nottinghamshire County Council,Materials - External,Environment & Resources,Debit,11.20,1st access,20/01/2016
Nottinghamshire County Council,Materials - External,Environment & Resources,Debit,10.14,terratruck distrib,21/01/2016
Nottinghamshire County Council,Materials - External,Environment & Resources,Debit,9.91,terratruck distrib,21/01/2016
Nottinghamshire County Council,Materials - External,Environment & Resources,Debit,22.30,trent hire centre,01/02/2016
Nottinghamshire County Council,Stationery,"Adult Social Care, Health & Public Protection ",Debit,2.99,amazon uk marketplace,04/01/2016
Nottinghamshire County Council,Stationery,"Adult Social Care, Health & Public Protection ",Debit,47.17,amazon uk retail,30/01/2016
Nottinghamshire County Council,Stationery,"Adult Social Care, Health & Public Protection ",Debit,133.05,rac motoring servi,01/02/2016
Nottinghamshire County Council,Materials - External,Place,Debit,23.40,city electrical fa,28/01/2016
Nottinghamshire County Council,Materials - External,Place,Debit,3.94,city electrical fa,28/01/2016
Nottinghamshire County Council,Materials - External,Place,Debit,5.05,city electrical fa,28/01/2016
Nottinghamshire County Council,Materials - External,Place,Debit,13.87,city electrical fa,28/01/2016
Nottinghamshire County Council,Materials - External,Place,Debit,45.12,city electrical fa,28/01/2016
Nottinghamshire County Council,Materials - External,Place,Debit,59.51,city electrical fa,28/01/2016
Nottinghamshire County Council,Materials - External,Place,Debit,57.60,city electrical fa,28/01/2016
Nottinghamshire County Council,Materials - External,Place,Debit,57.60,city electrical fa,28/01/2016
Nottinghamshire County Council,Materials - External,Place,Debit,57.60,city electrical fa,28/01/2016
Nottinghamshire County Council,Materials - External,Place,Debit,3.97,city electrical fa,28/01/2016
Nottinghamshire County Council,Materials - External,Place,Debit,18.06,city electrical fa,28/01/2016
Nottinghamshire County Council,Materials - External,Place,Debit,7.78,city electrical fa,28/01/2016
Nottinghamshire County Council,Materials - External,Place,Debit,5.86,city electrical fa,28/01/2016
Nottinghamshire County Council,Materials - External,Place,Debit,0.58,city electrical fa,28/01/2016
Nottinghamshire County Council,Materials - External,Place,Debit,3.37,city electrical fa,28/01/2016
Nottinghamshire County Council,Materials - External,Place,Debit,4.98,city electrical fa,28/01/2016
Nottinghamshire County Council,Materials - External,Place,Debit,46.75,city electrical fa,28/01/2016
Nottinghamshire County Council,Materials - External,Place,Debit,57.60,city electrical fa,28/01/2016
Nottinghamshire County Council,Materials - External,Place,Debit,57.60,city electrical fa,28/01/2016
Nottinghamshire County Council,Materials - External,Place,Debit,33.66,city electrical fa,28/01/2016
Nottinghamshire County Council,Materials - External,Place,Debit,15.37,city electrical fa,28/01/2016
Nottinghamshire County Council,Materials - External,Place,Debit,2.40,city electrical fa,28/01/2016
Nottinghamshire County Council,Materials - External,Place,Debit,1.30,city electrical fa,28/01/2016
Nottinghamshire County Council,Materials - External,Place,Debit,213.19,city electrical fa,28/01/2016
Nottinghamshire County Council,Materials - External,Place,Debit,52.68,city electrical fa,28/01/2016
Nottinghamshire County Council,Materials - External,Place,Debit,4.68,city electrical fa,28/01/2016
Nottinghamshire County Council,Materials - External,Place,Debit,0.36,city electrical fa,28/01/2016
Nottinghamshire County Council,Materials - External,Place,Debit,42.72,city electrical fa,28/01/2016
Nottinghamshire County Council,Materials - External,Place,Debit,1.44,city electrical fa,28/01/2016
Nottinghamshire County Council,Materials - External,Place,Debit,0.86,city electrical fa,28/01/2016
Nottinghamshire County Council,Materials - External,Place,Debit,158.04,city electrical fa,28/01/2016
Nottinghamshire County Council,Materials - External,Place,Debit,129.43,screwfix direct,29/01/2016
Nottinghamshire County Council,Other Fee's & Services,"Children, Families & Cultural Services",Debit,24.50,ukdeedpollo,14/01/2016
Nottinghamshire County Council,Other Fee's & Services,"Children, Families & Cultural Services",Debit,20.00,mansfield superbowl,19/01/2016
Nottinghamshire County Council,Other Fee's & Services,"Children, Families & Cultural Services",Debit,15.00,mansfield superbowl,20/01/2016
Nottinghamshire County Council,Other Fee's & Services,"Children, Families & Cultural Services",Debit,10.00,mansfield superbowl,26/01/2016
Nottinghamshire County Council,Legal Fees,Resources ,Debit,173.40,www.severntrentsearche,04/01/2016
Nottinghamshire County Council,Legal Fees,Resources ,Debit,50.00,www.justice.gov.uk,06/01/2016
Nottinghamshire County Council,Legal Fees,Resources ,Debit,"2,055.00",www.justice.gov.uk,06/01/2016
Nottinghamshire County Council,Legal Fees,Resources ,Debit,"2,055.00",www.justice.gov.uk,06/01/2016
Nottinghamshire County Council,Legal Fees,Resources ,Debit,"2,055.00",www.justice.gov.uk,06/01/2016
Nottinghamshire County Council,Legal Fees,Resources ,Debit,155.00,www.justice.gov.uk,06/01/2016
Nottinghamshire County Council,Legal Fees,Resources ,Debit,"2,055.00",www.justice.gov.uk,06/01/2016
Nottinghamshire County Council,Legal Fees,Resources ,Debit,455.00,county court,06/01/2016
Nottinghamshire County Council,Legal Fees,Resources ,Debit,42.00,www.severntrentsearche,05/01/2016
Nottinghamshire County Council,Legal Fees,Resources ,Debit,"2,055.00",www.justice.gov.uk,06/01/2016
Nottinghamshire County Council,Legal Fees,Resources ,Debit,"2,055.00",www.justice.gov.uk,06/01/2016
Nottinghamshire County Council,Legal Fees,Resources ,Debit,4.00,companies house,07/01/2016
Nottinghamshire County Council,Legal Fees,Resources ,Debit,60.00,www.moneyclaim.gov,21/01/2016
Nottinghamshire County Council,Legal Fees,Resources ,Debit,455.00,county court,26/01/2016
Nottinghamshire County Council,Legal Fees,Resources ,Debit,170.00,www.justice.gov.uk,26/01/2016
Nottinghamshire County Council,Legal Fees,Resources ,Debit,170.00,www.justice.gov.uk,29/01/2016
Nottinghamshire County Council,Legal Fees,Resources ,Debit,"2,055.00",www.justice.gov.uk,01/02/2016
Nottinghamshire County Council,Legal Fees,Resources ,Debit,"2,055.00",www.justice.gov.uk,01/02/2016
Nottinghamshire County Council,Legal Fees,Resources ,Debit,"2,055.00",www.justice.gov.uk,01/02/2016
Nottinghamshire County Council,Legal Fees,Resources ,Debit,"2,055.00",www.justice.gov.uk,01/02/2016
Nottinghamshire County Council,Legal Fees,Resources ,Debit,"2,055.00",www.justice.gov.uk,01/02/2016
Nottinghamshire County Council,Legal Fees,Resources ,Debit,"2,055.00",www.justice.gov.uk,01/02/2016
Nottinghamshire County Council,Legal Fees,Resources ,Debit,"2,055.00",www.justice.gov.uk,01/02/2016
Nottinghamshire County Council,Legal Fees,Resources ,Debit,"2,055.00",www.justice.gov.uk,01/02/2016
Nottinghamshire County Council,Legal Fees,Resources ,Debit,4.00,companies house,03/02/2016
Nottinghamshire County Council,Office / General Equipment,"Policy, Planning & Corporate Services",Debit,75.00,www.cim.co.uk,05/01/2016
Nottinghamshire County Council,Activities & Support,"Children, Families & Cultural Services",Debit,3.78,heron foods ltd,12/01/2016
Nottinghamshire County Council,Activities & Support,"Children, Families & Cultural Services",Debit,14.96,heron foods ltd,14/01/2016
Nottinghamshire County Council,Activities & Support,"Children, Families & Cultural Services",Debit,7.61,bm retail ltd,15/01/2016
Nottinghamshire County Council,Activities & Support,"Children, Families & Cultural Services",Debit,2.05,heron foods ltd,22/01/2016
Nottinghamshire County Council,Activities & Support,"Children, Families & Cultural Services",Debit,69.98,game retail ltd mansf,02/02/2016
Nottinghamshire County Council,Activities & Support,"Children, Families & Cultural Services",Debit,22.29,tesco stores 5437,03/02/2016
Nottinghamshire County Council,Clients - H & S Equipt,"Children, Families & Cultural Services",Debit,7.78,mcdonalds,05/01/2016
Nottinghamshire County Council,Aftercare Lodging/Hostel,"Children, Families & Cultural Services",Debit,3.50,tudor lodge hotel,06/01/2016
Nottinghamshire County Council,Aftercare - Equipment,"Children, Families & Cultural Services",Debit,48.23,the co-operative insur,06/01/2016
Nottinghamshire County Council,Aftercare Lodging/Hostel,"Children, Families & Cultural Services",Debit,346.50,tudor lodge hotel,06/01/2016
Nottinghamshire County Council,Aftercare - Equipment,"Children, Families & Cultural Services",Debit,169.95,paul allans furnishing,07/01/2016
Nottinghamshire County Council,Aftercare - Equipment,"Children, Families & Cultural Services",Debit,590.00,b  j carpets ltd,07/01/2016
Nottinghamshire County Council,Aftercare - Equipment,"Children, Families & Cultural Services",Credit,-24.99,argos retail group,09/01/2016
Nottinghamshire County Council,Aftercare - Equipment,"Children, Families & Cultural Services",Debit,129.00,tesco stores 5379,08/01/2016
Nottinghamshire County Council,Aftercare - Equipment,"Children, Families & Cultural Services",Credit,-49.99,argos retail group,11/01/2016
Nottinghamshire County Council,Clients - H & S Equipt,"Children, Families & Cultural Services",Debit,5.00,spar,13/01/2016
Nottinghamshire County Council,Aftercare Lodging/Hostel,"Children, Families & Cultural Services",Debit,50.00,tudor lodge hotel,13/01/2016
Nottinghamshire County Council,Aftercare - Equipment,"Children, Families & Cultural Services",Credit,-31.99,argos retail group,13/01/2016
Nottinghamshire County Council,Aftercare - Equipment,"Children, Families & Cultural Services",Debit,28.00,asda superstore,13/01/2016
Nottinghamshire County Council,Clients - H & S Equipt,"Children, Families & Cultural Services",Debit,60.67,megastorage ltd,13/01/2016
Nottinghamshire County Council,Aftercare - Equipment,"Children, Families & Cultural Services",Debit,129.00,tesco direct,14/01/2016
Nottinghamshire County Council,Aftercare - Equipment,"Children, Families & Cultural Services",Debit,208.99,ao retail limited,19/01/2016
Nottinghamshire County Council,Aftercare - Equipment,"Children, Families & Cultural Services",Debit,145.50,tvlicensing.co.uk,19/01/2016
Nottinghamshire County Council,Clients - H & S Equipt,"Children, Families & Cultural Services",Debit,18.12,asda superstore,22/01/2016
Nottinghamshire County Council,Clients - H & S Equipt,"Children, Families & Cultural Services",Debit,100.00,wm morrison 048,27/01/2016
Nottinghamshire County Council,Aftercare - Equipment,"Children, Families & Cultural Services",Debit,90.00,affordable carpets,01/02/2016
Nottinghamshire County Council,Aftercare - Equipment,"Children, Families & Cultural Services",Debit,129.00,tesco stores 2285,02/02/2016
Nottinghamshire County Council,Minor Works,"Children, Families & Cultural Services",Debit,217.50,airways airsports ltd,11/01/2016
Nottinghamshire County Council,First Aid Equipment Purchases,"Children, Families & Cultural Services",Debit,29.90,boots.com,18/01/2016
Nottinghamshire County Council,Minor Works,"Children, Families & Cultural Services",Debit,146.57,safe.co.uk,18/01/2016
Nottinghamshire County Council,Minor Works,"Children, Families & Cultural Services",Debit,99.99,amazon uk marketplace,18/01/2016
Nottinghamshire County Council,Minor Works,"Children, Families & Cultural Services",Debit,86.99,amazon uk marketplace,18/01/2016
Nottinghamshire County Council,Minor Works,"Children, Families & Cultural Services",Debit,138.98,amazon uk marketplace,19/01/2016
Nottinghamshire County Council,Minor Works,"Children, Families & Cultural Services",Debit,160.03,amazon uk retail,19/01/2016
Nottinghamshire County Council,Minor Works,"Children, Families & Cultural Services",Debit,46.70,amazon uk marketplace,19/01/2016
Nottinghamshire County Council,Minor Works,"Children, Families & Cultural Services",Debit,104.60,amazon uk retail,20/01/2016
Nottinghamshire County Council,Fuel - Petrol,"Children, Families & Cultural Services",Debit,9.98,texaco sickleholme,20/01/2016
Nottinghamshire County Council,Minor Works,"Children, Families & Cultural Services",Debit,31.62,amazon uk retail,20/01/2016
Nottinghamshire County Council,Office / General Equipment,"Children, Families & Cultural Services",Debit,13.23,amazon uk retail,02/02/2016
Nottinghamshire County Council,Activities & Support,"Children, Families & Cultural Services",Debit,11.45,sportsdirect 437,12/01/2016
Nottinghamshire County Council,Activities & Support,"Children, Families & Cultural Services",Debit,6.62,co-op group 070325,12/01/2016
Nottinghamshire County Council,Activities & Support,"Children, Families & Cultural Services",Debit,8.13,aldi,14/01/2016
Nottinghamshire County Council,Activities & Support,"Children, Families & Cultural Services",Debit,2.00,co-op group 070325,14/01/2016
Nottinghamshire County Council,Activities & Support,"Children, Families & Cultural Services",Debit,8.70,aldi,19/01/2016
Nottinghamshire County Council,Activities & Support,"Children, Families & Cultural Services",Debit,5.17,co-op group 070325,19/01/2016
Nottinghamshire County Council,Activities & Support,"Children, Families & Cultural Services",Debit,9.00,poundworld retail,27/01/2016
Nottinghamshire County Council,Activities & Support,"Children, Families & Cultural Services",Debit,7.39,aldi,27/01/2016
Nottinghamshire County Council,Activities & Support,"Children, Families & Cultural Services",Debit,4.53,home bargains doncaste,02/02/2016
Nottinghamshire County Council,Activities & Support,"Children, Families & Cultural Services",Debit,13.00,poundland ltd 1333,02/02/2016
Nottinghamshire County Council,Activities & Support,"Children, Families & Cultural Services",Debit,11.71,aldi,02/02/2016
Nottinghamshire County Council,Activities & Support,"Children, Families & Cultural Services",Debit,4.25,co-op group 070325,02/02/2016
Nottinghamshire County Council,Activities & Support,"Children, Families & Cultural Services",Debit,4.46,aldi,03/02/2016
Nottinghamshire County Council,Stationery,Environment & Resources,Debit,97.86,decathlon uk ltd,12/01/2016
Nottinghamshire County Council,Stationery,Environment & Resources,Debit,253.96,bikeability materials,12/01/2016
Nottinghamshire County Council,Stationery,Environment & Resources,Debit,731.25,www.frogbikes.com,13/01/2016
Nottinghamshire County Council,Stationery,Environment & Resources,Debit,264.00,govknow events limited,22/01/2016
Nottinghamshire County Council,Stationery,Environment & Resources,Debit,"1,300.00",the bike shop,01/02/2016
Nottinghamshire County Council,Stationery,Environment & Resources,Debit,524.74,amazon uk marketplace,03/02/2016
Nottinghamshire County Council,Materials - External,Place ,Debit,32.57,alltools ltd,13/01/2016
Nottinghamshire County Council,Materials - External,Place ,Debit,30.24,alltools ltd,15/01/2016
Nottinghamshire County Council,Materials - External,Place ,Debit,65.63,tennants uk ltd,03/02/2016
Nottinghamshire County Council,Provisions,"Children, Families & Cultural Services",Debit,382.97,owen taylor  sons,20/01/2016
Nottinghamshire County Council,Clothing/Shoes/Uniforms,"Children, Families & Cultural Services",Debit,60.94,www.mandmdirect.com,27/01/2016
Nottinghamshire County Council,Personal Needs,"Children, Families & Cultural Services",Debit,47.96,amazon uk marketplace,28/01/2016
Nottinghamshire County Council,Grounds Maintenance,"Children, Families & Cultural Services",Debit,2.84,amazon uk marketplace,31/01/2016
Nottinghamshire County Council,Other Fee's & Services,Resources ,Debit,10.00,www.gov.uk,05/01/2016
Nottinghamshire County Council,Other Fee's & Services,Resources ,Debit,10.00,www.gov.uk,25/01/2016
Nottinghamshire County Council,Other Fee's & Services,Resources ,Debit,10.00,www.gov.uk,25/01/2016
Nottinghamshire County Council,Other Fee's & Services,Resources ,Debit,26.97,stationery office book,26/01/2016
Nottinghamshire County Council,Materials - External,Place ,Debit,234.16,tubes fittings,29/01/2016
Nottinghamshire County Council,Activities & Support,"Children, Families & Cultural Services",Debit,49.98,www.dominos.co.uk,27/01/2016
Nottinghamshire County Council,Activities & Support,"Children, Families & Cultural Services",Debit,26.35,www.dominos.co.uk,03/02/2016
Nottinghamshire County Council,Catering Consumables,"Adult Social Care, Health & Public Protection ",Debit,55.56,euroffice.co.uk,06/01/2016
Nottinghamshire County Council,Activities & Support,"Children, Families & Cultural Services",Debit,86.00,primark,13/01/2016
Nottinghamshire County Council,Activities & Support,"Children, Families & Cultural Services",Debit,13.79,staples uk,28/01/2016
Nottinghamshire County Council,Minor Works,"Children, Families & Cultural Services",Debit,10.00,b  q,07/01/2016
Nottinghamshire County Council,Minor Works,"Children, Families & Cultural Services",Debit,10.00,b  q,07/01/2016
Nottinghamshire County Council,Minor Works,"Children, Families & Cultural Services",Debit,7.92,b  q,07/01/2016
Nottinghamshire County Council,Minor Works,"Children, Families & Cultural Services",Debit,2.78,b  q,07/01/2016
Nottinghamshire County Council,Activities & Support,"Children, Families & Cultural Services",Debit,49.99,amazon uk marketplace,04/01/2016
Nottinghamshire County Council,Activities & Support,"Children, Families & Cultural Services",Debit,65.99,amazon uk marketplace,05/01/2016
Nottinghamshire County Council,Personal Needs,"Children, Families & Cultural Services",Debit,69.00,scrivens opticians 084,05/01/2016
Nottinghamshire County Council,Personal Needs,"Children, Families & Cultural Services",Debit,245.00,domiciliary,06/01/2016
Nottinghamshire County Council,Personal Needs,"Children, Families & Cultural Services",Debit,275.00,burrows opthalmic opti,06/01/2016
Nottinghamshire County Council,Clothing And Footwear,"Children, Families & Cultural Services",Debit,33.98,paypal  ,07/01/2016
Nottinghamshire County Council,Personal Needs,"Children, Families & Cultural Services",Debit,5.50,amazon uk marketplace,07/01/2016
Nottinghamshire County Council,Activities & Support,"Children, Families & Cultural Services",Debit,7.40,amazon uk marketplace,07/01/2016
Nottinghamshire County Council,Clothing And Footwear,"Children, Families & Cultural Services",Debit,23.99,paypal  ,07/01/2016
Nottinghamshire County Council,Activities & Support,"Children, Families & Cultural Services",Debit,19.99,amazon uk marketplace,07/01/2016
Nottinghamshire County Council,Minor Works,"Children, Families & Cultural Services",Debit,148.32,midland fixings ltd,07/01/2016
Nottinghamshire County Council,Activities & Support,"Children, Families & Cultural Services",Debit,97.05,www.yellowmoon.org.uk,07/01/2016
Nottinghamshire County Council,Activities & Support,"Children, Families & Cultural Services",Debit,4.26,amazon svcs europesar,08/01/2016
Nottinghamshire County Council,Clothing And Footwear,"Children, Families & Cultural Services",Debit,71.91,h  m online,07/01/2016
Nottinghamshire County Council,Phone and Network (Land Lines),"Children, Families & Cultural Services",Debit,12.00,textmagic.com,12/01/2016
Nottinghamshire County Council,Minor Works,"Children, Families & Cultural Services",Debit,5.50,amazon uk marketplace,13/01/2016
Nottinghamshire County Council,Books - General,"Children, Families & Cultural Services",Debit,17.19,amazon uk marketplace,14/01/2016
Nottinghamshire County Council,Activities & Support,"Children, Families & Cultural Services",Debit,19.99,amazon uk marketplace,14/01/2016
Nottinghamshire County Council,Books - General,"Children, Families & Cultural Services",Credit,-40.73,amazon uk retail,14/01/2016
Nottinghamshire County Council,Minor Works,"Children, Families & Cultural Services",Debit,54.00,ryman,14/01/2016
Nottinghamshire County Council,Minor Works,"Children, Families & Cultural Services",Debit,70.43,paypal  ,14/01/2016
Nottinghamshire County Council,Books - General,"Children, Families & Cultural Services",Credit,-9.81,amazon uk retail,14/01/2016
Nottinghamshire County Council,Activities & Support,"Children, Families & Cultural Services",Debit,5.98,amazon uk marketplace,15/01/2016
Nottinghamshire County Council,Activities & Support,"Children, Families & Cultural Services",Debit,2.99,amazon uk marketplace,15/01/2016
Nottinghamshire County Council,Activities & Support,"Children, Families & Cultural Services",Debit,25.01,amazon uk marketplace,15/01/2016
Nottinghamshire County Council,Activities & Support,"Children, Families & Cultural Services",Debit,1.75,amazon uk marketplace,15/01/2016
Nottinghamshire County Council,Activities & Support,"Children, Families & Cultural Services",Debit,0.80,amazon uk marketplace,16/01/2016
Nottinghamshire County Council,Activities & Support,"Children, Families & Cultural Services",Debit,5.92,amazon uk marketplace,18/01/2016
Nottinghamshire County Council,Fixtures & Fittings,"Children, Families & Cultural Services",Debit,396.00,www.officefurnitureonl,18/01/2016
Nottinghamshire County Council,Office / General Equipment,"Children, Families & Cultural Services",Debit,62.50,tesco stores 3297,18/01/2016
Nottinghamshire County Council,Activities & Support,"Children, Families & Cultural Services",Debit,142.67,www.bakerross.co.uk,19/01/2016
Nottinghamshire County Council,Books - General,"Children, Families & Cultural Services",Debit,239.02,www.cgpbooks.co.uk,19/01/2016
Nottinghamshire County Council,Minor Works,"Children, Families & Cultural Services",Debit,236.64,screwfix direct,19/01/2016
Nottinghamshire County Council,Activities & Support,"Children, Families & Cultural Services",Debit,5.66,amazon uk marketplace,19/01/2016
Nottinghamshire County Council,Personal Needs,"Children, Families & Cultural Services",Debit,47.70,amazon uk marketplace,20/01/2016
Nottinghamshire County Council,Office / General Equipment,"Children, Families & Cultural Services",Debit,18.50,amazon uk marketplace,20/01/2016
Nottinghamshire County Council,Minor Works,"Children, Families & Cultural Services",Debit,140.00,burrows opthalmic opti,20/01/2016
Nottinghamshire County Council,Other Fee's & Services,"Children, Families & Cultural Services",Debit,459.72,automobile association,19/01/2016
Nottinghamshire County Council,Personal Needs,"Children, Families & Cultural Services",Debit,139.00,amazon uk marketplace,20/01/2016
Nottinghamshire County Council,Minor Works,"Children, Families & Cultural Services",Debit,39.98,amazon uk marketplace,20/01/2016
Nottinghamshire County Council,Activities & Support,"Children, Families & Cultural Services",Debit,14.28,amazon uk marketplace,20/01/2016
Nottinghamshire County Council,Personal Needs,"Children, Families & Cultural Services",Debit,373.95,amazon uk marketplace,21/01/2016
Nottinghamshire County Council,Books - General,"Children, Families & Cultural Services",Debit,10.38,amazon uk retail,21/01/2016
Nottinghamshire County Council,Books - General,"Children, Families & Cultural Services",Debit,10.29,amazon uk marketplace,21/01/2016
Nottinghamshire County Council,Phone and Network (Land Lines),"Children, Families & Cultural Services",Debit,12.00,textmagic.com,23/01/2016
Nottinghamshire County Council,Office / General Equipment,"Children, Families & Cultural Services",Debit,15.93,amazon uk marketplace,25/01/2016
Nottinghamshire County Council,Cleaning & Domestic Equipment,"Children, Families & Cultural Services",Debit,253.20,firstchoice catering s,26/01/2016
Nottinghamshire County Council,Personal Needs,"Children, Families & Cultural Services",Debit,252.22,mitre furnishing,26/01/2016
Nottinghamshire County Council,Activities & Support,"Children, Families & Cultural Services",Debit,22.74,sous chef,26/01/2016
Nottinghamshire County Council,Minor Works,"Children, Families & Cultural Services",Debit,36.50,paypal  ,26/01/2016
Nottinghamshire County Council,Office / General Equipment,"Children, Families & Cultural Services",Debit,76.30,www.staples.co.uk,26/01/2016
Nottinghamshire County Council,Personal Needs,"Children, Families & Cultural Services",Debit,119.50,tesco stores 3297,27/01/2016
Nottinghamshire County Council,Provisions,"Children, Families & Cultural Services",Debit,28.70,asda home shopping,27/01/2016
Nottinghamshire County Council,Office / General Equipment,"Children, Families & Cultural Services",Debit,4.93,amazon uk marketplace,27/01/2016
Nottinghamshire County Council,Phone and Network (Land Lines),"Children, Families & Cultural Services",Debit,12.00,textmagic.com,27/01/2016
Nottinghamshire County Council,Minor Works,"Children, Families & Cultural Services",Debit,19.97,screwfix direct,27/01/2016
Nottinghamshire County Council,Personal Needs,"Children, Families & Cultural Services",Debit,11.94,parcel2go,27/01/2016
Nottinghamshire County Council,Clothing And Footwear,"Children, Families & Cultural Services",Debit,8.55,amazon uk marketplace,28/01/2016
Nottinghamshire County Council,Office / General Equipment,"Children, Families & Cultural Services",Debit,41.67,amazon uk retail,28/01/2016
Nottinghamshire County Council,Activities & Support,"Children, Families & Cultural Services",Debit,5.19,amazon uk retail,28/01/2016
Nottinghamshire County Council,Clothing And Footwear,"Children, Families & Cultural Services",Debit,48.99,peacock stores,28/01/2016
Nottinghamshire County Council,Activities & Support,"Children, Families & Cultural Services",Debit,36.75,amazon uk retail,28/01/2016
Nottinghamshire County Council,Activities & Support,"Children, Families & Cultural Services",Debit,6.99,lovefilm by post,28/01/2016
Nottinghamshire County Council,Activities & Support,"Children, Families & Cultural Services",Debit,13.94,argos retail group,28/01/2016
Nottinghamshire County Council,Clothing And Footwear,"Children, Families & Cultural Services",Debit,38.99,paypal  ,28/01/2016
Nottinghamshire County Council,Activities & Support,"Children, Families & Cultural Services",Debit,26.48,amazon uk retail,28/01/2016
Nottinghamshire County Council,Activities & Support,"Children, Families & Cultural Services",Debit,12.20,amazon uk marketplace,28/01/2016
Nottinghamshire County Council,Clothing And Footwear,"Children, Families & Cultural Services",Debit,45.99,amazon uk marketplace,28/01/2016
Nottinghamshire County Council,Office / General Equipment,"Children, Families & Cultural Services",Debit,43.38,amazon uk retail,28/01/2016
Nottinghamshire County Council,Clothing And Footwear,"Children, Families & Cultural Services",Debit,149.00,paypal  ,28/01/2016
Nottinghamshire County Council,Minor Works,"Children, Families & Cultural Services",Debit,173.49,screwfix direct,28/01/2016
Nottinghamshire County Council,Activities & Support,"Children, Families & Cultural Services",Debit,10.00,amazon uk marketplace,28/01/2016
Nottinghamshire County Council,Activities & Support,"Children, Families & Cultural Services",Debit,9.50,amazon uk retail,28/01/2016
Nottinghamshire County Council,Activities & Support,"Children, Families & Cultural Services",Debit,5.99,amazon uk marketplace,28/01/2016
Nottinghamshire County Council,Office / General Equipment,"Children, Families & Cultural Services",Debit,51.75,amazon uk retail,28/01/2016
Nottinghamshire County Council,Office / General Equipment,"Children, Families & Cultural Services",Debit,47.66,amazon uk retail,28/01/2016
Nottinghamshire County Council,Cleaning & Domestic Equipment,"Children, Families & Cultural Services",Debit,17.95,amazon uk marketplace,03/02/2016
Nottinghamshire County Council,Personal Needs,"Children, Families & Cultural Services",Credit,-47.70,amazon uk marketplace,03/02/2016
Nottinghamshire County Council,Other Fee's & Services,Environment & Resources,Debit,10.05,gloucester ga,18/01/2016
Nottinghamshire County Council,Other Fee's & Services,Environment & Resources,Debit,29.98,za za bazaar bristol,18/01/2016
Nottinghamshire County Council,Other Fee's & Services,Environment & Resources,Debit,10.00,bristol city council -,18/01/2016
Nottinghamshire County Council,Other Fee's & Services,Environment & Resources,Debit,10.00,bristol city council -,19/01/2016
Nottinghamshire County Council,Other Fee's & Services,Environment & Resources,Debit,4.00,bristol city council -,18/01/2016
Nottinghamshire County Council,Other Fee's & Services,Environment & Resources,Debit,315.00,nct travel centre,05/01/2016
Nottinghamshire County Council,Vehicles Repairs & Maintenance,Environment & Resources,Debit,23.04,argos ltd,05/01/2016
Nottinghamshire County Council,Vehicles Repairs & Maintenance,Environment & Resources,Debit,7.98,bunneys bikes,05/01/2016
Nottinghamshire County Council,Other Fee's & Services,Environment & Resources,Debit,590.00,stagecoach service,14/01/2016
Nottinghamshire County Council,Aftercare - Equipment,"Children, Families & Cultural Services",Debit,158.92,argos retail group,15/01/2016
Nottinghamshire County Council,Activities & Support,"Children, Families & Cultural Services",Debit,14.28,lord ted,17/01/2016
Nottinghamshire County Council,Clients - H & S Equipt,"Children, Families & Cultural Services",Debit,50.00,wm morrison 048,19/01/2016
Nottinghamshire County Council,Activities & Support,"Children, Families & Cultural Services",Debit,12.00,mansfield superbowl,24/01/2016
Nottinghamshire County Council,Aftercare - Equipment,"Children, Families & Cultural Services",Debit,145.50,tvlicensing.co.uk,26/01/2016
Nottinghamshire County Council,Aftercare - Equipment,"Children, Families & Cultural Services",Debit,169.99,currys online,02/02/2016
Nottinghamshire County Council,Aftercare - Equipment,"Children, Families & Cultural Services",Debit,125.95,argos retail group,02/02/2016
Nottinghamshire County Council,Aftercare - Equipment,"Children, Families & Cultural Services",Debit,108.94,argos retail group,02/02/2016
Nottinghamshire County Council,Aftercare - Equipment,"Children, Families & Cultural Services",Debit,98.94,homebase ltd,02/02/2016
Nottinghamshire County Council,Aftercare - Equipment,"Children, Families & Cultural Services",Debit,145.50,tvlicensing.co.uk,02/02/2016
Nottinghamshire County Council,Office / General Equipment,Environment & Resources,Debit,10.00,asda  stores 4201,15/01/2016
Nottinghamshire County Council,Contingency Budget,"Children, Families & Cultural Services",Debit,5.00,sainsburys s/mkts,05/01/2016
Nottinghamshire County Council,Contingency Budget,"Children, Families & Cultural Services",Debit,249.17,surveymonkey.com,11/01/2016
Nottinghamshire County Council,Personal Needs,"Children, Families & Cultural Services",Debit,15.00,h tempest limited,05/01/2016
Nottinghamshire County Council,Personal Needs,"Children, Families & Cultural Services",Debit,"1,266.00",lloyds bank commercial f,08/01/2016
Nottinghamshire County Council,Office / General Equipment,"Children, Families & Cultural Services",Credit,-24.57,amazon svcs europesar,08/01/2016
Nottinghamshire County Council,Furniture,"Children, Families & Cultural Services",Debit,192.46,fitequip,15/01/2016
Nottinghamshire County Council,Personal Needs,"Children, Families & Cultural Services",Debit,24.99,amazon uk marketplace,17/01/2016
Nottinghamshire County Council,Personal Needs,"Children, Families & Cultural Services",Debit,13.11,amazon uk marketplace,18/01/2016
Nottinghamshire County Council,Personal Needs,"Children, Families & Cultural Services",Debit,6.48,amazon uk marketplace,18/01/2016
Nottinghamshire County Council,Personal Needs,"Children, Families & Cultural Services",Debit,8.53,amazon uk marketplace,19/01/2016
Nottinghamshire County Council,Personal Needs,"Children, Families & Cultural Services",Debit,38.99,amazon uk retail,27/01/2016
Nottinghamshire County Council,Personal Needs,"Children, Families & Cultural Services",Debit,27.68,amazon uk marketplace,28/01/2016
Nottinghamshire County Council,Activities & Support,"Children, Families & Cultural Services",Debit,25.61,wm morrisons,12/01/2016
Nottinghamshire County Council,Activities & Support,"Children, Families & Cultural Services",Debit,17.70,ryman,12/01/2016
Nottinghamshire County Council,Activities & Support,"Children, Families & Cultural Services",Debit,19.52,decathlon,12/01/2016
Nottinghamshire County Council,Activities & Support,"Children, Families & Cultural Services",Debit,11.99,wilko beeston (2),12/01/2016
Nottinghamshire County Council,Activities & Support,"Children, Families & Cultural Services",Debit,28.00,cex,12/01/2016
Nottinghamshire County Council,Activities & Support,"Children, Families & Cultural Services",Debit,60.00,firetop mountain ltd,13/01/2016
Nottinghamshire County Council,Activities & Support,"Children, Families & Cultural Services",Debit,4.69,wm morrisons,13/01/2016
Nottinghamshire County Council,Activities & Support,"Children, Families & Cultural Services",Debit,2.70,wm morrisons,14/01/2016
Nottinghamshire County Council,Activities & Support,"Children, Families & Cultural Services",Debit,7.91,wm morrisons,15/01/2016
Nottinghamshire County Council,Activities & Support,"Children, Families & Cultural Services",Debit,8.16,wm morrisons,19/01/2016
Nottinghamshire County Council,Activities & Support,"Children, Families & Cultural Services",Debit,24.24,wm morrisons,20/01/2016
Nottinghamshire County Council,Activities & Support,"Children, Families & Cultural Services",Debit,24.50,wm morrisons,26/01/2016
Nottinghamshire County Council,Activities & Support,"Children, Families & Cultural Services",Debit,18.97,wm morrisons,29/01/2016
Nottinghamshire County Council,Other Fee's & Services,"Children, Families & Cultural Services",Debit,222.00,the marylebone hotel,29/01/2016
Nottinghamshire County Council,Other Fee's & Services,"Children, Families & Cultural Services",Debit,222.00,the marylebone hotel,29/01/2016
Nottinghamshire County Council,Aids & Appliances,"Children, Families & Cultural Services",Debit,414.25,www.incentiveplus.co.u,22/01/2016
Nottinghamshire County Council,Aids & Appliances,"Children, Families & Cultural Services",Debit,461.90,pavilion publishing,22/01/2016
Nottinghamshire County Council,Teaching Equipment,"Children, Families & Cultural Services",Debit,17.40,asda superstore 04261,09/01/2016
Nottinghamshire County Council,Teaching Equipment,"Children, Families & Cultural Services",Debit,83.70,booker limited mansfield,10/01/2016
Nottinghamshire County Council,Teaching Equipment,"Children, Families & Cultural Services",Debit,8.42,asda superstore 04261,13/01/2016
Nottinghamshire County Council,Teaching Equipment,"Children, Families & Cultural Services",Debit,20.78,asda superstore 04261,24/01/2016
Nottinghamshire County Council,Teaching Equipment,"Children, Families & Cultural Services",Debit,10.22,tesco stores 5379,25/01/2016
Nottinghamshire County Council,Teaching Equipment,"Children, Families & Cultural Services",Debit,33.21,asda superstore 04261,31/01/2016
Nottinghamshire County Council,Teaching Equipment,"Children, Families & Cultural Services",Debit,40.96,aldi,30/01/2016
Nottinghamshire County Council,Provisions,"Children, Families & Cultural Services",Debit,132.06,brookes outdoor look,15/01/2016
Nottinghamshire County Council,Provisions,"Children, Families & Cultural Services",Debit,19.34,tesco store 2964,19/01/2016
Nottinghamshire County Council,Provisions,"Children, Families & Cultural Services",Debit,39.20,wm morrison 067,26/01/2016
Nottinghamshire County Council,Provisions,"Children, Families & Cultural Services",Debit,26.78,tesco store 2964,28/01/2016
Nottinghamshire County Council,Aids & Appliances,"Children, Families & Cultural Services",Debit,124.75,paypal  ,06/01/2016
Nottinghamshire County Council,Legal Fees,"Children, Families & Cultural Services",Debit,215.00,www.justice.gov.uk,12/01/2016
Nottinghamshire County Council,Family Financial Assistance,"Children, Families & Cultural Services",Debit,45.00,the furniture project,13/01/2016
Nottinghamshire County Council,Other Fee's & Services,"Children, Families & Cultural Services",Debit,164.50,hm passport office,21/01/2016
Nottinghamshire County Council,Family Financial Assistance,"Children, Families & Cultural Services",Debit,107.50,maple motor services l,26/01/2016
Nottinghamshire County Council,Training Fees,"Children, Families & Cultural Services",Debit,104.00,virgintrainsec nng stn,14/01/2016
Nottinghamshire County Council,Training Fees,"Children, Families & Cultural Services",Debit,11.50,ncp limited,14/01/2016
Nottinghamshire County Council,Training Fees,"Children, Families & Cultural Services",Debit,9.95,virgintrainsec wi-fi,14/01/2016
Nottinghamshire County Council,Training Fees,"Children, Families & Cultural Services",Debit,208.00,virgintrainsec nng stn,16/01/2016
Nottinghamshire County Council,Training Fees,"Children, Families & Cultural Services",Debit,11.50,ncp limited,18/01/2016
Nottinghamshire County Council,Activities & Support,"Children, Families & Cultural Services",Debit,54.93,tesco store 3439,11/01/2016
Nottinghamshire County Council,Activities & Support,"Children, Families & Cultural Services",Debit,32.82,tesco store 3439,12/01/2016
Nottinghamshire County Council,Activities & Support,"Children, Families & Cultural Services",Debit,2.00,asda stores 4476,13/01/2016
Nottinghamshire County Council,Activities & Support,"Children, Families & Cultural Services",Debit,7.28,tesco stores-3439,14/01/2016
Nottinghamshire County Council,Activities & Support,"Children, Families & Cultural Services",Debit,8.15,tesco stores-3439,15/01/2016
Nottinghamshire County Council,Activities & Support,"Children, Families & Cultural Services",Debit,37.76,tesco store 3439,18/01/2016
Nottinghamshire County Council,Activities & Support,"Children, Families & Cultural Services",Debit,8.15,tesco store 3439,19/01/2016
Nottinghamshire County Council,Activities & Support,"Children, Families & Cultural Services",Debit,29.10,tesco store 3439,25/01/2016
Nottinghamshire County Council,Activities & Support,"Children, Families & Cultural Services",Debit,11.00,tesco store 3439,27/01/2016
Nottinghamshire County Council,Activities & Support,"Children, Families & Cultural Services",Debit,18.50,ken ward sports speciali,27/01/2016
Nottinghamshire County Council,Activities & Support,"Children, Families & Cultural Services",Debit,45.00,tesco store 3439,28/01/2016
Nottinghamshire County Council,Activities & Support,"Children, Families & Cultural Services",Debit,8.75,tesco store 3439,01/02/2016
Nottinghamshire County Council,Activities & Support,"Children, Families & Cultural Services",Debit,27.09,tesco store 3439,02/02/2016
Nottinghamshire County Council,Taxi Fares,"Children, Families & Cultural Services",Debit,14.91,taxipay taxi fare,04/01/2016
Nottinghamshire County Council,Foster Carers Equipment,"Children, Families & Cultural Services",Debit,100.00,victoria carpets,20/01/2016
Nottinghamshire County Council,Activities & Support,"Children, Families & Cultural Services",Debit,26.49,argos ltd,15/01/2016
Nottinghamshire County Council,Activities & Support,"Children, Families & Cultural Services",Debit,14.99,maplin mansfield ng18,21/01/2016
Nottinghamshire County Council,Activities & Support,"Children, Families & Cultural Services",Credit,-2.00,maplin mansfield ng18,23/01/2016
Nottinghamshire County Council,Activities & Support,"Children, Families & Cultural Services",Debit,22.44,w m morrisons,30/01/2016
Nottinghamshire County Council,Activities & Support,"Children, Families & Cultural Services",Debit,23.10,tesco stores 2702,30/01/2016
Nottinghamshire County Council,Activities & Support,"Children, Families & Cultural Services",Debit,13.03,amazon svcs europesar,02/02/2016
Nottinghamshire County Council,Activities & Support,"Children, Families & Cultural Services",Debit,6.99,amazon uk retail,03/02/2016
Nottinghamshire County Council,Materials - External,Environment & Resources,Debit,5.22,eyre  elliston ltd,22/01/2016
Nottinghamshire County Council,Materials - External,Environment & Resources,Debit,24.25,eyre  elliston ltd,27/01/2016
Nottinghamshire County Council,Materials - External,Environment & Resources,Credit,-53.34,eyre  elliston ltd,01/02/2016
Nottinghamshire County Council,Materials - External,Environment & Resources,Debit,20.44,eyre  elliston ltd,01/02/2016
Nottinghamshire County Council,Materials - External,Environment & Resources,Debit,13.26,kirkby components,14/01/2016
Nottinghamshire County Council,Materials - External,Environment & Resources,Debit,136.80,kirkby components,15/01/2016
Nottinghamshire County Council,Office / General Equipment,"Children, Families & Cultural Services",Debit,109.14,aldi,05/01/2016
Nottinghamshire County Council,Office / General Equipment,"Children, Families & Cultural Services",Debit,5.00,tramlink nottingham lt,23/01/2016
Nottinghamshire County Council,Office / General Equipment,"Children, Families & Cultural Services",Debit,39.03,pulp,23/01/2016
Nottinghamshire County Council,Office / General Equipment,"Children, Families & Cultural Services",Debit,25.75,five guys nottingham,23/01/2016
Nottinghamshire County Council,Office / General Equipment,"Children, Families & Cultural Services",Debit,15.00,primark,23/01/2016
Nottinghamshire County Council,Office / General Equipment,"Children, Families & Cultural Services",Debit,0.69,home bargains doncaste,29/01/2016
Nottinghamshire County Council,Office / General Equipment,Environment & Resources,Debit,360.00,the internet s lt m/vt,14/01/2016
Nottinghamshire County Council,Office / General Equipment,Environment & Resources,Debit,14.99,screwfix direct,14/01/2016
Nottinghamshire County Council,Office / General Equipment,Environment & Resources,Debit,281.92,screwfix direct,14/01/2016
Nottinghamshire County Council,Office / General Equipment,Environment & Resources,Debit,825.00,retford kitchen factor,15/01/2016
Nottinghamshire County Council,Office / General Equipment,Environment & Resources,Debit,503.04,anchor fast produc,18/01/2016
Nottinghamshire County Council,Office / General Equipment,"Children, Families & Cultural Services",Credit,-2.00,w boyes  co ltd,04/01/2016
Nottinghamshire County Council,Clothing/Shoes/Uniforms,"Children, Families & Cultural Services",Debit,65.00,j d sports 621,09/01/2016
Nottinghamshire County Council,Office / General Equipment,"Children, Families & Cultural Services",Credit,-15.24,w boyes  co ltd,09/01/2016
Nottinghamshire County Council,Provisions,"Children, Families & Cultural Services",Debit,15.16,co-op group 017091,15/01/2016
Nottinghamshire County Council,Materials - External,Environment & Resources,Debit,272.78,edmundson electrical,08/01/2016
Nottinghamshire County Council,Materials - External,Environment & Resources,Debit,83.46,edmundson electrical,12/01/2016
Nottinghamshire County Council,Materials - External,Environment & Resources,Debit,20.00,sainsburys petrol,01/02/2016
Nottinghamshire County Council,Office / General Equipment,"Adult Social Care, Health & Public Protection ",Debit,45.30,www.sign-holders.co.uk,01/02/2016
Nottinghamshire County Council,Catering Equipment,"Children, Families & Cultural Services",Debit,22.99,amazon uk marketplace,09/01/2016
Nottinghamshire County Council,Personal Needs,"Children, Families & Cultural Services",Debit,14.94,amazon uk marketplace,14/01/2016
Nottinghamshire County Council,Personal Needs,"Children, Families & Cultural Services",Debit,29.74,amazon uk marketplace,30/01/2016
Nottinghamshire County Council,Personal Needs,"Children, Families & Cultural Services",Debit,18.98,amazon uk marketplace,30/01/2016
Nottinghamshire County Council,Personal Needs,"Children, Families & Cultural Services",Debit,4.98,amazon uk marketplace,01/02/2016
Nottinghamshire County Council,Personal Needs,"Children, Families & Cultural Services",Debit,60.00,laser labyrinth ltd,01/02/2016
Nottinghamshire County Council,Personal Needs,"Children, Families & Cultural Services",Debit,18.82,www.uniform-direct.com,02/02/2016
Nottinghamshire County Council,Office / General Equipment,"Children, Families & Cultural Services",Debit,9.49,argos ltd,12/01/2016
Nottinghamshire County Council,Office / General Equipment,"Children, Families & Cultural Services",Debit,12.48,the range,19/01/2016
Nottinghamshire County Council,Office / General Equipment,"Children, Families & Cultural Services",Debit,96.54,wickes,22/01/2016
Nottinghamshire County Council,Office / General Equipment,"Children, Families & Cultural Services",Debit,9.96,wickes,22/01/2016
Nottinghamshire County Council,Office / General Equipment,"Children, Families & Cultural Services",Debit,20.00,f martin ltd,22/01/2016
Nottinghamshire County Council,Office / General Equipment,"Children, Families & Cultural Services",Debit,4.00,tesco stores 5378,01/02/2016
Nottinghamshire County Council,Rail / Tube Fares,"Children, Families & Cultural Services",Debit,276.11,trainline,05/01/2016
Nottinghamshire County Council,Rail / Tube Fares,"Children, Families & Cultural Services",Debit,0.00,trainline,05/01/2016
Nottinghamshire County Council,Rail / Tube Fares,"Children, Families & Cultural Services",Debit,186.35,trainline,26/01/2016
Nottinghamshire County Council,Personal Needs,"Children, Families & Cultural Services",Debit,60.00,j d sports 621,11/01/2016
Nottinghamshire County Council,Personal Needs,"Children, Families & Cultural Services",Debit,8.05,select - mansfield 2,14/01/2016
Nottinghamshire County Council,Personal Needs,"Children, Families & Cultural Services",Debit,39.00,top shop/topman,14/01/2016
Nottinghamshire County Council,Personal Needs,"Children, Families & Cultural Services",Debit,8.50,primark,14/01/2016
Nottinghamshire County Council,Personal Needs,"Children, Families & Cultural Services",Debit,10.00,sainsburys s/mkts,21/01/2016
Nottinghamshire County Council,Personal Needs,"Children, Families & Cultural Services",Debit,5.29,mcdonalds,28/01/2016
Nottinghamshire County Council,Provisions,"Adult Social Care, Health & Public Protection ",Debit,11.95,amazon uk marketplace,01/02/2016
Nottinghamshire County Council,Building Maintenance,Environment & Resources,Debit,20.00,wilko retail limit,03/02/2016
Nottinghamshire County Council,Training Fees,Environment & Resources,Debit,159.90,amazon uk retail,08/01/2016
Nottinghamshire County Council,Training Fees,Environment & Resources,Debit,159.90,amazon uk retail,11/01/2016
Nottinghamshire County Council,Specialist Equipment,"Children, Families & Cultural Services",Debit,27.99,argos retail group,13/01/2016
Nottinghamshire County Council,Activities & Support,"Children, Families & Cultural Services",Debit,145.50,tvlicensing.co.uk,14/01/2016
Nottinghamshire County Council,Clients - H & S Equipt,"Children, Families & Cultural Services",Debit,20.00,sainsburys smkt,12/01/2016
Nottinghamshire County Council,Section 17,"Children, Families & Cultural Services",Debit,395.00,west notts college,14/01/2016
Nottinghamshire County Council,Clients - H & S Equipt,"Children, Families & Cultural Services",Debit,5.85,tesco stores 5329,27/01/2016
Nottinghamshire County Council,Section 17,"Children, Families & Cultural Services",Debit,2.98,tesco stores 5329,27/01/2016
Nottinghamshire County Council,Aftercare Lodging/Hostel,"Children, Families & Cultural Services",Debit,62.95,travelodge website,28/01/2016
Nottinghamshire County Council,Section 17,"Children, Families & Cultural Services",Debit,4.19,mcdonalds,02/02/2016
Nottinghamshire County Council,Contract Catering,"Policy, Planning & Corporate Services",Debit,10.16,amazon uk marketplace,15/01/2016
Nottinghamshire County Council,Contract Catering,"Policy, Planning & Corporate Services",Debit,21.88,amazon uk marketplace,25/01/2016
Nottinghamshire County Council,Activities & Support,"Children, Families & Cultural Services",Debit,89.25,farmfoods- baldert,08/01/2016
Nottinghamshire County Council,Activities & Support,"Children, Families & Cultural Services",Debit,3.50,the works,09/01/2016
Nottinghamshire County Council,Activities & Support,"Children, Families & Cultural Services",Debit,47.78,bm retail,08/01/2016
Nottinghamshire County Council,Activities & Support,"Children, Families & Cultural Services",Debit,38.40,iceland,08/01/2016
Nottinghamshire County Council,Activities & Support,"Children, Families & Cultural Services",Debit,5.93,bm retail ltd,16/01/2016
Nottinghamshire County Council,Activities & Support,"Children, Families & Cultural Services",Debit,10.46,99p stores ltd,16/01/2016
Nottinghamshire County Council,Activities & Support,"Children, Families & Cultural Services",Debit,18.52,bm retail ltd,16/01/2016
Nottinghamshire County Council,Activities & Support,"Children, Families & Cultural Services",Debit,7.05,wilko retail limit,16/01/2016
Nottinghamshire County Council,Activities & Support,"Children, Families & Cultural Services",Debit,15.38,home bargains (retford,16/01/2016
Nottinghamshire County Council,Activities & Support,"Children, Families & Cultural Services",Debit,25.00,travel wright ltd,15/01/2016
Nottinghamshire County Council,Activities & Support,"Children, Families & Cultural Services",Debit,6.59,key diy ltd,18/01/2016
Nottinghamshire County Council,Activities & Support,"Children, Families & Cultural Services",Debit,10.23,heron foods ltd,18/01/2016
Nottinghamshire County Council,Activities & Support,"Children, Families & Cultural Services",Debit,5.55,one stop 2353,19/01/2016
Nottinghamshire County Council,Activities & Support,"Children, Families & Cultural Services",Debit,52.00,heron foods ltd,20/01/2016
Nottinghamshire County Council,Activities & Support,"Children, Families & Cultural Services",Debit,7.45,one stop 2353,26/01/2016
Nottinghamshire County Council,Activities & Support,"Children, Families & Cultural Services",Debit,38.79,farmfoods- baldert,28/01/2016
Nottinghamshire County Council,Activities & Support,"Children, Families & Cultural Services",Debit,16.00,iceland,28/01/2016
Nottinghamshire County Council,Activities & Support,"Children, Families & Cultural Services",Debit,18.99,argos ltd,29/01/2016
Nottinghamshire County Council,Activities & Support,"Children, Families & Cultural Services",Debit,22.55,wilko retail limit,01/02/2016
Nottinghamshire County Council,Activities & Support,"Children, Families & Cultural Services",Debit,13.00,wm morrison 023,03/02/2016
Nottinghamshire County Council,Activities & Support,"Children, Families & Cultural Services",Debit,45.00,notts county council,05/01/2016
Nottinghamshire County Council,Aids & Appliances,Place,Debit,37.80,amazon uk marketplace,07/01/2016
Nottinghamshire County Council,Catering Equipment,Place,Debit,248.38,www.nisbets.com,15/01/2016
Nottinghamshire County Council,Clothing/Shoes/Uniforms,Place,Debit,64.00,matalan,21/01/2016
Nottinghamshire County Council,Clothing/Shoes/Uniforms,Place,Debit,17.59,amazon uk marketplace,25/01/2016
Nottinghamshire County Council,Clothing/Shoes/Uniforms,Place,Debit,129.60,matalan.co.uk,22/01/2016
Nottinghamshire County Council,Office / General Equipment,"Children, Families & Cultural Services",Debit,16.09,reuben shaw  sons,05/01/2016
Nottinghamshire County Council,Office / General Equipment,"Children, Families & Cultural Services",Debit,3.72,key building supplies,09/01/2016
Nottinghamshire County Council,Stationery,"Adult Social Care, Health & Public Protection ",Debit,9.25,gro hm passport office,06/01/2016
Nottinghamshire County Council,Stationery,"Adult Social Care, Health & Public Protection ",Debit,18.50,gro hm passport office,21/01/2016
Nottinghamshire County Council,Materials - External,Environment & Resources,Debit,67.00,newark  sherwood lock,25/01/2016
Nottinghamshire County Council,Activities & Support,"Children, Families & Cultural Services",Debit,4.00,b  q,13/01/2016
Nottinghamshire County Council,Activities & Support,"Children, Families & Cultural Services",Debit,8.00,b  q,13/01/2016
Nottinghamshire County Council,Activities & Support,"Children, Families & Cultural Services",Debit,1.88,b  q,13/01/2016
Nottinghamshire County Council,Activities & Support,"Children, Families & Cultural Services",Debit,4.00,b  q,13/01/2016
Nottinghamshire County Council,Activities & Support,"Children, Families & Cultural Services",Debit,4.00,b  q,13/01/2016
Nottinghamshire County Council,Activities & Support,"Children, Families & Cultural Services",Debit,8.00,b  q,13/01/2016
Nottinghamshire County Council,Activities & Support,"Children, Families & Cultural Services",Debit,34.69,asda store ston in as,12/01/2016
Nottinghamshire County Council,Activities & Support,"Children, Families & Cultural Services",Debit,1.70,asda store ston in as,12/01/2016
Nottinghamshire County Council,Activities & Support,"Children, Families & Cultural Services",Debit,6.00,local 4 u,13/01/2016
Nottinghamshire County Council,Activities & Support,"Children, Families & Cultural Services",Debit,10.26,asda store ston in as,14/01/2016
Nottinghamshire County Council,Activities & Support,"Children, Families & Cultural Services",Debit,1.50,co-op group 017191,15/01/2016
Nottinghamshire County Council,Activities & Support,"Children, Families & Cultural Services",Debit,16.48,asda superstore 04261,19/01/2016
Nottinghamshire County Council,Activities & Support,"Children, Families & Cultural Services",Debit,34.20,asda superstore 04261,21/01/2016
Nottinghamshire County Council,Activities & Support,"Children, Families & Cultural Services",Debit,1.55,wm morrisons plc,22/01/2016
Nottinghamshire County Council,Activities & Support,"Children, Families & Cultural Services",Debit,2.99,local 4 u,27/01/2016
Nottinghamshire County Council,Activities & Support,"Children, Families & Cultural Services",Debit,6.00,local 4 u,28/01/2016
Nottinghamshire County Council,Activities & Support,"Children, Families & Cultural Services",Debit,23.49,asda superstore 04261,29/01/2016
Nottinghamshire County Council,Activities & Support,"Children, Families & Cultural Services",Debit,28.00,asda superstore 04261,02/02/2016
Nottinghamshire County Council,Activities & Support,"Children, Families & Cultural Services",Debit,2.95,asda store ston in as,02/02/2016
Nottinghamshire County Council,Activities & Support,"Children, Families & Cultural Services",Debit,3.88,thandi supermarket 80966,03/02/2016
Nottinghamshire County Council,Office / General Equipment,"Children, Families & Cultural Services",Debit,399.98,amazon uk retail,08/01/2016
Nottinghamshire County Council,Office / General Equipment,"Children, Families & Cultural Services",Debit,459.98,amazon uk retail,20/01/2016
Nottinghamshire County Council,Office / General Equipment,"Children, Families & Cultural Services",Debit,459.98,amazon uk retail,27/01/2016
Nottinghamshire County Council,Staff Training,"Children, Families & Cultural Services",Debit,82.80,www.aelp.org.uk,29/01/2016
Nottinghamshire County Council,Office / General Equipment,"Children, Families & Cultural Services",Debit,459.98,amazon uk retail,29/01/2016
Nottinghamshire County Council,Activities & Support,"Children, Families & Cultural Services",Debit,263.00,royal centre moto,02/02/2016
Nottinghamshire County Council,Rights Of Way,Environment & Resources,Debit,6.40,east midlands trains l,15/01/2016
Nottinghamshire County Council,Rights Of Way,Environment & Resources,Debit,2.89,co-op group 310080,26/01/2016
Nottinghamshire County Council,Personal Needs,"Children, Families & Cultural Services",Debit,10.00,sainsburys s/mkts,22/01/2016
Nottinghamshire County Council,Provisions,"Children, Families & Cultural Services",Debit,35.94,aldi,22/01/2016
Nottinghamshire County Council,Activities & Support,"Children, Families & Cultural Services",Debit,0.83,b  q,29/01/2016
Nottinghamshire County Council,Activities & Support,"Children, Families & Cultural Services",Debit,0.83,b  q,29/01/2016
Nottinghamshire County Council,Activities & Support,"Children, Families & Cultural Services",Debit,4.00,b  q,29/01/2016
Nottinghamshire County Council,Activities & Support,"Children, Families & Cultural Services",Debit,0.83,b  q,29/01/2016
Nottinghamshire County Council,Activities & Support,"Children, Families & Cultural Services",Debit,0.83,b  q,29/01/2016
Nottinghamshire County Council,Activities & Support,"Children, Families & Cultural Services",Debit,10.00,b  q,29/01/2016
Nottinghamshire County Council,Activities & Support,"Children, Families & Cultural Services",Debit,0.85,b  q,29/01/2016
Nottinghamshire County Council,Activities & Support,"Children, Families & Cultural Services",Debit,0.83,b  q,29/01/2016
Nottinghamshire County Council,Activities & Support,"Children, Families & Cultural Services",Debit,6.93,b  q,29/01/2016
Nottinghamshire County Council,Activities & Support,"Children, Families & Cultural Services",Debit,3.00,the works,12/01/2016
Nottinghamshire County Council,Activities & Support,"Children, Families & Cultural Services",Debit,8.28,tesco stores 5437,15/01/2016
Nottinghamshire County Council,Activities & Support,"Children, Families & Cultural Services",Debit,22.12,tesco stores 5437,18/01/2016
Nottinghamshire County Council,Activities & Support,"Children, Families & Cultural Services",Debit,7.73,tesco stores 5437,19/01/2016
Nottinghamshire County Council,Activities & Support,"Children, Families & Cultural Services",Debit,10.38,tesco stores 5437,19/01/2016
Nottinghamshire County Council,Activities & Support,"Children, Families & Cultural Services",Debit,8.39,tesco stores 5437,22/01/2016
Nottinghamshire County Council,Activities & Support,"Children, Families & Cultural Services",Debit,15.25,tesco stores 5437,26/01/2016
Nottinghamshire County Council,Activities & Support,"Children, Families & Cultural Services",Debit,14.20,tesco stores 5437,26/01/2016
Nottinghamshire County Council,Activities & Support,"Children, Families & Cultural Services",Debit,19.76,poundstretcher 715,27/01/2016
Nottinghamshire County Council,Activities & Support,"Children, Families & Cultural Services",Debit,27.00,poundland ltd 1333,27/01/2016
Nottinghamshire County Council,Activities & Support,"Children, Families & Cultural Services",Debit,2.50,b  q,29/01/2016
Nottinghamshire County Council,Activities & Support,"Children, Families & Cultural Services",Debit,2.50,b  q,29/01/2016
Nottinghamshire County Council,Activities & Support,"Children, Families & Cultural Services",Debit,7.98,savers health  beauty,01/02/2016
Nottinghamshire County Council,Activities & Support,"Children, Families & Cultural Services",Debit,1.64,bm retail ltd,01/02/2016
Nottinghamshire County Council,Activities & Support,"Children, Families & Cultural Services",Debit,13.40,wilko retail limit,01/02/2016
Nottinghamshire County Council,Activities & Support,"Children, Families & Cultural Services",Debit,18.22,tesco stores 5437,02/02/2016
Nottinghamshire County Council,Activities & Support,"Children, Families & Cultural Services",Debit,204.99,currys,03/02/2016
Nottinghamshire County Council,Other Fee's & Services,Environment & Resources,Debit,22.48,amazon uk retail,27/01/2016
Nottinghamshire County Council,Office / General Equipment,"Children, Families & Cultural Services",Debit,5.34,aldi,05/01/2016
Nottinghamshire County Council,Office / General Equipment,"Children, Families & Cultural Services",Debit,163.20,worldstores ltd,11/01/2016
Nottinghamshire County Council,Office / General Equipment,"Children, Families & Cultural Services",Debit,277.00,tesco direct,11/01/2016
Nottinghamshire County Council,Office / General Equipment,"Children, Families & Cultural Services",Debit,9.54,edwardes bros ltd,11/01/2016
Nottinghamshire County Council,Office / General Equipment,"Children, Families & Cultural Services",Debit,119.99,currys online,11/01/2016
Nottinghamshire County Council,Office / General Equipment,"Children, Families & Cultural Services",Debit,92.81,booker limited mansfield,12/01/2016
Nottinghamshire County Council,Office / General Equipment,"Children, Families & Cultural Services",Debit,24.99,screwfix direct,20/01/2016
Nottinghamshire County Council,Office / General Equipment,"Children, Families & Cultural Services",Debit,3.98,poundstretcher 715,25/01/2016
Nottinghamshire County Council,Office / General Equipment,"Children, Families & Cultural Services",Debit,29.49,paypal  ,25/01/2016
Nottinghamshire County Council,Office / General Equipment,"Children, Families & Cultural Services",Debit,62.40,nottingham pest contro,03/02/2016
Nottinghamshire County Council,Office / General Equipment,"Children, Families & Cultural Services",Debit,157.11,booker limited mansfield,03/02/2016
Nottinghamshire County Council,Minor Works,"Children, Families & Cultural Services",Debit,23.00,b  q,12/01/2016
Nottinghamshire County Council,Minor Works,"Children, Families & Cultural Services",Debit,23.00,b  q,12/01/2016
Nottinghamshire County Council,Minor Works,"Children, Families & Cultural Services",Debit,16.44,b  b tractors,14/01/2016
Nottinghamshire County Council,Minor Works,"Children, Families & Cultural Services",Debit,13.26,b  b tractors,21/01/2016
Nottinghamshire County Council,Minor Works,"Children, Families & Cultural Services",Debit,7.56,post office counter,02/02/2016
Nottinghamshire County Council,Minor Works,"Children, Families & Cultural Services",Debit,129.13,platts harris tuxford,02/02/2016
Nottinghamshire County Council,Activities & Support,"Children, Families & Cultural Services",Debit,7.91,tesco stores 5877,12/01/2016
Nottinghamshire County Council,Activities & Support,"Children, Families & Cultural Services",Debit,34.33,home bargains,13/01/2016
Nottinghamshire County Council,Activities & Support,"Children, Families & Cultural Services",Debit,9.43,asda superstore,19/01/2016
Nottinghamshire County Council,Activities & Support,"Children, Families & Cultural Services",Debit,6.17,argos ltd,28/01/2016
Nottinghamshire County Council,Activities & Support,"Children, Families & Cultural Services",Debit,15.27,home bargains,28/01/2016
Nottinghamshire County Council,Activities & Support,"Children, Families & Cultural Services",Debit,9.18,asda superstore,02/02/2016
Nottinghamshire County Council,Materials - External,Place,Debit,103.24,intellipower ltd,22/01/2016
Nottinghamshire County Council,Provisions,"Children, Families & Cultural Services",Debit,25.50,wilko retail limit,06/01/2016
Nottinghamshire County Council,Provisions,"Children, Families & Cultural Services",Debit,130.99,amazon uk marketplace,07/01/2016
Nottinghamshire County Council,Provisions,"Children, Families & Cultural Services",Debit,24.47,maplin mansfield ng18,11/01/2016
Nottinghamshire County Council,Provisions,"Children, Families & Cultural Services",Debit,4.40,post office counter,18/01/2016
Nottinghamshire County Council,Provisions,"Children, Families & Cultural Services",Debit,14.26,forest electrical,18/01/2016
Nottinghamshire County Council,Other Fee's & Services,"Children, Families & Cultural Services",Debit,11.00,nottingham city co,06/01/2016
Nottinghamshire County Council,Other Fee's & Services,"Children, Families & Cultural Services",Debit,139.00,sheeps green,18/01/2016
Nottinghamshire County Council,Other Fee's & Services,"Children, Families & Cultural Services",Debit,16.99,tesco stores 2995,25/01/2016
Nottinghamshire County Council,Other Fee's & Services,"Children, Families & Cultural Services",Debit,21.00,nottingham city co,26/01/2016
Nottinghamshire County Council,Other Fee's & Services,"Children, Families & Cultural Services",Debit,11.00,nottingham city co,28/01/2016
Nottinghamshire County Council,Activities & Support,"Children, Families & Cultural Services",Debit,43.25,www.iceland.co.uk,14/01/2016
Nottinghamshire County Council,Activities & Support,"Children, Families & Cultural Services",Debit,40.25,www.iceland.co.uk,14/01/2016
Nottinghamshire County Council,Activities & Support,"Children, Families & Cultural Services",Debit,45.00,tesco stores 2702,19/01/2016
Nottinghamshire County Council,Activities & Support,"Children, Families & Cultural Services",Debit,13.60,asda superstore,21/01/2016
Nottinghamshire County Council,Activities & Support,"Children, Families & Cultural Services",Debit,16.56,asda superstore,26/01/2016
Nottinghamshire County Council,Activities & Support,"Children, Families & Cultural Services",Debit,11.76,tesco stores 2702,02/02/2016
Nottinghamshire County Council,Activities & Support,"Children, Families & Cultural Services",Debit,22.00,poundland,03/02/2016
Nottinghamshire County Council,Staff Training,Environment & Resources,Debit,332.00,the imperial hotels lond,05/01/2016
Nottinghamshire County Council,Aftercare Lodging/Hostel,Environment & Resources,Debit,65.00,premier inn44521025,11/01/2016
Nottinghamshire County Council,Rent / Hire Rooms,Environment & Resources,Debit,771.50,sykes cottages,13/01/2016
Nottinghamshire County Council,Aftercare Lodging/Hostel,Environment & Resources,Debit,65.00,premier inn44521025,12/01/2016
Nottinghamshire County Council,Aftercare Lodging/Hostel,Environment & Resources,Debit,193.97,premier inn44011570,12/01/2016
Nottinghamshire County Council,Aftercare Lodging/Hostel,Environment & Resources,Debit,554.00,tripadvisor h-lets,12/01/2016
Nottinghamshire County Council,Aftercare Lodging/Hostel,Environment & Resources,Debit,122.00,premier inn44521025,12/01/2016
Nottinghamshire County Council,Taxi Fares,Environment & Resources,Debit,11.50,national express limited,15/01/2016
Nottinghamshire County Council,Taxi Fares,Environment & Resources,Debit,11.50,national express limited,15/01/2016
Nottinghamshire County Council,Taxi Fares,Environment & Resources,Debit,11.50,national express limited,28/01/2016
Nottinghamshire County Council,Taxi Fares,Environment & Resources,Debit,11.50,national express limited,28/01/2016
Nottinghamshire County Council,Cleaning Materials,"Adult Social Care, Health & Public Protection ",Debit,18.02,asda storess4342,04/01/2016
Nottinghamshire County Council,Cleaning Materials,"Adult Social Care, Health & Public Protection ",Debit,29.99,argos ltd,04/01/2016
Nottinghamshire County Council,Provisions,"Adult Social Care, Health & Public Protection ",Debit,118.45,wm morrison food.com,05/01/2016
Nottinghamshire County Council,Provisions,"Adult Social Care, Health & Public Protection ",Debit,25.89,wm morrisons,06/01/2016
Nottinghamshire County Council,Provisions,"Adult Social Care, Health & Public Protection ",Debit,5.53,w boyes  co ltd eastw,11/01/2016
Nottinghamshire County Council,Provisions,"Adult Social Care, Health & Public Protection ",Debit,138.99,wm morrison food.com,12/01/2016
Nottinghamshire County Council,Provisions,"Adult Social Care, Health & Public Protection ",Debit,37.36,wm morrisons,15/01/2016
Nottinghamshire County Council,Fuel - Petrol,"Adult Social Care, Health & Public Protection ",Debit,47.60,morrisons petrol,15/01/2016
Nottinghamshire County Council,Fuel - Petrol,"Adult Social Care, Health & Public Protection ",Debit,0.12,morrisons petrol,15/01/2016
Nottinghamshire County Council,Provisions,"Adult Social Care, Health & Public Protection ",Debit,163.78,wm morrison food.com,20/01/2016
Nottinghamshire County Council,Provisions,"Adult Social Care, Health & Public Protection ",Debit,165.73,wm morrison food.com,03/02/2016
Nottinghamshire County Council,Provisions,"Adult Social Care, Health & Public Protection ",Debit,128.22,asda home shopping,04/01/2016
Nottinghamshire County Council,Provisions,"Adult Social Care, Health & Public Protection ",Debit,0.88,asda home shopping,04/01/2016
Nottinghamshire County Council,Provisions,"Adult Social Care, Health & Public Protection ",Debit,204.47,asda home shopping,14/01/2016
Nottinghamshire County Council,Provisions,"Adult Social Care, Health & Public Protection ",Credit,-1.89,asda home shopping,14/01/2016
Nottinghamshire County Council,Provisions,"Adult Social Care, Health & Public Protection ",Debit,99.55,asda home shopping,18/01/2016
Nottinghamshire County Council,Provisions,"Adult Social Care, Health & Public Protection ",Debit,0.06,asda home shopping,18/01/2016
Nottinghamshire County Council,Provisions,"Adult Social Care, Health & Public Protection ",Debit,2.11,asda home shopping,28/01/2016
Nottinghamshire County Council,Provisions,"Adult Social Care, Health & Public Protection ",Debit,166.82,asda home shopping,28/01/2016
Nottinghamshire County Council,Provisions,"Adult Social Care, Health & Public Protection ",Debit,88.25,asda home shopping,01/02/2016
Nottinghamshire County Council,Provisions,"Adult Social Care, Health & Public Protection ",Debit,12.28,iceland,07/01/2016
Nottinghamshire County Council,Provisions,"Adult Social Care, Health & Public Protection ",Debit,5.00,iceland,08/01/2016
Nottinghamshire County Council,Provisions,"Adult Social Care, Health & Public Protection ",Debit,152.30,moorcroft seafoods ltd,11/01/2016
Nottinghamshire County Council,Provisions,"Adult Social Care, Health & Public Protection ",Debit,96.00,moorcroft seafoods ltd,20/01/2016
Nottinghamshire County Council,Provisions,"Adult Social Care, Health & Public Protection ",Debit,7.60,bowbridge road gro,27/01/2016
Nottinghamshire County Council,Provisions,"Adult Social Care, Health & Public Protection ",Debit,14.49,iceland,27/01/2016
Nottinghamshire County Council,Activities & Support,"Children, Families & Cultural Services",Debit,13.88,wm morrison 023,15/01/2016
Nottinghamshire County Council,Stock,"Children, Families & Cultural Services",Debit,115.20,morplan ltd,08/01/2016
Nottinghamshire County Council,Stock,"Children, Families & Cultural Services",Debit,176.40,royal mail,13/01/2016
Nottinghamshire County Council,Stock,"Children, Families & Cultural Services",Debit,35.08,morplan ltd,01/02/2016
Nottinghamshire County Council,Office / General Equipment,Environment & Resources,Debit,29.00,primark,21/01/2016
Nottinghamshire County Council,Activities & Support,"Children, Families & Cultural Services",Debit,22.39,sainsburys s/mkts,11/01/2016
Nottinghamshire County Council,Activities & Support,"Children, Families & Cultural Services",Debit,3.00,sainsburys s/mkts,15/01/2016
Nottinghamshire County Council,Activities & Support,"Children, Families & Cultural Services",Debit,23.75,heron foods ltd,18/01/2016
Nottinghamshire County Council,Activities & Support,"Children, Families & Cultural Services",Debit,9.00,sainsburys s/mkts,18/01/2016
Nottinghamshire County Council,Activities & Support,"Children, Families & Cultural Services",Debit,31.99,amazon uk retail,20/01/2016
Nottinghamshire County Council,Activities & Support,"Children, Families & Cultural Services",Debit,9.39,sainsburys s/mkts,26/01/2016
Nottinghamshire County Council,Activities & Support,"Children, Families & Cultural Services",Debit,1.70,sainsburys s/mkts,28/01/2016
Nottinghamshire County Council,Activities & Support,"Children, Families & Cultural Services",Debit,10.80,sainsburys s/mkts,29/01/2016
Nottinghamshire County Council,Activities & Support,"Children, Families & Cultural Services",Debit,1.50,sainsburys s/mkts,03/02/2016
Nottinghamshire County Council,Personal Needs,"Children, Families & Cultural Services",Debit,8.85,hobbycraft,11/01/2016
Nottinghamshire County Council,Provisions,"Children, Families & Cultural Services",Debit,0.99,bargain booze,24/01/2016
Nottinghamshire County Council,Provisions,"Children, Families & Cultural Services",Debit,2.00,co-op group 017091,30/01/2016
Nottinghamshire County Council,Provisions,"Children, Families & Cultural Services",Debit,8.77,mcdonalds,03/02/2016
Nottinghamshire County Council,Minor Works,"Children, Families & Cultural Services",Debit,1.08,b  q,08/01/2016
Nottinghamshire County Council,Minor Works,"Children, Families & Cultural Services",Debit,4.09,b  q,08/01/2016
Nottinghamshire County Council,Minor Works,"Children, Families & Cultural Services",Debit,3.07,b  q,08/01/2016
Nottinghamshire County Council,Minor Works,"Children, Families & Cultural Services",Debit,3.07,b  q,08/01/2016
Nottinghamshire County Council,Minor Works,"Children, Families & Cultural Services",Debit,7.92,b  q,08/01/2016
Nottinghamshire County Council,Minor Works,"Children, Families & Cultural Services",Debit,1.08,b  q,08/01/2016
Nottinghamshire County Council,Minor Works,"Children, Families & Cultural Services",Debit,10.98,b  q,03/02/2016
Nottinghamshire County Council,Minor Works,"Children, Families & Cultural Services",Debit,10.98,b  q,03/02/2016
Nottinghamshire County Council,Materials - External,Place,Debit,75.00,burdens,03/02/2016
Nottinghamshire County Council,Provisions,"Adult Social Care, Health & Public Protection ",Debit,9.98,jtf wholesale ltd,14/01/2016
Nottinghamshire County Council,Provisions,"Adult Social Care, Health & Public Protection ",Debit,90.02,booker limited mansfield,14/01/2016
Nottinghamshire County Council,Provisions,"Adult Social Care, Health & Public Protection ",Debit,24.89,jtf wholesale ltd,18/01/2016
Nottinghamshire County Council,Provisions,"Adult Social Care, Health & Public Protection ",Debit,16.80,jtf wholesale ltd,20/01/2016
Nottinghamshire County Council,Provisions,"Adult Social Care, Health & Public Protection ",Debit,158.10,www.emmabridgewate,13/01/2016
Nottinghamshire County Council,Provisions,"Adult Social Care, Health & Public Protection ",Debit,33.69,wm morrison 023,22/01/2016
Nottinghamshire County Council,Provisions,"Adult Social Care, Health & Public Protection ",Debit,94.80,www.emmabridgewate,14/01/2016
Nottinghamshire County Council,Provisions,"Adult Social Care, Health & Public Protection ",Debit,2.00,tesco stores 5437,28/01/2016
Nottinghamshire County Council,Provisions,"Adult Social Care, Health & Public Protection ",Debit,12.00,wm morrisons plc,30/01/2016
Nottinghamshire County Council,Provisions,"Adult Social Care, Health & Public Protection ",Debit,30.00,wm morrison 023,01/02/2016
Nottinghamshire County Council,Provisions,"Adult Social Care, Health & Public Protection ",Debit,23.00,wm morrison 023,03/02/2016
Nottinghamshire County Council,Office / General Equipment,Place ,Debit,11.64,screwfix direct,21/01/2016
Nottinghamshire County Council,Office / General Equipment,Place ,Debit,116.41,screwfix direct,21/01/2016
Nottinghamshire County Council,Office / General Equipment,Place ,Debit,12.60,screwfix direct,21/01/2016
Nottinghamshire County Council,Office / General Equipment,Place ,Debit,5.82,screwfix direct,21/01/2016
Nottinghamshire County Council,Office / General Equipment,Place ,Debit,9.69,screwfix direct,21/01/2016
Nottinghamshire County Council,Office / General Equipment,Place ,Debit,6.78,screwfix direct,21/01/2016
Nottinghamshire County Council,Office / General Equipment,Place ,Debit,45.65,js online grocery,05/01/2016
Nottinghamshire County Council,Provisions,Place ,Debit,83.72,js online grocery,05/01/2016
Nottinghamshire County Council,Provisions,Place ,Debit,24.39,barrons of,06/01/2016
Nottinghamshire County Council,Office / General Equipment,Place ,Debit,5.94,amazon uk marketplace,07/01/2016
Nottinghamshire County Council,Office / General Equipment,Place ,Debit,29.99,amazon uk marketplace,08/01/2016
Nottinghamshire County Council,Provisions,Place ,Debit,63.25,js online grocery,12/01/2016
Nottinghamshire County Council,Office / General Equipment,Place ,Debit,524.90,home leisure direct lt,19/01/2016
Nottinghamshire County Council,Office / General Equipment,Place ,Debit,44.90,www.smiffys.com,20/01/2016
Nottinghamshire County Council,Office / General Equipment,Place ,Debit,11.78,amazon uk marketplace,20/01/2016
Nottinghamshire County Council,Office / General Equipment,Place ,Debit,34.77,amazon uk marketplace,20/01/2016
Nottinghamshire County Council,Office / General Equipment,Place ,Debit,24.60,amazon uk marketplace,20/01/2016
Nottinghamshire County Council,Office / General Equipment,Place ,Debit,2.81,amazon uk marketplace,21/01/2016
Nottinghamshire County Council,Office / General Equipment,Place ,Debit,30.81,amazon uk marketplace,21/01/2016
Nottinghamshire County Council,Office / General Equipment,Place ,Debit,3.60,amazon uk marketplace,21/01/2016
Nottinghamshire County Council,Office / General Equipment,Place ,Debit,5.90,amazon uk marketplace,22/01/2016
Nottinghamshire County Council,Office / General Equipment,Place ,Credit,-12.91,amazon uk marketplace,25/01/2016
Nottinghamshire County Council,Office / General Equipment,Place ,Debit,104.97,the r u company,25/01/2016
Nottinghamshire County Council,Provisions,Place ,Debit,51.92,js online grocery,25/01/2016
Nottinghamshire County Council,Office / General Equipment,Place ,Debit,124.80,dataharvest,26/01/2016
Nottinghamshire County Council,Office / General Equipment,Place ,Debit,119.92,amazon uk marketplace,26/01/2016
Nottinghamshire County Council,Provisions,Place ,Debit,63.47,js online grocery,27/01/2016
Nottinghamshire County Council,Office / General Equipment,Place ,Debit,11.93,qualsafe ltd,28/01/2016
Nottinghamshire County Council,Teaching Equipment,Place ,Debit,9.00,go outdoors ltd,28/01/2016
Nottinghamshire County Council,Office / General Equipment,Place ,Debit,53.78,www.qualsafe.com,28/01/2016
Nottinghamshire County Council,Postages,Place ,Debit,11.68,post office counter,28/01/2016
Nottinghamshire County Council,Minor Works,Place ,Debit,32.00,bq direct,02/02/2016
Nottinghamshire County Council,Postages,Resources,Debit,236.00,post office counter,06/01/2016
Nottinghamshire County Council,Postages,Resources,Debit,325.00,post office counter,13/01/2016
Nottinghamshire County Council,Postages,Resources,Debit,10.52,amazon uk marketplace,21/01/2016
Nottinghamshire County Council,Postages,Resources,Debit,32.00,stk shutterstock.com,01/02/2016
Nottinghamshire County Council,Hospitality,"Children, Families & Cultural Services",Debit,5.50,tesco stores 5437,13/01/2016
Nottinghamshire County Council,Hospitality,"Children, Families & Cultural Services",Debit,32.05,sainsburys s/mkts,25/01/2016
Nottinghamshire County Council,Office / General Equipment,"Children, Families & Cultural Services",Debit,9.61,amazon uk retail,06/01/2016
Nottinghamshire County Council,Office / General Equipment,"Children, Families & Cultural Services",Debit,85.56,midland fixings ltd,06/01/2016
Nottinghamshire County Council,Office / General Equipment,"Children, Families & Cultural Services",Debit,9.86,amazon uk retail,06/01/2016
Nottinghamshire County Council,Office / General Equipment,"Children, Families & Cultural Services",Debit,4.84,amazon uk retail,06/01/2016
Nottinghamshire County Council,Office / General Equipment,"Children, Families & Cultural Services",Debit,17.63,amazon uk retail,07/01/2016
Nottinghamshire County Council,Office / General Equipment,"Children, Families & Cultural Services",Debit,19.20,sign it (nottm) ltd,12/01/2016
Nottinghamshire County Council,Office / General Equipment,"Children, Families & Cultural Services",Debit,134.60,eastmidlandstrains,15/01/2016
Nottinghamshire County Council,Office / General Equipment,"Children, Families & Cultural Services",Debit,9.99,www.learnerdriving.com,22/01/2016
Nottinghamshire County Council,Office / General Equipment,"Children, Families & Cultural Services",Debit,88.10,eastmidlandstrains,26/01/2016
Nottinghamshire County Council,Activities & Support,"Children, Families & Cultural Services",Debit,88.94,equestrianclearanc,02/02/2016
Nottinghamshire County Council,Office / General Equipment,"Children, Families & Cultural Services",Debit,119.99,amazon uk marketplace,02/02/2016
Nottinghamshire County Council,Clothing/Shoes/Uniforms,"Children, Families & Cultural Services",Debit,54.98,sportsdirect 292,15/01/2016
Nottinghamshire County Council,Personal Needs,"Children, Families & Cultural Services",Debit,13.03,vistapr vistaprint.uk,27/01/2016
Nottinghamshire County Council,Materials - Stores,Place,Debit,46.22,jewson 3664,26/01/2016
Nottinghamshire County Council,Materials - Stores,Place,Debit,19.74,screwfix direct,06/01/2016
Nottinghamshire County Council,Materials - Stores,Place,Debit,9.08,screwfix direct,22/01/2016
Nottinghamshire County Council,Materials - Stores,Place,Debit,2.39,screwfix direct,25/01/2016
Nottinghamshire County Council,Materials - Stores,Place,Debit,34.09,toolstation ltd,29/01/2016
Nottinghamshire County Council,Provisions,"Adult Social Care, Health & Public Protection ",Debit,146.33,www.floristsuppliesuk.,18/01/2016
Nottinghamshire County Council,Provisions,"Adult Social Care, Health & Public Protection ",Debit,58.75,hobbycraft,19/01/2016
Nottinghamshire County Council,Provisions,"Adult Social Care, Health & Public Protection ",Debit,62.99,candi gifts basketware,25/01/2016
Nottinghamshire County Council,Provisions,"Adult Social Care, Health & Public Protection ",Debit,5.65,tesco stores 2702,02/02/2016
Nottinghamshire County Council,Provisions,Environment & Resources,Debit,15.60,iceland,04/01/2016
Nottinghamshire County Council,Provisions,Environment & Resources,Debit,4.49,iceland,05/01/2016
Nottinghamshire County Council,Provisions,Environment & Resources,Debit,1.68,asda superstore,06/01/2016
Nottinghamshire County Council,Provisions,Environment & Resources,Debit,7.00,iceland,08/01/2016
Nottinghamshire County Council,Provisions,Environment & Resources,Debit,16.00,iceland,12/01/2016
Nottinghamshire County Council,Provisions,Environment & Resources,Debit,29.00,iceland,18/01/2016
Nottinghamshire County Council,Provisions,Environment & Resources,Debit,22.00,iceland,25/01/2016
Nottinghamshire County Council,Provisions,Environment & Resources,Debit,2.40,wilko retail limit,27/01/2016
Nottinghamshire County Council,Provisions,Environment & Resources,Debit,8.50,iceland,27/01/2016
Nottinghamshire County Council,Provisions,Environment & Resources,Debit,12.00,iceland,01/02/2016
Nottinghamshire County Council,Clients - H & S Equipt,"Children, Families & Cultural Services",Debit,13.06,light in the box (uk),05/01/2016
Nottinghamshire County Council,Activities & Support,"Children, Families & Cultural Services",Debit,45.00,notts county council,05/01/2016
Nottinghamshire County Council,Clients - H & S Equipt,"Children, Families & Cultural Services",Debit,59.95,argos retail group,06/01/2016
Nottinghamshire County Council,Cl Payments,"Children, Families & Cultural Services",Debit,15.00,mansfield superbowl,26/01/2016
Nottinghamshire County Council,Other Fee's & Services,"Children, Families & Cultural Services",Debit,20.00,states of guernsey,26/01/2016
Nottinghamshire County Council,Clients - H & S Equipt,"Children, Families & Cultural Services",Debit,6.26,amazon uk marketplace,02/02/2016
Nottinghamshire County Council,Office / General Equipment,"Children, Families & Cultural Services",Debit,20.70,tesco stores 5379,12/01/2016
Nottinghamshire County Council,Office / General Equipment,"Children, Families & Cultural Services",Debit,23.49,argos ltd,12/01/2016
Nottinghamshire County Council,Office / General Equipment,"Children, Families & Cultural Services",Debit,26.33,amazon uk retail,27/01/2016
Nottinghamshire County Council,Office / General Equipment,"Children, Families & Cultural Services",Debit,3.98,amazon uk marketplace,27/01/2016
Nottinghamshire County Council,Office / General Equipment,"Children, Families & Cultural Services",Debit,3.38,amazon uk marketplace,27/01/2016
Nottinghamshire County Council,Office / General Equipment,Environment & Resources,Debit,156.00,tp worksop,28/01/2016
Nottinghamshire County Council,Activities & Support,"Children, Families & Cultural Services",Debit,12.46,asda store ston in as,23/01/2016
Nottinghamshire County Council,Materials - External,Environment & Resources,Debit,30.48,bss group plc,06/01/2016
Nottinghamshire County Council,Materials - External,Environment & Resources,Debit,19.24,bss group plc,06/01/2016
Nottinghamshire County Council,Materials - External,Environment & Resources,Debit,4.66,bss group plc,06/01/2016
Nottinghamshire County Council,Materials - External,Environment & Resources,Debit,18.66,bss group plc,06/01/2016
Nottinghamshire County Council,Materials - External,Environment & Resources,Debit,4.58,bss group plc,06/01/2016
Nottinghamshire County Council,Materials - External,Environment & Resources,Debit,0.96,bss group plc,06/01/2016
Nottinghamshire County Council,Materials - External,Environment & Resources,Debit,1.00,bss group plc,06/01/2016
Nottinghamshire County Council,Materials - External,Environment & Resources,Debit,3.13,bss group plc,06/01/2016
Nottinghamshire County Council,Materials - External,Environment & Resources,Debit,18.56,bss group plc,06/01/2016
Nottinghamshire County Council,Materials - External,Environment & Resources,Debit,1.13,bss group plc,06/01/2016
Nottinghamshire County Council,Materials - External,Environment & Resources,Debit,37.49,bss group plc,06/01/2016
Nottinghamshire County Council,Materials - External,Environment & Resources,Debit,2.30,bss group plc,06/01/2016
Nottinghamshire County Council,Materials - External,Environment & Resources,Debit,0.77,bss group plc,06/01/2016
Nottinghamshire County Council,Materials - External,Environment & Resources,Debit,1.14,bss group plc,06/01/2016
Nottinghamshire County Council,Materials - External,Environment & Resources,Debit,0.67,bss group plc,06/01/2016
Nottinghamshire County Council,Materials - External,Environment & Resources,Debit,93.11,tubes fittings,13/01/2016
Nottinghamshire County Council,Materials - External,Environment & Resources,Debit,290.40,tubes fittings,18/01/2016
Nottinghamshire County Council,Materials - External,Environment & Resources,Debit,44.04,tubes fittings,22/01/2016
Nottinghamshire County Council,Materials - External,Environment & Resources,Debit,8.40,1st access,12/01/2016
Nottinghamshire County Council,Materials - External,Environment & Resources,Debit,4.61,frank key (notts) ltd,16/01/2016
Nottinghamshire County Council,Materials - External,Environment & Resources,Debit,52.19,arco ltd,29/01/2016
Nottinghamshire County Council,Materials - External,Environment & Resources,Debit,253.60,arco ltd,29/01/2016
Nottinghamshire County Council,Office / General Equipment,"Children, Families & Cultural Services",Debit,4.00,b  q,25/01/2016
Nottinghamshire County Council,Office / General Equipment,"Children, Families & Cultural Services",Debit,4.00,b  q,25/01/2016
Nottinghamshire County Council,Office / General Equipment,"Children, Families & Cultural Services",Debit,11.50,b  q,25/01/2016
Nottinghamshire County Council,Office / General Equipment,"Children, Families & Cultural Services",Debit,4.00,b  q,25/01/2016
Nottinghamshire County Council,Materials - External,Place ,Debit,15.79,rs components,04/01/2016
Nottinghamshire County Council,Materials - External,Place ,Debit,34.16,rs components,04/01/2016
Nottinghamshire County Council,Materials - External,Place ,Debit,14.41,rs components,04/01/2016
Nottinghamshire County Council,Activities & Support,"Children, Families & Cultural Services",Debit,3.43,asda stores 4475,08/01/2016
Nottinghamshire County Council,Activities & Support,"Children, Families & Cultural Services",Debit,3.70,sainsburys s/mkts,08/01/2016
Nottinghamshire County Council,Activities & Support,"Children, Families & Cultural Services",Debit,4.63,home bargains worksop,17/01/2016
Nottinghamshire County Council,Activities & Support,"Children, Families & Cultural Services",Debit,9.29,wm morrison store,22/01/2016
Nottinghamshire County Council,Activities & Support,"Children, Families & Cultural Services",Debit,4.15,home bargains worksop,27/01/2016
Nottinghamshire County Council,Activities & Support,"Children, Families & Cultural Services",Debit,4.65,wm morrison store,29/01/2016
Nottinghamshire County Council,Specialist Equipment,"Children, Families & Cultural Services",Debit,234.60,paypal  ,05/01/2016
Nottinghamshire County Council,Specialist Equipment,"Children, Families & Cultural Services",Debit,34.44,screwfix,18/01/2016
Nottinghamshire County Council,Specialist Equipment,"Children, Families & Cultural Services",Debit,128.30,www.powertooldirec,30/01/2016
Nottinghamshire County Council,Specialist Equipment,"Children, Families & Cultural Services",Debit,135.84,corden hardware company,01/02/2016
Nottinghamshire County Council,Office / General Equipment,"Adult Social Care, Health & Public Protection ",Debit,89.99,[Redacted],25/01/2016
Nottinghamshire County Council,Activities & Support,"Children, Families & Cultural Services",Debit,69.84,asda superstore 04030,19/01/2016
Nottinghamshire County Council,Activities & Support,"Children, Families & Cultural Services",Debit,30.01,budgens keyworth,20/01/2016
Nottinghamshire County Council,Activities & Support,"Children, Families & Cultural Services",Debit,9.59,budgens keyworth,21/01/2016
Nottinghamshire County Council,Activities & Support,"Children, Families & Cultural Services",Debit,5.86,co-op group 011281,26/01/2016
Nottinghamshire County Council,Activities & Support,"Children, Families & Cultural Services",Debit,24.00,asda superstore 04030,01/02/2016
Nottinghamshire County Council,Activities & Support,"Children, Families & Cultural Services",Debit,21.74,budgens keyworth,02/02/2016
Nottinghamshire County Council,Office / General Equipment,"Children, Families & Cultural Services",Debit,3.99,www.hive.co.uk,18/01/2016
Nottinghamshire County Council,Office / General Equipment,"Children, Families & Cultural Services",Debit,158.95,argos retail group,03/02/2016
Nottinghamshire County Council,Activities & Support,"Children, Families & Cultural Services",Debit,25.85,co-op group 010811,12/01/2016
Nottinghamshire County Council,Activities & Support,"Children, Families & Cultural Services",Debit,33.80,ikea,13/01/2016
Nottinghamshire County Council,Activities & Support,"Children, Families & Cultural Services",Debit,52.30,w m morrisons,14/01/2016
Nottinghamshire County Council,Activities & Support,"Children, Families & Cultural Services",Debit,15.00,wm morrisons dry c,14/01/2016
Nottinghamshire County Council,Activities & Support,"Children, Families & Cultural Services",Debit,20.83,post news,20/01/2016
Nottinghamshire County Council,Activities & Support,"Children, Families & Cultural Services",Debit,18.88,co-op group 010811,20/01/2016
Nottinghamshire County Council,Activities & Support,"Children, Families & Cultural Services",Debit,12.50,co-op group 010811,26/01/2016
Nottinghamshire County Council,Activities & Support,"Children, Families & Cultural Services",Debit,36.98,dw sports fitness,26/01/2016
Nottinghamshire County Council,Activities & Support,"Children, Families & Cultural Services",Debit,37.99,argos ltd,26/01/2016
Nottinghamshire County Council,Activities & Support,"Children, Families & Cultural Services",Debit,9.50,co-op group 010811,02/02/2016
Nottinghamshire County Council,Activities & Support,"Children, Families & Cultural Services",Debit,24.00,lulu enterprises uk ltd,02/02/2016
Nottinghamshire County Council,Office / General Equipment,"Children, Families & Cultural Services",Debit,72.00,mosaic board print,06/01/2016
Nottinghamshire County Council,Office / General Equipment,"Children, Families & Cultural Services",Debit,18.25,http://www.derbyshire.,20/01/2016
Nottinghamshire County Council,Office / General Equipment,"Children, Families & Cultural Services",Debit,11.75,amazon uk marketplace,02/02/2016
Nottinghamshire County Council,Office / General Equipment,"Children, Families & Cultural Services",Debit,8.40,paypal  ,03/02/2016
Nottinghamshire County Council,Unallocated Budget,"Children, Families & Cultural Services",Debit,11.00,nottingham city co,05/01/2016
Nottinghamshire County Council,Other Fee's & Services,"Children, Families & Cultural Services",Debit,23.40,gro hm passport office,05/01/2016
Nottinghamshire County Council,Other Fee's & Services,"Children, Families & Cultural Services",Credit,-23.40,gro hm passport office,05/01/2016
Nottinghamshire County Council,Other Fee's & Services,"Children, Families & Cultural Services",Debit,23.40,gro hm passport office,06/01/2016
Nottinghamshire County Council,Other Fee's & Services,"Children, Families & Cultural Services",Credit,-23.40,gro hm passport office,06/01/2016
Nottinghamshire County Council,Unallocated Budget,"Children, Families & Cultural Services",Debit,11.00,ombc tel payment,07/01/2016
Nottinghamshire County Council,Aftercare Lodging/Hostel,"Children, Families & Cultural Services",Debit,404.87,www.leaders.co.uk/page,08/01/2016
Nottinghamshire County Council,Regular Special Grant,"Children, Families & Cultural Services",Debit,522.01,e.on energy solutions,18/01/2016
Nottinghamshire County Council,Bus Fares,"Children, Families & Cultural Services",Debit,40.00,stagecoach service,20/01/2016
Nottinghamshire County Council,Aftercare - Equipment,"Children, Families & Cultural Services",Debit,145.50,tvlicensing.co.uk,21/01/2016
Nottinghamshire County Council,Activities & Support,"Children, Families & Cultural Services",Debit,22.50,mansfield superbowl,28/01/2016
Nottinghamshire County Council,Non Staff Travel & Expenses,"Children, Families & Cultural Services",Debit,671.00,trailfinders,02/02/2016
Nottinghamshire County Council,Bus Fares,"Children, Families & Cultural Services",Credit,-35.00,stagecoach service,20/01/2016
Nottinghamshire County Council,Bus Fares,"Children, Families & Cultural Services",Debit,49.50,stagecoach service,02/02/2016
Nottinghamshire County Council,Materials - External,Environment & Resources,Debit,149.76,edmundson electrical,01/02/2016
Nottinghamshire County Council,Materials - External,Environment & Resources,Debit,64.74,edmundson electrical,01/02/2016
Nottinghamshire County Council,Materials - External,Environment & Resources,Debit,56.97,screwfix,06/01/2016
Nottinghamshire County Council,Materials - External,Environment & Resources,Debit,116.40,power tool solutio,01/02/2016
Nottinghamshire County Council,Clients - H & S Equipt,"Children, Families & Cultural Services",Debit,20.00,asda superstore,05/01/2016
Nottinghamshire County Council,Clients - H & S Equipt,"Children, Families & Cultural Services",Debit,40.50,gifto mini market,07/01/2016
Nottinghamshire County Council,Clients - H & S Equipt,"Children, Families & Cultural Services",Debit,100.93,sumup   yoursecurelocksm,07/01/2016
Nottinghamshire County Council,Clients - H & S Equipt,"Children, Families & Cultural Services",Debit,11.00,tesco stores 5378,07/01/2016
Nottinghamshire County Council,Clients - H & S Equipt,"Children, Families & Cultural Services",Debit,14.75,edward lane news  booze,07/01/2016
Nottinghamshire County Council,Clients - H & S Equipt,"Children, Families & Cultural Services",Debit,129.00,tesco stores (5378),07/01/2016
Nottinghamshire County Council,Clients - H & S Equipt,"Children, Families & Cultural Services",Debit,8.45,costa coffee,20/01/2016
Nottinghamshire County Council,Clients - H & S Equipt,"Children, Families & Cultural Services",Debit,78.83,argos ltd,26/01/2016
Nottinghamshire County Council,Clients - H & S Equipt,"Children, Families & Cultural Services",Debit,104.43,bm retail ltd,26/01/2016
Nottinghamshire County Council,Clients - H & S Equipt,"Children, Families & Cultural Services",Debit,38.21,tesco stores 5329,26/01/2016
Nottinghamshire County Council,Clients - H & S Equipt,"Children, Families & Cultural Services",Debit,30.00,asda superstore,02/02/2016
Nottinghamshire County Council,Clients - H & S Equipt,"Children, Families & Cultural Services",Debit,24.50,wilko retail limit,02/02/2016
Nottinghamshire County Council,Activities & Support,"Children, Families & Cultural Services",Debit,7.03,co-op group 065071,11/01/2016
Nottinghamshire County Council,Activities & Support,"Children, Families & Cultural Services",Debit,10.13,wm morrisons,11/01/2016
Nottinghamshire County Council,Activities & Support,"Children, Families & Cultural Services",Debit,11.90,wm morrisons,18/01/2016
Nottinghamshire County Council,Activities & Support,"Children, Families & Cultural Services",Debit,31.17,co-op group 065071,20/01/2016
Nottinghamshire County Council,Activities & Support,"Children, Families & Cultural Services",Debit,7.50,wilko retail limit,25/01/2016
Nottinghamshire County Council,Activities & Support,"Children, Families & Cultural Services",Debit,15.00,wm morrisons,25/01/2016
Nottinghamshire County Council,Activities & Support,"Children, Families & Cultural Services",Debit,6.00,poundworld retail,25/01/2016
Nottinghamshire County Council,Activities & Support,"Children, Families & Cultural Services",Debit,11.00,co-op group 065071,27/01/2016
Nottinghamshire County Council,Activities & Support,"Children, Families & Cultural Services",Debit,22.15,co-op group 065071,27/01/2016
Nottinghamshire County Council,Activities & Support,"Children, Families & Cultural Services",Debit,6.00,poundworld retail,01/02/2016
Nottinghamshire County Council,Activities & Support,"Children, Families & Cultural Services",Debit,14.46,wh smith,03/02/2016
Nottinghamshire County Council,Activities & Support,"Children, Families & Cultural Services",Debit,11.26,co-op group 065071,03/02/2016
Nottinghamshire County Council,Activities & Support,"Children, Families & Cultural Services",Debit,14.90,aldi,06/01/2016
Nottinghamshire County Council,Activities & Support,"Children, Families & Cultural Services",Debit,17.05,aldi,07/01/2016
Nottinghamshire County Council,Activities & Support,"Children, Families & Cultural Services",Debit,26.38,tesco stores 2995,13/01/2016
Nottinghamshire County Council,Activities & Support,"Children, Families & Cultural Services",Debit,13.97,iceland,14/01/2016
Nottinghamshire County Council,Activities & Support,"Children, Families & Cultural Services",Debit,12.99,odeon,16/01/2016
Nottinghamshire County Council,Activities & Support,"Children, Families & Cultural Services",Debit,44.30,odeon,16/01/2016
Nottinghamshire County Council,Activities & Support,"Children, Families & Cultural Services",Debit,4.29,tesco stores 2995,18/01/2016
Nottinghamshire County Council,Activities & Support,"Children, Families & Cultural Services",Debit,42.35,the range,19/01/2016
Nottinghamshire County Council,Activities & Support,"Children, Families & Cultural Services",Debit,24.48,aldi,20/01/2016
Nottinghamshire County Council,Activities & Support,"Children, Families & Cultural Services",Debit,16.39,iceland,21/01/2016
Nottinghamshire County Council,Activities & Support,"Children, Families & Cultural Services",Debit,15.00,iceland,23/01/2016
Nottinghamshire County Council,Activities & Support,"Children, Families & Cultural Services",Debit,75.00,odeon,23/01/2016
Nottinghamshire County Council,Activities & Support,"Children, Families & Cultural Services",Debit,21.17,victoria street,27/01/2016
Nottinghamshire County Council,Activities & Support,"Children, Families & Cultural Services",Debit,15.63,tesco stores 2995,28/01/2016
Nottinghamshire County Council,Activities & Support,"Children, Families & Cultural Services",Debit,11.65,newark,03/02/2016
Nottinghamshire County Council,Activities & Support,"Children, Families & Cultural Services",Debit,10.00,poundland ltd 1188,31/01/2016
Nottinghamshire County Council,Activities & Support,"Children, Families & Cultural Services",Debit,135.82,argos ltd,30/01/2016
Nottinghamshire County Council,Activities & Support,"Children, Families & Cultural Services",Debit,33.00,poundworld retail,31/01/2016
Nottinghamshire County Council,Provisions,"Adult Social Care, Health & Public Protection ",Debit,172.80,hitachi capital,07/01/2016
Nottinghamshire County Council,Printing / Photocopying Materials,"Adult Social Care, Health & Public Protection ",Debit,29.90,dunelm ltd,12/01/2016
Nottinghamshire County Council,Hospitality,"Adult Social Care, Health & Public Protection ",Debit,33.05,tesco stores 5437,12/01/2016
Nottinghamshire County Council,Printing / Photocopying Materials,"Adult Social Care, Health & Public Protection ",Debit,107.60,dunelm ltd,21/01/2016
Nottinghamshire County Council,Activities & Support,"Children, Families & Cultural Services",Debit,3.95,farmfoods- long ea,11/01/2016
Nottinghamshire County Council,Activities & Support,"Children, Families & Cultural Services",Debit,13.06,asda stores,18/01/2016
Nottinghamshire County Council,Activities & Support,"Children, Families & Cultural Services",Debit,1.50,sainsburys s/mkt,19/01/2016
Nottinghamshire County Council,Activities & Support,"Children, Families & Cultural Services",Debit,3.38,aldi,19/01/2016
Nottinghamshire County Council,Activities & Support,"Children, Families & Cultural Services",Debit,2.60,co-op group 010811,20/01/2016
Nottinghamshire County Council,Activities & Support,"Children, Families & Cultural Services",Debit,3.35,sainsburys smkt,21/01/2016
Nottinghamshire County Council,Activities & Support,"Children, Families & Cultural Services",Debit,11.00,asda stores,24/01/2016
Nottinghamshire County Council,Activities & Support,"Children, Families & Cultural Services",Debit,4.00,asda stores,24/01/2016
Nottinghamshire County Council,Activities & Support,"Children, Families & Cultural Services",Debit,3.38,aldi,26/01/2016
Nottinghamshire County Council,Activities & Support,"Children, Families & Cultural Services",Debit,0.45,aldi,28/01/2016
Nottinghamshire County Council,Activities & Support,"Children, Families & Cultural Services",Debit,6.83,b  m retail,28/01/2016
Nottinghamshire County Council,Office / General Equipment,"Children, Families & Cultural Services",Debit,39.90,amazon uk marketplace,06/01/2016
Nottinghamshire County Council,Office / General Equipment,"Children, Families & Cultural Services",Debit,49.65,amazon uk marketplace,06/01/2016
Nottinghamshire County Council,Office / General Equipment,"Children, Families & Cultural Services",Debit,222.90,amazon uk retail,11/01/2016
Nottinghamshire County Council,Office / General Equipment,"Children, Families & Cultural Services",Debit,184.61,amazon uk marketplace,11/01/2016
Nottinghamshire County Council,Office / General Equipment,"Children, Families & Cultural Services",Debit,32.70,safetysuppl,11/01/2016
Nottinghamshire County Council,Office / General Equipment,"Adult Social Care, Health & Public Protection ",Debit,34.74,www.harveys.co.uk,07/01/2016
Nottinghamshire County Council,Office / General Equipment,"Adult Social Care, Health & Public Protection ",Debit,34.74,www.harveys.co.uk,14/01/2016
Nottinghamshire County Council,Office / General Equipment,"Adult Social Care, Health & Public Protection ",Credit,-28.80,www.harveys.co.uk,25/01/2016
Nottinghamshire County Council,Aftercare - Equipment,"Children, Families & Cultural Services",Debit,5.99,argos retail group,06/01/2016
Nottinghamshire County Council,Aftercare - Equipment,"Children, Families & Cultural Services",Debit,31.97,argos retail group,06/01/2016
Nottinghamshire County Council,Aftercare - Equipment,"Children, Families & Cultural Services",Debit,39.99,argos retail group,15/01/2016
Nottinghamshire County Council,Cl Payments,"Children, Families & Cultural Services",Debit,109.00,tesco direct,21/01/2016
Nottinghamshire County Council,Other Fee's & Services,"Children, Families & Cultural Services",Debit,22.00,north tyneside,22/01/2016
Nottinghamshire County Council,Other Fee's & Services,"Children, Families & Cultural Services",Debit,13.00,leic city council,22/01/2016
Nottinghamshire County Council,Aftercare - Equipment,"Children, Families & Cultural Services",Debit,7.99,argos retail group,29/01/2016
Nottinghamshire County Council,Activities & Support,"Children, Families & Cultural Services",Debit,40.99,republic.com retai,01/02/2016
Nottinghamshire County Council,Office / General Equipment,Environment & Resources,Debit,169.90,amazon uk retail,13/01/2016
Nottinghamshire County Council,Office / General Equipment,Environment & Resources,Debit,372.99,amazon uk marketplace,13/01/2016
Nottinghamshire County Council,Office / General Equipment,Environment & Resources,Credit,-7.99,amazon uk marketplace,14/01/2016
Nottinghamshire County Council,Office / General Equipment,Environment & Resources,Credit,-7.99,amazon uk marketplace,17/01/2016
Nottinghamshire County Council,Office / General Equipment,Environment & Resources,Debit,156.37,amazon uk retail,16/01/2016
Nottinghamshire County Council,Office / General Equipment,Environment & Resources,Debit,358.99,amazon uk marketplace,16/01/2016
Nottinghamshire County Council,Subscriptions,Environment & Resources,Debit,666.00,r.i.c.s. -(drs),28/01/2016
Nottinghamshire County Council,Office / General Equipment,Environment & Resources,Debit,43.46,amazon uk marketplace,01/02/2016
Nottinghamshire County Council,Materials - External,Environment & Resources,Debit,345.48,landmark trading,02/02/2016
Nottinghamshire County Council,Provisions,Environment & Resources,Debit,187.16,makro self service notti,08/01/2016
Nottinghamshire County Council,Provisions,Environment & Resources,Debit,4.00,co-op group 310080,18/01/2016
Nottinghamshire County Council,Provisions,Environment & Resources,Debit,482.48,booker limited nottingha,25/01/2016
Nottinghamshire County Council,Provisions,Environment & Resources,Debit,28.06,asda superstore 04030,27/01/2016
Nottinghamshire County Council,Provisions,Environment & Resources,Debit,19.00,asda superstore 04030,28/01/2016
Nottinghamshire County Council,Provisions,Environment & Resources,Debit,7.80,asda superstore 04030,01/02/2016
Nottinghamshire County Council,Cleaning Materials,"Children, Families & Cultural Services",Debit,103.62,tesco stores 5379,05/01/2016
Nottinghamshire County Council,Personal Needs,"Children, Families & Cultural Services",Debit,66.00,laser labyrinth ltd,11/01/2016
